Department,Entity,Transaction Date,Expense Type,Expense Area,Supplier,Transaction No.,Amount
"Department for Business, Energy and Industrial Strategy",The Coal Authority,17/02/2022,Applications Consultancy,DIG - Service & Assurance,Cgi It Uk Ltd,123923,"17,218.60"
"Department for Business, Energy and Industrial Strategy",The Coal Authority,23/03/2022,Applications Consultancy,DIG - Service & Assurance,NCC Group Plc,124957,"8,750.00"
"Department for Business, Energy and Industrial Strategy",The Coal Authority,17/02/2022,Applications Consultancy,DIG - Technical Delivery,Cgi It Uk Ltd,123923,"6,000.23"
"Department for Business, Energy and Industrial Strategy",The Coal Authority,17/02/2022,Applications Consultancy,DIG - Technical Delivery,Cgi It Uk Ltd,123923,426.70
"Department for Business, Energy and Industrial Strategy",The Coal Authority,17/02/2022,Applications Consultancy,DIG - Technical Delivery,Cgi It Uk Ltd,123923,"12,339.60"
"Department for Business, Energy and Industrial Strategy",The Coal Authority,28/02/2022,Applications Consultancy,Finance,Sapphire Systems Plc,122950,840.00
"Department for Business, Energy and Industrial Strategy",The Coal Authority,28/02/2022,Bank Charges,Finance,Bottomline Technologies D/D,123088,146.00
"Department for Business, Energy and Industrial Strategy",The Coal Authority,16/03/2022,Bank Charges,Finance,National Westminster Bank Plc,123937,-62.78
"Department for Business, Energy and Industrial Strategy",The Coal Authority,04/03/2022,Bank Charges,Finance,National Westminster Bank Plc,123938,61.86
"Department for Business, Energy and Industrial Strategy",The Coal Authority,03/03/2022,Bridgewater - Contractor Costs,PS&S - General Claims,The Bridgewater Canal Co Ltd,123025,"2,765.08"
"Department for Business, Energy and Industrial Strategy",The Coal Authority,03/03/2022,Bridgewater - Contractor Costs,PS&S - General Claims,The Bridgewater Canal Co Ltd,123026,"1,877.57"
"Department for Business, Energy and Industrial Strategy",The Coal Authority,03/03/2022,Bridgewater - Contractor Costs,PS&S - General Claims,The Bridgewater Canal Co Ltd,123032,"16,613.45"
"Department for Business, Energy and Industrial Strategy",The Coal Authority,04/03/2022,Bridgewater - Contractor Costs,PS&S - General Claims,The Bridgewater Canal Co Ltd,123033,"7,205.28"
"Department for Business, Energy and Industrial Strategy",The Coal Authority,03/03/2022,Bridgewater - Contractor Costs,PS&S - General Claims,The Bridgewater Canal Co Ltd,123034,"27,819.52"
"Department for Business, Energy and Industrial Strategy",The Coal Authority,12/03/2022,Bridgewater - Contractor Costs,PS&S - General Claims,The Bridgewater Canal Co Ltd,124195,"14,069.47"
"Department for Business, Energy and Industrial Strategy",The Coal Authority,22/03/2022,Bridgewater - Contractor Costs,PS&S - General Claims,The Bridgewater Canal Co Ltd,124727,"17,102.05"
"Department for Business, Energy and Industrial Strategy",The Coal Authority,22/03/2022,Bridgewater - Contractor Costs,PS&S - General Claims,The Bridgewater Canal Co Ltd,124728,"10,021.81"
"Department for Business, Energy and Industrial Strategy",The Coal Authority,19/11/2021,Business Entertainment / Hospitality,DIG - Technical Delivery,Government Procurement Card,125123,29.47
"Department for Business, Energy and Industrial Strategy",The Coal Authority,20/11/2021,Business Entertainment / Hospitality,DIG - Technical Delivery,Government Procurement Card,125123,3.80
"Department for Business, Energy and Industrial Strategy",The Coal Authority,25/02/2022,Business Entertainment / Hospitality,Executive Assistants,Staff Expenses Control,123115,6.92
"Department for Business, Energy and Industrial Strategy",The Coal Authority,17/03/2022,Business Meetings,Board,S P Foods,125153,113.10
"Department for Business, Energy and Industrial Strategy",The Coal Authority,11/03/2022,Business Meetings,DIG - Data Licensing,Diversified Business,123698,"2,716.00"
"Department for Business, Energy and Industrial Strategy",The Coal Authority,22/02/2022,Business Meetings,Executive,Government Procurement Card,125082,60.00
"Department for Business, Energy and Industrial Strategy",The Coal Authority,03/12/2020,Business Meetings,Innovation By-Product & Services Delivery,ABMEC,123546,195.00
"Department for Business, Energy and Industrial Strategy",The Coal Authority,22/11/2021,Business Meetings,Innovation By-Product & Services Delivery,Environment Analyst Ltd,123707,250.00
"Department for Business, Energy and Industrial Strategy",The Coal Authority,09/02/2022,Business Meetings,PS&S - General Claims,Government Procurement Card,125082,9.32
"Department for Business, Energy and Industrial Strategy",The Coal Authority,16/02/2022,Business Meetings,PS&S - General Claims,Government Procurement Card,125082,11.75
"Department for Business, Energy and Industrial Strategy",The Coal Authority,29/03/2022,Business Meetings,PS&S - General Claims,Jurys Inn Newcastle,125346,420.00
"Department for Business, Energy and Industrial Strategy",The Coal Authority,16/03/2022,Business Meetings,PS&S - General Claims,West Denton Community Centre,124250,30.00
"Department for Business, Energy and Industrial Strategy",The Coal Authority,02/03/2022,Canteen Equipment,Facilities,All Shires Foods Ltd,122787,26.50
"Department for Business, Energy and Industrial Strategy",The Coal Authority,25/02/2022,Canteen Equipment,Facilities,Eden Springs UK LTD,123154,135.04
"Department for Business, Energy and Industrial Strategy",The Coal Authority,14/03/2022,Central Training,DEV - Planning & Local Authority Liaison,Staff Expenses Control,124381,30.00
"Department for Business, Energy and Industrial Strategy",The Coal Authority,16/03/2022,Central Training,"Health, Safety & Wellbeing",Bsi,124005,"1,245.00"
"Department for Business, Energy and Industrial Strategy",The Coal Authority,04/02/2022,Central Training,"Health, Safety & Wellbeing",Government Procurement Card,125082,400.00
"Department for Business, Energy and Industrial Strategy",The Coal Authority,24/02/2022,Central Training,"Health, Safety & Wellbeing",Government Procurement Card,125082,250.00
"Department for Business, Energy and Industrial Strategy",The Coal Authority,03/03/2022,Central Training,"Health, Safety & Wellbeing",Mines Rescue Service Limited,123225,321.00
"Department for Business, Energy and Industrial Strategy",The Coal Authority,10/03/2022,Central Training,"Health, Safety & Wellbeing",Mines Rescue Service Limited,123811,180.00
"Department for Business, Energy and Industrial Strategy",The Coal Authority,14/02/2022,Central Training,"Health, Safety & Wellbeing",Mines Rescue Service Limited,123974,321.00
"Department for Business, Energy and Industrial Strategy",The Coal Authority,07/03/2022,Central Training,"Health, Safety & Wellbeing",Mines Rescue Service Limited,124053,396.00
"Department for Business, Energy and Industrial Strategy",The Coal Authority,10/03/2022,Central Training,"Health, Safety & Wellbeing",Mines Rescue Service Limited,124121,180.00
"Department for Business, Energy and Industrial Strategy",The Coal Authority,10/03/2022,Central Training,"Health, Safety & Wellbeing",Mines Rescue Service Limited,124121,180.00
"Department for Business, Energy and Industrial Strategy",The Coal Authority,18/03/2022,Central Training,"Health, Safety & Wellbeing",Mines Rescue Service Limited,124122,-180.00
"Department for Business, Energy and Industrial Strategy",The Coal Authority,18/03/2022,Central Training,"Health, Safety & Wellbeing",Mines Rescue Service Limited,124122,-180.00
"Department for Business, Energy and Industrial Strategy",The Coal Authority,21/03/2022,Central Training,"Health, Safety & Wellbeing",Mines Rescue Service Limited,124840,456.00
"Department for Business, Energy and Industrial Strategy",The Coal Authority,21/03/2022,Central Training,"Health, Safety & Wellbeing",Mines Rescue Service Limited,124841,244.00
"Department for Business, Energy and Industrial Strategy",The Coal Authority,24/03/2022,Central Training,"Health, Safety & Wellbeing",Mines Rescue Service Limited,125283,244.00
"Department for Business, Energy and Industrial Strategy",The Coal Authority,24/02/2022,Central Training,"Health, Safety & Wellbeing",Risk & Safety Management Serv,123227,469.00
"Department for Business, Energy and Industrial Strategy",The Coal Authority,24/02/2022,Central Training,"Health, Safety & Wellbeing",Symmons Madge Associates Llp,123228,"2,070.00"
"Department for Business, Energy and Industrial Strategy",The Coal Authority,02/03/2022,Central Training,People & Organisational Development,Govnet Communications,123323,345.00
"Department for Business, Energy and Industrial Strategy",The Coal Authority,23/03/2022,Central Training,People & Organisational Development,Oe Cam Llp,124729,321.44
"Department for Business, Energy and Industrial Strategy",The Coal Authority,23/03/2022,Central Training,People & Organisational Development,Oe Cam Llp,124734,"2,936.00"
"Department for Business, Energy and Industrial Strategy",The Coal Authority,23/03/2022,Central Training,People & Organisational Development,Oe Cam Llp,124735,375.00
"Department for Business, Energy and Industrial Strategy",The Coal Authority,23/03/2022,Central Training,People & Organisational Development,Oe Cam Llp,124791,"3,193.50"
"Department for Business, Energy and Industrial Strategy",The Coal Authority,23/03/2022,Central Training,People & Organisational Development,Oe Cam Llp,124793,514.29
"Department for Business, Energy and Industrial Strategy",The Coal Authority,23/03/2022,Central Training,People & Organisational Development,Oe Cam Llp,124793,514.29
"Department for Business, Energy and Industrial Strategy",The Coal Authority,23/03/2022,Central Training,People & Organisational Development,Oe Cam Llp,124793,321.44
"Department for Business, Energy and Industrial Strategy",The Coal Authority,23/03/2022,Central Training,People & Organisational Development,Oe Cam Llp,124793,321.44
"Department for Business, Energy and Industrial Strategy",The Coal Authority,23/03/2022,Central Training,People & Organisational Development,Oe Cam Llp,124793,514.29
"Department for Business, Energy and Industrial Strategy",The Coal Authority,22/03/2022,Central Training,People & Organisational Development,S P Foods,124697,113.40
"Department for Business, Energy and Industrial Strategy",The Coal Authority,23/03/2022,Central Training,Procurement,Staff Expenses Control,124979,180.00
"Department for Business, Energy and Industrial Strategy",The Coal Authority,23/03/2022,Central Training,Procurement,Staff Expenses Control,124979,45.95
"Department for Business, Energy and Industrial Strategy",The Coal Authority,07/03/2022,Central Training,Tips Response,Staff Expenses Control,124979,6.99
"Department for Business, Energy and Industrial Strategy",The Coal Authority,07/03/2022,Central Training,Tips Response,Staff Expenses Control,124979,5.83
"Department for Business, Energy and Industrial Strategy",The Coal Authority,24/03/2022,Central Training,Tips Response,Staff Expenses Control,124979,22.00
"Department for Business, Energy and Industrial Strategy",The Coal Authority,25/01/2022,Consultancy - Property Management,DEV - Property Management,Cooke & Arkwright,123992,917.27
"Department for Business, Energy and Industrial Strategy",The Coal Authority,15/02/2022,Contract Hire Vehicles,PS&S - General Claims,Kinto UK Limited,124647,25.00
"Department for Business, Energy and Industrial Strategy",The Coal Authority,25/02/2022,Contract Hire Vehicles,PS&S - General Claims,Kinto UK Limited,125276,463.38
"Department for Business, Energy and Industrial Strategy",The Coal Authority,25/02/2022,Contract Hire Vehicles,PS&S - General Claims,Kinto UK Limited,125276,68.84
"Department for Business, Energy and Industrial Strategy",The Coal Authority,25/02/2022,Contract Hire Vehicles,PS&S - General Claims,Kinto UK Limited,125276,46.34
"Department for Business, Energy and Industrial Strategy",The Coal Authority,25/02/2022,Contract Hire Vehicles,PS&S - General Claims,Kinto UK Limited,125276,295.15
"Department for Business, Energy and Industrial Strategy",The Coal Authority,25/02/2022,Contract Hire Vehicles,PS&S - General Claims,Kinto UK Limited,125276,51.78
"Department for Business, Energy and Industrial Strategy",The Coal Authority,25/02/2022,Contract Hire Vehicles,PS&S - General Claims,Kinto UK Limited,125276,29.52
"Department for Business, Energy and Industrial Strategy",The Coal Authority,25/02/2022,Contract Hire Vehicles,PS&S - General Claims,Kinto UK Limited,125276,420.23
"Department for Business, Energy and Industrial Strategy",The Coal Authority,25/02/2022,Contract Hire Vehicles,PS&S - General Claims,Kinto UK Limited,125276,87.70
"Department for Business, Energy and Industrial Strategy",The Coal Authority,25/02/2022,Contract Hire Vehicles,PS&S - General Claims,Kinto UK Limited,125276,42.02
"Department for Business, Energy and Industrial Strategy",The Coal Authority,16/02/2022,Contract Hire Vehicles,PS&S - General Claims,Lex Autolease Ltd,122850,84.26
"Department for Business, Energy and Industrial Strategy",The Coal Authority,16/02/2022,Contract Hire Vehicles,PS&S - General Claims,Lex Autolease Ltd,122850,12.21
"Department for Business, Energy and Industrial Strategy",The Coal Authority,16/02/2022,Contract Hire Vehicles,PS&S - General Claims,Lex Autolease Ltd,122850,8.42
"Department for Business, Energy and Industrial Strategy",The Coal Authority,06/02/2022,Contract Hire Vehicles,PS&S - General Claims,Lex Autolease Ltd,122851,232.84
"Department for Business, Energy and Industrial Strategy",The Coal Authority,06/02/2022,Contract Hire Vehicles,PS&S - General Claims,Lex Autolease Ltd,122851,33.76
"Department for Business, Energy and Industrial Strategy",The Coal Authority,06/02/2022,Contract Hire Vehicles,PS&S - General Claims,Lex Autolease Ltd,122851,23.28
"Department for Business, Energy and Industrial Strategy",The Coal Authority,23/02/2022,CY - Head Office Buildings - Additions,Facilities,northwest security services ltd,124318,"24,145.20"
"Department for Business, Energy and Industrial Strategy",The Coal Authority,17/02/2022,CY - Intangible IT - Additions,DEV - Permissions,Cgi It Uk Ltd,123923,181.88
"Department for Business, Energy and Industrial Strategy",The Coal Authority,17/02/2022,CY - Intangible IT - Additions,DIG - Technical Delivery,Cgi It Uk Ltd,123923,"16,159.07"
"Department for Business, Energy and Industrial Strategy",The Coal Authority,17/02/2022,CY - Intangible IT - Additions,Records Management,Cgi It Uk Ltd,123923,181.88
"Department for Business, Energy and Industrial Strategy",The Coal Authority,02/02/2022,CY - Land - Additions,ENV - Projects & Delivery,Dla Piper Uk Llp,124035,"323,280.59"
"Department for Business, Energy and Industrial Strategy",The Coal Authority,15/03/2022,CY - Minewater Scheme - Additions,DEFRA Metal Mine Programme,AECOM Ltd,124064,"4,097.83"
"Department for Business, Energy and Industrial Strategy",The Coal Authority,10/03/2022,CY - Minewater Scheme - Additions,DEFRA Metal Mine Programme,Severn Trent Serv Ops Uk Ltd,123536,106.86
"Department for Business, Energy and Industrial Strategy",The Coal Authority,10/03/2022,CY - Minewater Scheme - Additions,ENV - Mine Water Operations,Severn Trent Serv Ops Uk Ltd,123606,133.57
"Department for Business, Energy and Industrial Strategy",The Coal Authority,10/03/2022,CY - Minewater Scheme - Additions,ENV - Mine Water Operations,Severn Trent Serv Ops Uk Ltd,123606,"2,301.14"
"Department for Business, Energy and Industrial Strategy",The Coal Authority,10/03/2022,CY - Minewater Scheme - Additions,ENV - Mine Water Operations,Severn Trent Serv Ops Uk Ltd,123606,604.30
"Department for Business, Energy and Industrial Strategy",The Coal Authority,10/03/2022,CY - Minewater Scheme - Additions,ENV - Mine Water Operations,Severn Trent Serv Ops Uk Ltd,123606,234.11
"Department for Business, Energy and Industrial Strategy",The Coal Authority,10/03/2022,CY - Minewater Scheme - Additions,ENV - Mine Water Operations,Severn Trent Serv Ops Uk Ltd,123606,"1,953.60"
"Department for Business, Energy and Industrial Strategy",The Coal Authority,10/03/2022,CY - Minewater Scheme - Additions,ENV - Mine Water Operations,Severn Trent Serv Ops Uk Ltd,123606,151.37
"Department for Business, Energy and Industrial Strategy",The Coal Authority,10/03/2022,CY - Minewater Scheme - Additions,ENV - Mine Water Operations,Severn Trent Serv Ops Uk Ltd,123606,"5,283.27"
"Department for Business, Energy and Industrial Strategy",The Coal Authority,10/03/2022,CY - Minewater Scheme - Additions,ENV - Mine Water Operations,Severn Trent Serv Ops Uk Ltd,123606,"5,322.15"
"Department for Business, Energy and Industrial Strategy",The Coal Authority,10/03/2022,CY - Minewater Scheme - Additions,ENV - Mine Water Operations,Severn Trent Serv Ops Uk Ltd,123606,"5,323.30"
"Department for Business, Energy and Industrial Strategy",The Coal Authority,10/03/2022,CY - Minewater Scheme - Additions,ENV - Mine Water Operations,Severn Trent Serv Ops Uk Ltd,123606,"5,390.47"
"Department for Business, Energy and Industrial Strategy",The Coal Authority,10/03/2022,CY - Minewater Scheme - Additions,ENV - Mine Water Operations,Severn Trent Serv Ops Uk Ltd,123606,"5,323.30"
"Department for Business, Energy and Industrial Strategy",The Coal Authority,10/03/2022,CY - Minewater Scheme - Additions,ENV - Mine Water Operations,Severn Trent Serv Ops Uk Ltd,123606,"6,176.77"
"Department for Business, Energy and Industrial Strategy",The Coal Authority,10/03/2022,CY - Minewater Scheme - Additions,ENV - Mine Water Operations,Severn Trent Serv Ops Uk Ltd,123606,22.20
"Department for Business, Energy and Industrial Strategy",The Coal Authority,10/03/2022,CY - Minewater Scheme - Additions,ENV - Mine Water Operations,Severn Trent Serv Ops Uk Ltd,123606,"5,298.79"
"Department for Business, Energy and Industrial Strategy",The Coal Authority,10/03/2022,CY - Minewater Scheme - Additions,ENV - Mine Water Operations,Severn Trent Serv Ops Uk Ltd,123606,"24,716.90"
"Department for Business, Energy and Industrial Strategy",The Coal Authority,10/03/2022,CY - Minewater Scheme - Additions,ENV - Mine Water Operations,Severn Trent Serv Ops Uk Ltd,123606,"1,317.05"
"Department for Business, Energy and Industrial Strategy",The Coal Authority,10/03/2022,CY - Minewater Scheme - Additions,ENV - Mine Water Operations,Severn Trent Serv Ops Uk Ltd,123606,244.40
"Department for Business, Energy and Industrial Strategy",The Coal Authority,10/03/2022,CY - Minewater Scheme - Additions,ENV - Mine Water Operations,Severn Trent Serv Ops Uk Ltd,123606,117.36
"Department for Business, Energy and Industrial Strategy",The Coal Authority,10/03/2022,CY - Minewater Scheme - Additions,ENV - Mine Water Operations,Severn Trent Serv Ops Uk Ltd,123606,"34,174.77"
"Department for Business, Energy and Industrial Strategy",The Coal Authority,10/03/2022,CY - Minewater Scheme - Additions,ENV - Mine Water Operations,Severn Trent Serv Ops Uk Ltd,123606,"2,554.83"
"Department for Business, Energy and Industrial Strategy",The Coal Authority,10/03/2022,CY - Minewater Scheme - Additions,ENV - Mine Water Operations,Severn Trent Serv Ops Uk Ltd,123606,"40,957.35"
"Department for Business, Energy and Industrial Strategy",The Coal Authority,10/03/2022,CY - Minewater Scheme - Additions,ENV - Mine Water Operations,Severn Trent Serv Ops Uk Ltd,123606,272.34
"Department for Business, Energy and Industrial Strategy",The Coal Authority,10/03/2022,CY - Minewater Scheme - Additions,ENV - Mine Water Operations,Severn Trent Serv Ops Uk Ltd,123606,"14,538.86"
"Department for Business, Energy and Industrial Strategy",The Coal Authority,10/03/2022,CY - Minewater Scheme - Additions,ENV - Mine Water Operations,Severn Trent Serv Ops Uk Ltd,123606,"150,272.04"
"Department for Business, Energy and Industrial Strategy",The Coal Authority,10/03/2022,CY - Minewater Scheme - Additions,ENV - Mine Water Operations,Severn Trent Serv Ops Uk Ltd,123606,"104,409.55"
"Department for Business, Energy and Industrial Strategy",The Coal Authority,10/03/2022,CY - Minewater Scheme - Additions,ENV - Mine Water Operations,Severn Trent Serv Ops Uk Ltd,123606,310.46
"Department for Business, Energy and Industrial Strategy",The Coal Authority,10/03/2022,CY - Minewater Scheme - Additions,ENV - Mine Water Operations,Severn Trent Serv Ops Uk Ltd,123606,"18,455.24"
"Department for Business, Energy and Industrial Strategy",The Coal Authority,10/03/2022,CY - Minewater Scheme - Additions,ENV - Mine Water Operations,Severn Trent Serv Ops Uk Ltd,123606,"256,984.45"
"Department for Business, Energy and Industrial Strategy",The Coal Authority,10/03/2022,CY - Minewater Scheme - Additions,ENV - Mine Water Operations,Severn Trent Serv Ops Uk Ltd,123606,"10,965.97"
"Department for Business, Energy and Industrial Strategy",The Coal Authority,10/03/2022,CY - Minewater Scheme - Additions,ENV - Mine Water Operations,Severn Trent Serv Ops Uk Ltd,123606,"273,893.83"
"Department for Business, Energy and Industrial Strategy",The Coal Authority,10/03/2022,CY - Minewater Scheme - Additions,ENV - Mine Water Operations,Severn Trent Serv Ops Uk Ltd,123606,"4,567.49"
"Department for Business, Energy and Industrial Strategy",The Coal Authority,10/03/2022,CY - Minewater Scheme - Additions,ENV - Mine Water Operations,Severn Trent Serv Ops Uk Ltd,123606,"2,545.40"
"Department for Business, Energy and Industrial Strategy",The Coal Authority,10/03/2022,CY - Minewater Scheme - Additions,ENV - Mine Water Operations,Severn Trent Serv Ops Uk Ltd,123606,"3,909.28"
"Department for Business, Energy and Industrial Strategy",The Coal Authority,10/03/2022,CY - Minewater Scheme - Additions,ENV - Mine Water Operations,Severn Trent Serv Ops Uk Ltd,123606,45.55
"Department for Business, Energy and Industrial Strategy",The Coal Authority,10/03/2022,CY - Minewater Scheme - Additions,ENV - Mine Water Operations,Severn Trent Serv Ops Uk Ltd,123606,"18,306.30"
"Department for Business, Energy and Industrial Strategy",The Coal Authority,10/03/2022,CY - Minewater Scheme - Additions,ENV - Mine Water Operations,Severn Trent Serv Ops Uk Ltd,123606,"15,423.88"
"Department for Business, Energy and Industrial Strategy",The Coal Authority,10/03/2022,CY - Minewater Scheme - Additions,ENV - Mine Water Operations,Severn Trent Serv Ops Uk Ltd,123606,"16,061.77"
"Department for Business, Energy and Industrial Strategy",The Coal Authority,10/03/2022,CY - Minewater Scheme - Additions,ENV - Mine Water Operations,Severn Trent Serv Ops Uk Ltd,123606,"13,173.10"
"Department for Business, Energy and Industrial Strategy",The Coal Authority,10/03/2022,CY - Minewater Scheme - Additions,ENV - Mine Water Operations,Severn Trent Serv Ops Uk Ltd,123606,91.09
"Department for Business, Energy and Industrial Strategy",The Coal Authority,10/03/2022,CY - Minewater Scheme - Additions,ENV - Mine Water Operations,Severn Trent Serv Ops Uk Ltd,123606,"6,132.99"
"Department for Business, Energy and Industrial Strategy",The Coal Authority,10/03/2022,CY - Minewater Scheme - Additions,ENV - Mine Water Operations,Severn Trent Serv Ops Uk Ltd,123606,45.55
"Department for Business, Energy and Industrial Strategy",The Coal Authority,10/03/2022,CY - Minewater Scheme - Additions,ENV - Mine Water Operations,Severn Trent Serv Ops Uk Ltd,123606,22.77
"Department for Business, Energy and Industrial Strategy",The Coal Authority,10/03/2022,CY - Minewater Scheme - Additions,ENV - Mine Water Operations,Severn Trent Serv Ops Uk Ltd,123606,91.09
"Department for Business, Energy and Industrial Strategy",The Coal Authority,10/03/2022,CY - Minewater Scheme - Additions,ENV - Mine Water Operations,Severn Trent Serv Ops Uk Ltd,123606,"28,808.17"
"Department for Business, Energy and Industrial Strategy",The Coal Authority,10/03/2022,CY - Minewater Scheme - Additions,ENV - Mine Water Operations,Severn Trent Serv Ops Uk Ltd,123606,"1,097.97"
"Department for Business, Energy and Industrial Strategy",The Coal Authority,10/03/2022,CY - Minewater Scheme - Additions,ENV - Mine Water Operations,Severn Trent Serv Ops Uk Ltd,123606,670.77
"Department for Business, Energy and Industrial Strategy",The Coal Authority,10/03/2022,CY - Minewater Scheme - Additions,ENV - Mine Water Operations,Severn Trent Serv Ops Uk Ltd,123606,"3,014.81"
"Department for Business, Energy and Industrial Strategy",The Coal Authority,10/03/2022,CY - Minewater Scheme - Additions,ENV - Mine Water Operations,Severn Trent Serv Ops Uk Ltd,123606,262.90
"Department for Business, Energy and Industrial Strategy",The Coal Authority,10/03/2022,CY - Minewater Scheme - Additions,ENV - Mine Water Operations,Severn Trent Serv Ops Uk Ltd,123606,"4,039.51"
"Department for Business, Energy and Industrial Strategy",The Coal Authority,10/03/2022,CY - Minewater Scheme - Additions,ENV - Mine Water Operations,Severn Trent Serv Ops Uk Ltd,123606,75.11
"Department for Business, Energy and Industrial Strategy",The Coal Authority,10/03/2022,CY - Minewater Scheme - Additions,ENV - Mine Water Operations,Severn Trent Serv Ops Uk Ltd,123606,300.46
"Department for Business, Energy and Industrial Strategy",The Coal Authority,10/03/2022,CY - Minewater Scheme - Additions,ENV - Mine Water Operations,Severn Trent Serv Ops Uk Ltd,123606,"6,943.95"
"Department for Business, Energy and Industrial Strategy",The Coal Authority,10/03/2022,CY - Minewater Scheme - Additions,ENV - Mine Water Operations,Severn Trent Serv Ops Uk Ltd,123606,75.11
"Department for Business, Energy and Industrial Strategy",The Coal Authority,10/03/2022,CY - Minewater Scheme - Additions,ENV - Mine Water Operations,Severn Trent Serv Ops Uk Ltd,123606,141.64
"Department for Business, Energy and Industrial Strategy",The Coal Authority,10/03/2022,CY - Minewater Scheme - Additions,ENV - Mine Water Operations,Severn Trent Serv Ops Uk Ltd,123606,"33,022.83"
"Department for Business, Energy and Industrial Strategy",The Coal Authority,10/03/2022,CY - Minewater Scheme - Additions,ENV - Mine Water Operations,Severn Trent Serv Ops Uk Ltd,123606,"17,246.81"
"Department for Business, Energy and Industrial Strategy",The Coal Authority,15/02/2022,CY - Minewater Scheme - Additions,ENV - Projects & Delivery,AECOM Ltd,122858,"2,491.72"
"Department for Business, Energy and Industrial Strategy",The Coal Authority,08/03/2022,CY - Minewater Scheme - Additions,ENV - Projects & Delivery,AECOM Ltd,123662,"2,096.90"
"Department for Business, Energy and Industrial Strategy",The Coal Authority,08/03/2022,CY - Minewater Scheme - Additions,ENV - Projects & Delivery,AECOM Ltd,123662,"2,488.80"
"Department for Business, Energy and Industrial Strategy",The Coal Authority,28/02/2022,CY - Minewater Scheme - Additions,ENV - Projects & Delivery,Dunelm Geotechnical and Environmental Ltd,124055,"1,007.00"
"Department for Business, Energy and Industrial Strategy",The Coal Authority,31/01/2022,CY - Minewater Scheme - Additions,ENV - Projects & Delivery,Dunelm Geotechnical and Environmental Ltd,125119,"3,627.72"
"Department for Business, Energy and Industrial Strategy",The Coal Authority,31/01/2022,CY - Minewater Scheme - Additions,ENV - Projects & Delivery,Dunelm Geotechnical and Environmental Ltd,125119,845.88
"Department for Business, Energy and Industrial Strategy",The Coal Authority,29/03/2022,CY - Minewater Scheme - Additions,ENV - Projects & Delivery,Integrated Water Services Ltd,125244,"11,704.74"
"Department for Business, Energy and Industrial Strategy",The Coal Authority,29/03/2022,CY - Minewater Scheme - Additions,ENV - Projects & Delivery,Integrated Water Services Ltd,125244,"3,150.30"
"Department for Business, Energy and Industrial Strategy",The Coal Authority,29/03/2022,CY - Minewater Scheme - Additions,ENV - Projects & Delivery,Integrated Water Services Ltd,125244,"4,841.67"
"Department for Business, Energy and Industrial Strategy",The Coal Authority,29/03/2022,CY - Minewater Scheme - Additions,ENV - Projects & Delivery,Integrated Water Services Ltd,125244,"8,269.42"
"Department for Business, Energy and Industrial Strategy",The Coal Authority,29/03/2022,CY - Minewater Scheme - Additions,ENV - Projects & Delivery,Integrated Water Services Ltd,125244,"1,650.00"
"Department for Business, Energy and Industrial Strategy",The Coal Authority,18/02/2022,CY - Minewater Scheme - Additions,ENV - Projects & Delivery,J N Bentley Limited,124034,"1,992.80"
"Department for Business, Energy and Industrial Strategy",The Coal Authority,02/03/2022,CY - Minewater Scheme - Additions,ENV - Projects & Delivery,JBA Bentley Ltd,124028,"20,539.40"
"Department for Business, Energy and Industrial Strategy",The Coal Authority,02/03/2022,CY - Minewater Scheme - Additions,ENV - Projects & Delivery,JBA Bentley Ltd,124028,"8,032.31"
"Department for Business, Energy and Industrial Strategy",The Coal Authority,02/03/2022,CY - Minewater Scheme - Additions,ENV - Projects & Delivery,JBA Bentley Ltd,124028,"4,446.75"
"Department for Business, Energy and Industrial Strategy",The Coal Authority,02/03/2022,CY - Minewater Scheme - Additions,ENV - Projects & Delivery,JBA Bentley Ltd,124028,"1,732.50"
"Department for Business, Energy and Industrial Strategy",The Coal Authority,02/03/2022,CY - Minewater Scheme - Additions,ENV - Projects & Delivery,JBA Bentley Ltd,124028,"9,666.48"
"Department for Business, Energy and Industrial Strategy",The Coal Authority,02/03/2022,CY - Minewater Scheme - Additions,ENV - Projects & Delivery,JBA Bentley Ltd,124028,"2,000.00"
"Department for Business, Energy and Industrial Strategy",The Coal Authority,02/03/2022,CY - Minewater Scheme - Additions,ENV - Projects & Delivery,JBA Bentley Ltd,124028,"24,722.96"
"Department for Business, Energy and Industrial Strategy",The Coal Authority,16/03/2022,CY - Minewater Scheme - Additions,ENV - Projects & Delivery,JBA Bentley Ltd,124649,"152,837.02"
"Department for Business, Energy and Industrial Strategy",The Coal Authority,21/02/2022,CY - Minewater Scheme - Additions,ENV - Projects & Delivery,Nerc,122860,176.64
"Department for Business, Energy and Industrial Strategy",The Coal Authority,10/03/2022,CY - Minewater Scheme - Additions,ENV - Projects & Delivery,Severn Trent Serv Ops Uk Ltd,123606,"9,963.47"
"Department for Business, Energy and Industrial Strategy",The Coal Authority,10/03/2022,CY - Minewater Scheme - Additions,ENV - Projects & Delivery,Severn Trent Serv Ops Uk Ltd,123606,133.57
"Department for Business, Energy and Industrial Strategy",The Coal Authority,10/03/2022,CY - Minewater Scheme - Additions,ENV - Projects & Delivery,Severn Trent Serv Ops Uk Ltd,123606,113.87
"Department for Business, Energy and Industrial Strategy",The Coal Authority,10/03/2022,CY - Minewater Scheme - Additions,ENV - Projects & Delivery,Severn Trent Serv Ops Uk Ltd,123606,"341,746.63"
"Department for Business, Energy and Industrial Strategy",The Coal Authority,10/03/2022,CY - Minewater Scheme - Additions,ENV - Projects & Delivery,Severn Trent Serv Ops Uk Ltd,123606,"1,408.74"
"Department for Business, Energy and Industrial Strategy",The Coal Authority,10/03/2022,CY - Minewater Scheme - Additions,ENV - Projects & Delivery,Severn Trent Serv Ops Uk Ltd,123606,"4,922.69"
"Department for Business, Energy and Industrial Strategy",The Coal Authority,10/03/2022,CY - Minewater Scheme - Additions,ENV - Projects & Delivery,Severn Trent Serv Ops Uk Ltd,123606,"1,215.04"
"Department for Business, Energy and Industrial Strategy",The Coal Authority,10/03/2022,CY - Minewater Scheme - Additions,ENV - Projects & Delivery,Severn Trent Serv Ops Uk Ltd,123606,"20,762.23"
"Department for Business, Energy and Industrial Strategy",The Coal Authority,10/03/2022,CY - Minewater Scheme - Additions,ENV - Projects & Delivery,Severn Trent Serv Ops Uk Ltd,123606,"4,951.88"
"Department for Business, Energy and Industrial Strategy",The Coal Authority,10/03/2022,CY - Minewater Scheme - Additions,ENV - Projects & Delivery,Severn Trent Serv Ops Uk Ltd,123606,220.06
"Department for Business, Energy and Industrial Strategy",The Coal Authority,16/02/2022,CY - Minewater Scheme - Additions,ENV - Projects & Delivery,Turner and Townsend Project Management Ltd.,122859,"2,848.44"
"Department for Business, Energy and Industrial Strategy",The Coal Authority,16/02/2022,CY - Minewater Scheme - Additions,ENV - Projects & Delivery,Turner and Townsend Project Management Ltd.,122859,99.40
"Department for Business, Energy and Industrial Strategy",The Coal Authority,27/01/2022,CY - Minewater Scheme - Additions,ENV - Projects & Delivery,Turner and Townsend Project Management Ltd.,123014,54.00
"Department for Business, Energy and Industrial Strategy",The Coal Authority,27/01/2022,CY - Minewater Scheme - Additions,ENV - Projects & Delivery,Turner and Townsend Project Management Ltd.,123014,"3,761.87"
"Department for Business, Energy and Industrial Strategy",The Coal Authority,27/01/2022,CY - Minewater Scheme - Additions,ENV - Projects & Delivery,Turner and Townsend Project Management Ltd.,123014,0.04
"Department for Business, Energy and Industrial Strategy",The Coal Authority,27/01/2022,CY - Minewater Scheme - Additions,ENV - Projects & Delivery,Turner and Townsend Project Management Ltd.,123014,384.36
"Department for Business, Energy and Industrial Strategy",The Coal Authority,24/02/2022,CY - Minewater Scheme - Additions,ENV - Projects & Delivery,Turner and Townsend Project Management Ltd.,123131,"1,788.43"
"Department for Business, Energy and Industrial Strategy",The Coal Authority,24/02/2022,CY - Minewater Scheme - Additions,ENV - Projects & Delivery,Turner and Townsend Project Management Ltd.,123131,54.00
"Department for Business, Energy and Industrial Strategy",The Coal Authority,24/02/2022,CY - Minewater Scheme - Additions,ENV - Projects & Delivery,Turner and Townsend Project Management Ltd.,123131,0.01
"Department for Business, Energy and Industrial Strategy",The Coal Authority,14/03/2022,CY - Minewater Scheme - Additions,ENV - Projects & Delivery,Turner and Townsend Project Management Ltd.,124796,"5,017.60"
"Department for Business, Energy and Industrial Strategy",The Coal Authority,21/02/2022,CY - Minewater Scheme - Additions,ENV - Projects & Delivery,Western Power Distribution,123257,"55,826.23"
"Department for Business, Energy and Industrial Strategy",The Coal Authority,24/03/2022,CY - Minewater Scheme - Additions,ENV - Projects & Delivery,Western Power Distribution,125192,"88,443.53"
"Department for Business, Energy and Industrial Strategy",The Coal Authority,25/02/2022,CY - Minewater Scheme - Additions,ENV - Projects & Delivery,WSP UK Ltd,123342,"3,992.00"
"Department for Business, Energy and Industrial Strategy",The Coal Authority,17/03/2022,CY - Minewater Scheme - Additions,ENV - Projects & Delivery,WSP UK Ltd,125198,"1,301.15"
"Department for Business, Energy and Industrial Strategy",The Coal Authority,22/03/2022,CY - Minewater Scheme - Additions,ENV - Projects & Delivery,WSP UK Ltd,125203,"3,665.71"
"Department for Business, Energy and Industrial Strategy",The Coal Authority,18/02/2022,CY - Non-coal Minewater - Additions,DEFRA LEP Funding,Aecom Infrastructure & Env,123114,"2,242.82"
"Department for Business, Energy and Industrial Strategy",The Coal Authority,18/02/2022,CY - Non-coal Minewater - Additions,DEFRA LEP Funding,Aecom Infrastructure & Env,123114,908.95
"Department for Business, Energy and Industrial Strategy",The Coal Authority,18/02/2022,CY - Non-coal Minewater - Additions,DEFRA LEP Funding,Aecom Infrastructure & Env,123114,472.78
"Department for Business, Energy and Industrial Strategy",The Coal Authority,18/02/2022,CY - Non-coal Minewater - Additions,DEFRA LEP Funding,Aecom Infrastructure & Env,123114,"2,867.58"
"Department for Business, Energy and Industrial Strategy",The Coal Authority,14/01/2022,CY - Non-coal Minewater - Additions,DEFRA LEP Funding,Aecom Infrastructure & Env,123118,"6,355.21"
"Department for Business, Energy and Industrial Strategy",The Coal Authority,20/01/2022,CY - Non-coal Minewater - Additions,DEFRA LEP Funding,Aecom Infrastructure & Env,123159,500.00
"Department for Business, Energy and Industrial Strategy",The Coal Authority,20/01/2022,CY - Non-coal Minewater - Additions,DEFRA LEP Funding,Aecom Infrastructure & Env,123159,"2,867.58"
"Department for Business, Energy and Industrial Strategy",The Coal Authority,20/01/2022,CY - Non-coal Minewater - Additions,DEFRA LEP Funding,Aecom Infrastructure & Env,123159,"1,493.83"
"Department for Business, Energy and Industrial Strategy",The Coal Authority,20/01/2022,CY - Non-coal Minewater - Additions,DEFRA LEP Funding,Aecom Infrastructure & Env,123159,"1,242.95"
"Department for Business, Energy and Industrial Strategy",The Coal Authority,20/01/2022,CY - Non-coal Minewater - Additions,DEFRA LEP Funding,Aecom Infrastructure & Env,123159,380.94
"Department for Business, Energy and Industrial Strategy",The Coal Authority,20/01/2022,CY - Non-coal Minewater - Additions,DEFRA LEP Funding,Aecom Infrastructure & Env,123159,276.50
"Department for Business, Energy and Industrial Strategy",The Coal Authority,20/01/2022,CY - Non-coal Minewater - Additions,DEFRA LEP Funding,Aecom Infrastructure & Env,123159,387.10
"Department for Business, Energy and Industrial Strategy",The Coal Authority,20/01/2022,CY - Non-coal Minewater - Additions,DEFRA LEP Funding,Aecom Infrastructure & Env,123159,950.00
"Department for Business, Energy and Industrial Strategy",The Coal Authority,15/03/2022,CY - Non-coal Minewater - Additions,DEFRA LEP Funding,Aecom Infrastructure & Env,124216,253.96
"Department for Business, Energy and Industrial Strategy",The Coal Authority,15/03/2022,CY - Non-coal Minewater - Additions,DEFRA LEP Funding,Aecom Infrastructure & Env,124216,30.72
"Department for Business, Energy and Industrial Strategy",The Coal Authority,15/03/2022,CY - Non-coal Minewater - Additions,DEFRA LEP Funding,Aecom Infrastructure & Env,124216,"1,794.26"
"Department for Business, Energy and Industrial Strategy",The Coal Authority,15/03/2022,CY - Non-coal Minewater - Additions,DEFRA LEP Funding,Aecom Infrastructure & Env,124216,727.16
"Department for Business, Energy and Industrial Strategy",The Coal Authority,15/03/2022,CY - Non-coal Minewater - Additions,DEFRA LEP Funding,Aecom Infrastructure & Env,124216,"3,357.07"
"Department for Business, Energy and Industrial Strategy",The Coal Authority,15/03/2022,CY - Non-coal Minewater - Additions,DEFRA LEP Funding,Aecom Infrastructure & Env,124216,"2,363.90"
"Department for Business, Energy and Industrial Strategy",The Coal Authority,15/03/2022,CY - Non-coal Minewater - Additions,DEFRA LEP Funding,Aecom Infrastructure & Env,124216,"2,867.58"
"Department for Business, Energy and Industrial Strategy",The Coal Authority,15/03/2022,CY - Non-coal Minewater - Additions,DEFRA LEP Funding,Aecom Infrastructure & Env,124216,"3,939.60"
"Department for Business, Energy and Industrial Strategy",The Coal Authority,15/03/2022,CY - Non-coal Minewater - Additions,DEFRA LEP Funding,Aecom Infrastructure & Env,124216,"1,947.98"
"Department for Business, Energy and Industrial Strategy",The Coal Authority,15/03/2022,CY - Non-coal Minewater - Additions,DEFRA LEP Funding,Aecom Infrastructure & Env,124216,"2,931.60"
"Department for Business, Energy and Industrial Strategy",The Coal Authority,07/03/2022,CY - Non-coal Minewater - Additions,DEFRA LEP Funding,I & H Brown Limited,123340,"35,086.97"
"Department for Business, Energy and Industrial Strategy",The Coal Authority,07/03/2022,CY - Non-coal Minewater - Additions,DEFRA LEP Funding,I & H Brown Limited,123340,"14,069.74"
"Department for Business, Energy and Industrial Strategy",The Coal Authority,07/03/2022,CY - Non-coal Minewater - Additions,DEFRA LEP Funding,I & H Brown Limited,123340,"3,742.51"
"Department for Business, Energy and Industrial Strategy",The Coal Authority,07/03/2022,CY - Non-coal Minewater - Additions,DEFRA LEP Funding,I & H Brown Limited,123340,"2,626.39"
"Department for Business, Energy and Industrial Strategy",The Coal Authority,21/02/2022,CY - Non-coal Minewater - Additions,DEFRA LEP Funding,Turner and Townsend Project Management Ltd.,124259,"2,081.36"
"Department for Business, Energy and Industrial Strategy",The Coal Authority,21/02/2022,CY - Non-coal Minewater - Additions,DEFRA LEP Funding,Turner and Townsend Project Management Ltd.,124259,"2,204.75"
"Department for Business, Energy and Industrial Strategy",The Coal Authority,14/03/2022,CY - Non-coal Minewater - Additions,DEFRA LEP Funding,Tyne Rivers Trust,124962,"4,995.32"
"Department for Business, Energy and Industrial Strategy",The Coal Authority,14/03/2022,CY - Non-coal Minewater - Additions,DEFRA LEP Funding,Tyne Rivers Trust,125329,"5,441.40"
"Department for Business, Energy and Industrial Strategy",The Coal Authority,14/03/2022,CY - Non-coal Minewater - Additions,DEFRA LEP Funding,Tyne Rivers Trust,125329,"1,875.00"
"Department for Business, Energy and Industrial Strategy",The Coal Authority,14/03/2022,CY - Non-coal Minewater - Additions,DEFRA LEP Funding,Tyne Rivers Trust,125332,"1,304.00"
"Department for Business, Energy and Industrial Strategy",The Coal Authority,14/03/2022,CY - Non-coal Minewater - Additions,DEFRA LEP Funding,Tyne Rivers Trust,125332,504.00
"Department for Business, Energy and Industrial Strategy",The Coal Authority,02/03/2022,CY - Non-coal Minewater - Additions,DEFRA Metal Mine Programme,Detectronic Limited,123172,500.00
"Department for Business, Energy and Industrial Strategy",The Coal Authority,27/09/2021,CY - Non-coal Minewater - Additions,DEFRA Metal Mine Programme,Detectronic Limited,124481,500.00
"Department for Business, Energy and Industrial Strategy",The Coal Authority,28/02/2022,CY - Non-coal Minewater - Additions,DEFRA Metal Mine Programme,Galliford Try Construction Limited,124112,"51,826.53"
"Department for Business, Energy and Industrial Strategy",The Coal Authority,10/03/2022,CY - Non-coal Minewater - Additions,DEFRA Metal Mine Programme,John F Hunt Regeneration Ltd,123879,"82,173.14"
"Department for Business, Energy and Industrial Strategy",The Coal Authority,10/03/2022,CY - Non-coal Minewater - Additions,DEFRA Metal Mine Programme,Severn Trent Serv Ops Uk Ltd,123536,314.52
"Department for Business, Energy and Industrial Strategy",The Coal Authority,10/03/2022,CY - Non-coal Minewater - Additions,DEFRA Metal Mine Programme,Yorkshire Dales Rivers Trust,124817,"50,485.00"
"Department for Business, Energy and Industrial Strategy",The Coal Authority,01/03/2022,CY - Subsidence Pumping - Additions,ENV - Projects & Delivery,Danvm Drainage Commissioners,123003,"117,332.18"
"Department for Business, Energy and Industrial Strategy",The Coal Authority,06/01/2022,CY - Subsidence Pumping - Additions,ENV - Projects & Delivery,Danvm Drainage Commissioners,124831,"13,084.17"
"Department for Business, Energy and Industrial Strategy",The Coal Authority,28/02/2022,CY - Subsidence Pumping - Additions,ENV - Projects & Delivery,ECS Engineering Services,124260,"2,500.00"
"Department for Business, Energy and Industrial Strategy",The Coal Authority,28/02/2022,CY - Subsidence Pumping - Additions,ENV - Projects & Delivery,ECS Engineering Services,124260,"10,000.00"
"Department for Business, Energy and Industrial Strategy",The Coal Authority,28/02/2022,CY - Subsidence Pumping - Additions,ENV - Projects & Delivery,ECS Engineering Services,124260,"2,000.00"
"Department for Business, Energy and Industrial Strategy",The Coal Authority,28/02/2022,CY - Subsidence Pumping - Additions,ENV - Projects & Delivery,ECS Engineering Services,124260,"30,000.00"
"Department for Business, Energy and Industrial Strategy",The Coal Authority,28/02/2022,CY - Subsidence Pumping - Additions,ENV - Projects & Delivery,ECS Engineering Services,124260,"30,000.00"
"Department for Business, Energy and Industrial Strategy",The Coal Authority,22/03/2022,CY - Subsidence Pumping - Additions,ENV - Projects & Delivery,ECS Engineering Services,124542,"16,111.80"
"Department for Business, Energy and Industrial Strategy",The Coal Authority,22/03/2022,CY - Subsidence Pumping - Additions,ENV - Projects & Delivery,ECS Engineering Services,124542,"5,994.00"
"Department for Business, Energy and Industrial Strategy",The Coal Authority,22/03/2022,CY - Subsidence Pumping - Additions,ENV - Projects & Delivery,ECS Engineering Services,124542,"15,000.00"
"Department for Business, Energy and Industrial Strategy",The Coal Authority,22/03/2022,CY - Subsidence Pumping - Additions,ENV - Projects & Delivery,ECS Engineering Services,124542,"10,000.00"
"Department for Business, Energy and Industrial Strategy",The Coal Authority,22/03/2022,CY - Subsidence Pumping - Additions,ENV - Projects & Delivery,ECS Engineering Services,124542,"30,000.00"
"Department for Business, Energy and Industrial Strategy",The Coal Authority,10/03/2022,CY - Subsidence Pumping - Additions,ENV - Projects & Delivery,Severn Trent Serv Ops Uk Ltd,123606,123.33
"Department for Business, Energy and Industrial Strategy",The Coal Authority,21/01/2022,CY - Tangible IT - Additions,DIG - Service & Assurance,Probrand Limited,124084,216.00
"Department for Business, Energy and Industrial Strategy",The Coal Authority,21/01/2022,CY - Tangible IT - Additions,DIG - Service & Assurance,Probrand Limited,124084,747.60
"Department for Business, Energy and Industrial Strategy",The Coal Authority,21/01/2022,CY - Tangible IT - Additions,DIG - Service & Assurance,Probrand Limited,124084,754.80
"Department for Business, Energy and Industrial Strategy",The Coal Authority,24/01/2022,CY - Tangible IT - Additions,DIG - Service & Assurance,Probrand Limited,124100,466.20
"Department for Business, Energy and Industrial Strategy",The Coal Authority,18/03/2022,Desktop Computing,DIG - Technical Delivery,XMA Ltd,124577,"5,431.05"
"Department for Business, Energy and Industrial Strategy",The Coal Authority,18/03/2022,Desktop Computing,DIG - Technical Delivery,XMA Ltd,124577,"1,621.35"
"Department for Business, Energy and Industrial Strategy",The Coal Authority,18/03/2022,Desktop Computing,DIG - Technical Delivery,XMA Ltd,124577,"59,240.62"
"Department for Business, Energy and Industrial Strategy",The Coal Authority,18/03/2022,Desktop Computing,DIG - Technical Delivery,XMA Ltd,124577,0.01
"Department for Business, Energy and Industrial Strategy",The Coal Authority,17/03/2022,Desktop Computing,DIG - Technical Delivery,XMA Ltd,124585,0.01
"Department for Business, Energy and Industrial Strategy",The Coal Authority,17/03/2022,Desktop Computing,DIG - Technical Delivery,XMA Ltd,124585,"6,192.27"
"Department for Business, Energy and Industrial Strategy",The Coal Authority,17/03/2022,Desktop Computing,DIG - Technical Delivery,XMA Ltd,124585,6.34
"Department for Business, Energy and Industrial Strategy",The Coal Authority,23/03/2022,Desktop Computing,DIG - Technical Delivery,XMA Ltd,124586,-6.34
"Department for Business, Energy and Industrial Strategy",The Coal Authority,23/03/2022,Desktop Computing,DIG - Technical Delivery,XMA Ltd,124586,"-6,192.27"
"Department for Business, Energy and Industrial Strategy",The Coal Authority,23/03/2022,Desktop Computing,DIG - Technical Delivery,XMA Ltd,124586,-0.01
"Department for Business, Energy and Industrial Strategy",The Coal Authority,17/03/2022,Desktop Computing,DIG - Technical Delivery,XMA Ltd,124587,"5,120.74"
"Department for Business, Energy and Industrial Strategy",The Coal Authority,17/03/2022,Desktop Computing,DIG - Technical Delivery,XMA Ltd,124587,605.01
"Department for Business, Energy and Industrial Strategy",The Coal Authority,17/03/2022,Desktop Computing,DIG - Technical Delivery,XMA Ltd,124587,6.34
"Department for Business, Energy and Industrial Strategy",The Coal Authority,17/03/2022,Desktop Computing,DIG - Technical Delivery,XMA Ltd,124587,466.53
"Department for Business, Energy and Industrial Strategy",The Coal Authority,17/03/2022,Desktop Computing,DIG - Technical Delivery,XMA Ltd,124588,0.28
"Department for Business, Energy and Industrial Strategy",The Coal Authority,17/03/2022,Desktop Computing,DIG - Technical Delivery,XMA Ltd,124588,6.34
"Department for Business, Energy and Industrial Strategy",The Coal Authority,22/03/2022,Desktop Computing,DIG - Technical Delivery,XMA Ltd,124589,207.12
"Department for Business, Energy and Industrial Strategy",The Coal Authority,22/03/2022,Desktop Computing,DIG - Technical Delivery,XMA Ltd,124590,272.62
"Department for Business, Energy and Industrial Strategy",The Coal Authority,22/03/2022,Desktop Computing,DIG - Technical Delivery,XMA Ltd,124590,12.04
"Department for Business, Energy and Industrial Strategy",The Coal Authority,22/03/2022,Desktop Computing,DIG - Technical Delivery,XMA Ltd,125280,"6,850.09"
"Department for Business, Energy and Industrial Strategy",The Coal Authority,22/03/2022,Desktop Computing,DIG - Technical Delivery,XMA Ltd,125280,102.94
"Department for Business, Energy and Industrial Strategy",The Coal Authority,22/03/2022,Desktop Computing,DIG - Technical Delivery,XMA Ltd,125280,"2,160.26"
"Department for Business, Energy and Industrial Strategy",The Coal Authority,22/03/2022,Desktop Computing,DIG - Technical Delivery,XMA Ltd,125280,-0.01
"Department for Business, Energy and Industrial Strategy",The Coal Authority,25/02/2022,Disaster Recovery & BCP,Incident & Emergency Response,Government Procurement Card,125082,100.00
"Department for Business, Energy and Industrial Strategy",The Coal Authority,31/08/2021,eCommerce Commission Charges,DEV - Licensing,Worldpay,123563,3.00
"Department for Business, Energy and Industrial Strategy",The Coal Authority,28/02/2022,eCommerce Commission Charges,DEV - Licensing,Worldpay,123993,24.70
"Department for Business, Energy and Industrial Strategy",The Coal Authority,31/08/2021,eCommerce Commission Charges,DEV - Permissions,Worldpay,123563,225.11
"Department for Business, Energy and Industrial Strategy",The Coal Authority,31/08/2021,eCommerce Commission Charges,DEV - Permissions,Worldpay,123563,25.00
"Department for Business, Energy and Industrial Strategy",The Coal Authority,28/02/2022,eCommerce Commission Charges,DEV - Permissions,Worldpay,123993,840.36
"Department for Business, Energy and Industrial Strategy",The Coal Authority,28/02/2022,eCommerce Commission Charges,DEV - Permissions,Worldpay,123993,25.00
"Department for Business, Energy and Industrial Strategy",The Coal Authority,01/02/2021,eCommerce Commission Charges,DEV - Permissions,Worldpay Limited,123215,7.65
"Department for Business, Energy and Industrial Strategy",The Coal Authority,31/08/2021,eCommerce Commission Charges,DEV - Property Management,Worldpay,123563,18.00
"Department for Business, Energy and Industrial Strategy",The Coal Authority,31/08/2021,eCommerce Commission Charges,DIG - Data Licensing,Worldpay,123563,1.44
"Department for Business, Energy and Industrial Strategy",The Coal Authority,31/08/2021,eCommerce Commission Charges,Mining Reports,Worldpay,123563,"1,544.08"
"Department for Business, Energy and Industrial Strategy",The Coal Authority,28/02/2022,eCommerce Commission Charges,Mining Reports,Worldpay,123993,"1,094.21"
"Department for Business, Energy and Industrial Strategy",The Coal Authority,01/03/2022,eCommerce Commission Charges,Mining Reports,Worldpay Limited,123600,258.02
"Department for Business, Energy and Industrial Strategy",The Coal Authority,01/12/2021,eCommerce Commission Charges,Mining Reports,Worldpay Limited,123601,280.23
"Department for Business, Energy and Industrial Strategy",The Coal Authority,31/08/2021,eCommerce Commission Charges,Records Management,Worldpay,123563,15.00
"Department for Business, Energy and Industrial Strategy",The Coal Authority,28/02/2022,eCommerce Commission Charges,Records Management,Worldpay,123993,15.00
"Department for Business, Energy and Industrial Strategy",The Coal Authority,09/12/2021,Electricity Usage,Facilities,Edf Energy,122637,"13,226.20"
"Department for Business, Energy and Industrial Strategy",The Coal Authority,04/02/2022,Electricity Usage,Facilities,Edf Energy,122679,"31,529.15"
"Department for Business, Energy and Industrial Strategy",The Coal Authority,04/03/2022,Electricity Usage,Facilities,Edf Energy,123558,"25,073.62"
"Department for Business, Energy and Industrial Strategy",The Coal Authority,23/02/2022,External Agency / Introduction Fees,"Health, Safety & Wellbeing",Distinct Recruitment,123224,624.11
"Department for Business, Energy and Industrial Strategy",The Coal Authority,28/02/2022,External Agency / Introduction Fees,"Health, Safety & Wellbeing",Distinct Recruitment,123226,689.31
"Department for Business, Energy and Industrial Strategy",The Coal Authority,09/03/2022,External Agency / Introduction Fees,"Health, Safety & Wellbeing",Distinct Recruitment,124284,493.70
"Department for Business, Energy and Industrial Strategy",The Coal Authority,14/03/2022,External Agency / Introduction Fees,People & Organisational Development,Distinct Recruitment,124705,"3,030.00"
"Department for Business, Energy and Industrial Strategy",The Coal Authority,20/10/2021,Fares - Public Transport,DEV - Property Management,Government Procurement Card,125078,10.20
"Department for Business, Energy and Industrial Strategy",The Coal Authority,21/10/2021,Fares - Public Transport,DEV - Property Management,Government Procurement Card,125078,22.00
"Department for Business, Energy and Industrial Strategy",The Coal Authority,20/01/2022,Fares - Rail,DEV - Property Management,Staff Expenses Control,123115,49.25
"Department for Business, Energy and Industrial Strategy",The Coal Authority,27/01/2022,Fares - Rail,DEV - Property Management,Staff Expenses Control,123115,49.25
"Department for Business, Energy and Industrial Strategy",The Coal Authority,03/02/2022,Fares - Rail,DEV - Property Management,Staff Expenses Control,123115,49.25
"Department for Business, Energy and Industrial Strategy",The Coal Authority,10/02/2022,Fares - Rail,DEV - Property Management,Staff Expenses Control,123115,38.80
"Department for Business, Energy and Industrial Strategy",The Coal Authority,10/02/2022,Fares - Rail,Engineering,Staff Expenses Control,124979,41.10
"Department for Business, Energy and Industrial Strategy",The Coal Authority,28/02/2022,Fares - Rail,Finance,Corporate Travel Management North,124021,616.65
"Department for Business, Energy and Industrial Strategy",The Coal Authority,23/11/2021,Fares - Rail,PS&S - General Claims,Government Procurement Card,125123,13.90
"Department for Business, Energy and Industrial Strategy",The Coal Authority,24/11/2021,Fares - Rail,PS&S - General Claims,Government Procurement Card,125123,5.50
"Department for Business, Energy and Industrial Strategy",The Coal Authority,15/03/2022,Fares - Rail,Tips Response,Staff Expenses Control,124979,5.20
"Department for Business, Energy and Industrial Strategy",The Coal Authority,10/02/2022,Fuel (Vehicle),DEFRA LEP Funding,Government Procurement Card,125082,45.21
"Department for Business, Energy and Industrial Strategy",The Coal Authority,14/02/2022,Fuel (Vehicle),DEFRA LEP Funding,Government Procurement Card,125082,42.57
"Department for Business, Energy and Industrial Strategy",The Coal Authority,20/02/2022,Fuel (Vehicle),DEFRA LEP Funding,Government Procurement Card,125082,38.77
"Department for Business, Energy and Industrial Strategy",The Coal Authority,13/12/2021,Fuel (Vehicle),DEFRA Metal Mine Programme,Government Procurement Card,125080,49.98
"Department for Business, Energy and Industrial Strategy",The Coal Authority,16/12/2021,Fuel (Vehicle),DEFRA Metal Mine Programme,Government Procurement Card,125080,45.17
"Department for Business, Energy and Industrial Strategy",The Coal Authority,29/12/2021,Fuel (Vehicle),DEFRA Metal Mine Programme,Government Procurement Card,125080,57.60
"Department for Business, Energy and Industrial Strategy",The Coal Authority,08/02/2022,Fuel (Vehicle),DEFRA Metal Mine Programme,Government Procurement Card,125082,35.96
"Department for Business, Energy and Industrial Strategy",The Coal Authority,21/02/2022,Fuel (Vehicle),DEFRA Metal Mine Programme,Government Procurement Card,125082,55.71
"Department for Business, Energy and Industrial Strategy",The Coal Authority,13/01/2022,Fuel (Vehicle),Engineering,Government Procurement Card,125081,35.15
"Department for Business, Energy and Industrial Strategy",The Coal Authority,28/01/2022,Fuel (Vehicle),ENV - Mine Water Operations,Government Procurement Card,125081,36.04
"Department for Business, Energy and Industrial Strategy",The Coal Authority,31/01/2022,Fuel (Vehicle),ENV - Mine Water Operations,Government Procurement Card,125081,24.15
"Department for Business, Energy and Industrial Strategy",The Coal Authority,04/02/2022,Fuel (Vehicle),ENV - Mine Water Operations,Government Procurement Card,125082,36.39
"Department for Business, Energy and Industrial Strategy",The Coal Authority,07/02/2022,Fuel (Vehicle),ENV - Mine Water Operations,Government Procurement Card,125082,46.04
"Department for Business, Energy and Industrial Strategy",The Coal Authority,09/02/2022,Fuel (Vehicle),ENV - Mine Water Operations,Government Procurement Card,125082,63.83
"Department for Business, Energy and Industrial Strategy",The Coal Authority,24/02/2022,Fuel (Vehicle),ENV - Mine Water Operations,Government Procurement Card,125082,39.45
"Department for Business, Energy and Industrial Strategy",The Coal Authority,02/03/2022,Fuel (Vehicle),ENV - Mine Water Operations,Government Procurement Card,125082,56.62
"Department for Business, Energy and Industrial Strategy",The Coal Authority,09/03/2022,Fuel (Vehicle),ENV - Projects & Delivery,Allstar Business Solutions Ltd,123741,38.62
"Department for Business, Energy and Industrial Strategy",The Coal Authority,19/01/2022,Fuel (Vehicle),ENV - Projects & Delivery,Government Procurement Card,125081,31.08
"Department for Business, Energy and Industrial Strategy",The Coal Authority,01/03/2022,Fuel (Vehicle),ENV - Projects & Delivery,Government Procurement Card,125082,25.00
"Department for Business, Energy and Industrial Strategy",The Coal Authority,22/12/2021,Fuel (Vehicle),ENV - Technical,Government Procurement Card,125080,52.68
"Department for Business, Energy and Industrial Strategy",The Coal Authority,23/12/2021,Fuel (Vehicle),ENV - Technical,Government Procurement Card,125080,41.08
"Department for Business, Energy and Industrial Strategy",The Coal Authority,22/02/2022,Fuel (Vehicle),ENV - Technical,Government Procurement Card,125082,24.63
"Department for Business, Energy and Industrial Strategy",The Coal Authority,02/02/2022,Fuel (Vehicle),Facilities,Allstar Business Solutions Ltd,122734,24.43
"Department for Business, Energy and Industrial Strategy",The Coal Authority,02/02/2022,Fuel (Vehicle),Facilities,Allstar Business Solutions Ltd,122734,25.25
"Department for Business, Energy and Industrial Strategy",The Coal Authority,02/02/2022,Fuel (Vehicle),Facilities,Allstar Business Solutions Ltd,122734,54.37
"Department for Business, Energy and Industrial Strategy",The Coal Authority,02/02/2022,Fuel (Vehicle),Facilities,Allstar Business Solutions Ltd,122734,125.90
"Department for Business, Energy and Industrial Strategy",The Coal Authority,02/02/2022,Fuel (Vehicle),Facilities,Allstar Business Solutions Ltd,122734,56.17
"Department for Business, Energy and Industrial Strategy",The Coal Authority,02/02/2022,Fuel (Vehicle),Facilities,Allstar Business Solutions Ltd,122734,1.90
"Department for Business, Energy and Industrial Strategy",The Coal Authority,09/02/2022,Fuel (Vehicle),Facilities,Allstar Business Solutions Ltd,122735,38.34
"Department for Business, Energy and Industrial Strategy",The Coal Authority,09/02/2022,Fuel (Vehicle),Facilities,Allstar Business Solutions Ltd,122735,37.51
"Department for Business, Energy and Industrial Strategy",The Coal Authority,09/02/2022,Fuel (Vehicle),Facilities,Allstar Business Solutions Ltd,122735,52.26
"Department for Business, Energy and Industrial Strategy",The Coal Authority,09/02/2022,Fuel (Vehicle),Facilities,Allstar Business Solutions Ltd,122735,48.76
"Department for Business, Energy and Industrial Strategy",The Coal Authority,09/02/2022,Fuel (Vehicle),Facilities,Allstar Business Solutions Ltd,122735,3.80
"Department for Business, Energy and Industrial Strategy",The Coal Authority,26/01/2022,Fuel (Vehicle),Facilities,Allstar Business Solutions Ltd,122737,43.03
"Department for Business, Energy and Industrial Strategy",The Coal Authority,26/01/2022,Fuel (Vehicle),Facilities,Allstar Business Solutions Ltd,122737,53.23
"Department for Business, Energy and Industrial Strategy",The Coal Authority,26/01/2022,Fuel (Vehicle),Facilities,Allstar Business Solutions Ltd,122737,56.42
"Department for Business, Energy and Industrial Strategy",The Coal Authority,26/01/2022,Fuel (Vehicle),Facilities,Allstar Business Solutions Ltd,122737,45.70
"Department for Business, Energy and Industrial Strategy",The Coal Authority,26/01/2022,Fuel (Vehicle),Facilities,Allstar Business Solutions Ltd,122737,3.80
"Department for Business, Energy and Industrial Strategy",The Coal Authority,09/03/2022,Fuel (Vehicle),Facilities,Allstar Business Solutions Ltd,123960,82.94
"Department for Business, Energy and Industrial Strategy",The Coal Authority,09/03/2022,Fuel (Vehicle),Facilities,Allstar Business Solutions Ltd,123960,72.50
"Department for Business, Energy and Industrial Strategy",The Coal Authority,09/03/2022,Fuel (Vehicle),Facilities,Allstar Business Solutions Ltd,123960,69.67
"Department for Business, Energy and Industrial Strategy",The Coal Authority,09/03/2022,Fuel (Vehicle),Facilities,Allstar Business Solutions Ltd,123960,64.00
"Department for Business, Energy and Industrial Strategy",The Coal Authority,09/03/2022,Fuel (Vehicle),Facilities,Allstar Business Solutions Ltd,123960,53.63
"Department for Business, Energy and Industrial Strategy",The Coal Authority,09/03/2022,Fuel (Vehicle),Facilities,Allstar Business Solutions Ltd,123960,61.03
"Department for Business, Energy and Industrial Strategy",The Coal Authority,09/03/2022,Fuel (Vehicle),Facilities,Allstar Business Solutions Ltd,123960,3.80
"Department for Business, Energy and Industrial Strategy",The Coal Authority,02/03/2022,Fuel (Vehicle),Facilities,Allstar Business Solutions Ltd,123961,42.53
"Department for Business, Energy and Industrial Strategy",The Coal Authority,02/03/2022,Fuel (Vehicle),Facilities,Allstar Business Solutions Ltd,123961,36.75
"Department for Business, Energy and Industrial Strategy",The Coal Authority,02/03/2022,Fuel (Vehicle),Facilities,Allstar Business Solutions Ltd,123961,40.37
"Department for Business, Energy and Industrial Strategy",The Coal Authority,02/03/2022,Fuel (Vehicle),Facilities,Allstar Business Solutions Ltd,123961,44.33
"Department for Business, Energy and Industrial Strategy",The Coal Authority,16/02/2022,Fuel (Vehicle),Facilities,Allstar Business Solutions Ltd,123962,99.88
"Department for Business, Energy and Industrial Strategy",The Coal Authority,16/02/2022,Fuel (Vehicle),Facilities,Allstar Business Solutions Ltd,123962,66.65
"Department for Business, Energy and Industrial Strategy",The Coal Authority,16/02/2022,Fuel (Vehicle),Facilities,Allstar Business Solutions Ltd,123962,37.63
"Department for Business, Energy and Industrial Strategy",The Coal Authority,16/02/2022,Fuel (Vehicle),Facilities,Allstar Business Solutions Ltd,123962,16.83
"Department for Business, Energy and Industrial Strategy",The Coal Authority,16/02/2022,Fuel (Vehicle),Facilities,Allstar Business Solutions Ltd,123962,51.64
"Department for Business, Energy and Industrial Strategy",The Coal Authority,16/02/2022,Fuel (Vehicle),Facilities,Allstar Business Solutions Ltd,123962,53.88
"Department for Business, Energy and Industrial Strategy",The Coal Authority,16/02/2022,Fuel (Vehicle),Facilities,Allstar Business Solutions Ltd,123962,3.80
"Department for Business, Energy and Industrial Strategy",The Coal Authority,23/02/2022,Fuel (Vehicle),Facilities,Allstar Business Solutions Ltd,123963,51.96
"Department for Business, Energy and Industrial Strategy",The Coal Authority,23/02/2022,Fuel (Vehicle),Facilities,Allstar Business Solutions Ltd,123963,12.93
"Department for Business, Energy and Industrial Strategy",The Coal Authority,23/02/2022,Fuel (Vehicle),Facilities,Allstar Business Solutions Ltd,123963,45.48
"Department for Business, Energy and Industrial Strategy",The Coal Authority,16/03/2022,Fuel (Vehicle),Facilities,Allstar Business Solutions Ltd,124293,60.83
"Department for Business, Energy and Industrial Strategy",The Coal Authority,16/03/2022,Fuel (Vehicle),Facilities,Allstar Business Solutions Ltd,124293,43.34
"Department for Business, Energy and Industrial Strategy",The Coal Authority,16/03/2022,Fuel (Vehicle),Facilities,Allstar Business Solutions Ltd,124293,119.53
"Department for Business, Energy and Industrial Strategy",The Coal Authority,16/03/2022,Fuel (Vehicle),Facilities,Allstar Business Solutions Ltd,124293,52.03
"Department for Business, Energy and Industrial Strategy",The Coal Authority,16/03/2022,Fuel (Vehicle),Facilities,Allstar Business Solutions Ltd,124293,63.86
"Department for Business, Energy and Industrial Strategy",The Coal Authority,16/03/2022,Fuel (Vehicle),Facilities,Allstar Business Solutions Ltd,124293,52.67
"Department for Business, Energy and Industrial Strategy",The Coal Authority,16/03/2022,Fuel (Vehicle),Facilities,Allstar Business Solutions Ltd,124293,5.70
"Department for Business, Energy and Industrial Strategy",The Coal Authority,23/03/2022,Fuel (Vehicle),Facilities,Allstar Business Solutions Ltd,125122,53.03
"Department for Business, Energy and Industrial Strategy",The Coal Authority,23/03/2022,Fuel (Vehicle),Facilities,Allstar Business Solutions Ltd,125122,46.56
"Department for Business, Energy and Industrial Strategy",The Coal Authority,23/03/2022,Fuel (Vehicle),Facilities,Allstar Business Solutions Ltd,125122,10.67
"Department for Business, Energy and Industrial Strategy",The Coal Authority,23/03/2022,Fuel (Vehicle),Facilities,Allstar Business Solutions Ltd,125122,1.90
"Department for Business, Energy and Industrial Strategy",The Coal Authority,23/03/2022,Fuel (Vehicle),Facilities,Allstar Business Solutions Ltd,125122,91.98
"Department for Business, Energy and Industrial Strategy",The Coal Authority,23/03/2022,Fuel (Vehicle),Facilities,Allstar Business Solutions Ltd,125122,73.83
"Department for Business, Energy and Industrial Strategy",The Coal Authority,15/03/2022,Fuel (Vehicle),NRW Metal Mine Programme,Staff Expenses Control,124381,72.58
"Department for Business, Energy and Industrial Strategy",The Coal Authority,16/03/2022,Fuel (Vehicle),NRW Metal Mine Programme,Staff Expenses Control,124381,20.85
"Department for Business, Energy and Industrial Strategy",The Coal Authority,17/02/2022,Fuel (Vehicle),NRW Metal Mine Programme,Staff Expenses Control,124979,33.50
"Department for Business, Energy and Industrial Strategy",The Coal Authority,02/03/2022,Fuel (Vehicle),NRW Metal Mine Programme,Staff Expenses Control,124979,41.68
"Department for Business, Energy and Industrial Strategy",The Coal Authority,15/03/2022,Fuel (Vehicle),NRW Metal Mine Programme,Staff Expenses Control,124979,47.36
"Department for Business, Energy and Industrial Strategy",The Coal Authority,06/02/2022,Fuel (Vehicle),Other Customers,Government Procurement Card,125082,25.00
"Department for Business, Energy and Industrial Strategy",The Coal Authority,16/02/2022,Fuel (Vehicle),Other Customers,Government Procurement Card,125082,47.18
"Department for Business, Energy and Industrial Strategy",The Coal Authority,25/02/2022,Fuel (Vehicle),Other Customers,Government Procurement Card,125082,48.04
"Department for Business, Energy and Industrial Strategy",The Coal Authority,01/03/2022,Fuel (Vehicle),Other Customers,Staff Expenses Control,123774,43.21
"Department for Business, Energy and Industrial Strategy",The Coal Authority,06/03/2022,Fuel (Vehicle),Other Customers,Staff Expenses Control,123774,51.34
"Department for Business, Energy and Industrial Strategy",The Coal Authority,09/03/2022,Fuel (Vehicle),Other Customers,Staff Expenses Control,123774,50.01
"Department for Business, Energy and Industrial Strategy",The Coal Authority,16/03/2022,Fuel (Vehicle),Other Customers,Staff Expenses Control,124979,41.83
"Department for Business, Energy and Industrial Strategy",The Coal Authority,19/03/2022,Fuel (Vehicle),Other Customers,Staff Expenses Control,124979,23.33
"Department for Business, Energy and Industrial Strategy",The Coal Authority,19/03/2022,Fuel (Vehicle),Other Customers,Staff Expenses Control,124979,56.01
"Department for Business, Energy and Industrial Strategy",The Coal Authority,16/02/2022,Fuel (Vehicle),PS&S - General Claims,Allstar Business Solutions Ltd,122736,39.83
"Department for Business, Energy and Industrial Strategy",The Coal Authority,16/02/2022,Fuel (Vehicle),PS&S - General Claims,Allstar Business Solutions Ltd,122736,40.39
"Department for Business, Energy and Industrial Strategy",The Coal Authority,16/02/2022,Fuel (Vehicle),PS&S - General Claims,Allstar Business Solutions Ltd,122736,65.62
"Department for Business, Energy and Industrial Strategy",The Coal Authority,16/02/2022,Fuel (Vehicle),PS&S - General Claims,Allstar Business Solutions Ltd,122736,9.50
"Department for Business, Energy and Industrial Strategy",The Coal Authority,02/03/2022,Fuel (Vehicle),PS&S - General Claims,Allstar Business Solutions Ltd,123848,32.93
"Department for Business, Energy and Industrial Strategy",The Coal Authority,02/03/2022,Fuel (Vehicle),PS&S - General Claims,Allstar Business Solutions Ltd,123848,11.40
"Department for Business, Energy and Industrial Strategy",The Coal Authority,02/03/2022,Fuel (Vehicle),PS&S - General Claims,Allstar Business Solutions Ltd,123848,35.00
"Department for Business, Energy and Industrial Strategy",The Coal Authority,02/03/2022,Fuel (Vehicle),PS&S - General Claims,Allstar Business Solutions Ltd,123848,149.59
"Department for Business, Energy and Industrial Strategy",The Coal Authority,02/03/2022,Fuel (Vehicle),PS&S - General Claims,Allstar Business Solutions Ltd,123848,58.33
"Department for Business, Energy and Industrial Strategy",The Coal Authority,02/03/2022,Fuel (Vehicle),PS&S - General Claims,Allstar Business Solutions Ltd,123848,59.42
"Department for Business, Energy and Industrial Strategy",The Coal Authority,09/03/2022,Fuel (Vehicle),PS&S - General Claims,Allstar Business Solutions Ltd,123849,40.58
"Department for Business, Energy and Industrial Strategy",The Coal Authority,09/03/2022,Fuel (Vehicle),PS&S - General Claims,Allstar Business Solutions Ltd,123849,99.18
"Department for Business, Energy and Industrial Strategy",The Coal Authority,09/03/2022,Fuel (Vehicle),PS&S - General Claims,Allstar Business Solutions Ltd,123849,38.35
"Department for Business, Energy and Industrial Strategy",The Coal Authority,09/03/2022,Fuel (Vehicle),PS&S - General Claims,Allstar Business Solutions Ltd,123849,42.78
"Department for Business, Energy and Industrial Strategy",The Coal Authority,09/03/2022,Fuel (Vehicle),PS&S - General Claims,Allstar Business Solutions Ltd,123849,125.01
"Department for Business, Energy and Industrial Strategy",The Coal Authority,09/03/2022,Fuel (Vehicle),PS&S - General Claims,Allstar Business Solutions Ltd,123849,7.60
"Department for Business, Energy and Industrial Strategy",The Coal Authority,16/03/2022,Fuel (Vehicle),PS&S - General Claims,Allstar Business Solutions Ltd,124252,48.34
"Department for Business, Energy and Industrial Strategy",The Coal Authority,16/03/2022,Fuel (Vehicle),PS&S - General Claims,Allstar Business Solutions Ltd,124252,35.01
"Department for Business, Energy and Industrial Strategy",The Coal Authority,16/03/2022,Fuel (Vehicle),PS&S - General Claims,Allstar Business Solutions Ltd,124252,58.31
"Department for Business, Energy and Industrial Strategy",The Coal Authority,16/03/2022,Fuel (Vehicle),PS&S - General Claims,Allstar Business Solutions Ltd,124252,41.10
"Department for Business, Energy and Industrial Strategy",The Coal Authority,16/03/2022,Fuel (Vehicle),PS&S - General Claims,Allstar Business Solutions Ltd,124252,82.50
"Department for Business, Energy and Industrial Strategy",The Coal Authority,16/03/2022,Fuel (Vehicle),PS&S - General Claims,Allstar Business Solutions Ltd,124252,53.43
"Department for Business, Energy and Industrial Strategy",The Coal Authority,16/03/2022,Fuel (Vehicle),PS&S - General Claims,Allstar Business Solutions Ltd,124252,9.50
"Department for Business, Energy and Industrial Strategy",The Coal Authority,23/03/2022,Fuel (Vehicle),PS&S - General Claims,Allstar Business Solutions Ltd,124809,45.58
"Department for Business, Energy and Industrial Strategy",The Coal Authority,23/03/2022,Fuel (Vehicle),PS&S - General Claims,Allstar Business Solutions Ltd,124809,37.51
"Department for Business, Energy and Industrial Strategy",The Coal Authority,23/03/2022,Fuel (Vehicle),PS&S - General Claims,Allstar Business Solutions Ltd,124809,76.21
"Department for Business, Energy and Industrial Strategy",The Coal Authority,23/03/2022,Fuel (Vehicle),PS&S - General Claims,Allstar Business Solutions Ltd,124809,105.90
"Department for Business, Energy and Industrial Strategy",The Coal Authority,23/03/2022,Fuel (Vehicle),PS&S - General Claims,Allstar Business Solutions Ltd,124809,46.80
"Department for Business, Energy and Industrial Strategy",The Coal Authority,23/03/2022,Fuel (Vehicle),PS&S - General Claims,Allstar Business Solutions Ltd,124809,65.18
"Department for Business, Energy and Industrial Strategy",The Coal Authority,23/03/2022,Fuel (Vehicle),PS&S - General Claims,Allstar Business Solutions Ltd,124809,71.23
"Department for Business, Energy and Industrial Strategy",The Coal Authority,23/03/2022,Fuel (Vehicle),PS&S - General Claims,Allstar Business Solutions Ltd,124809,50.40
"Department for Business, Energy and Industrial Strategy",The Coal Authority,23/03/2022,Fuel (Vehicle),PS&S - General Claims,Allstar Business Solutions Ltd,124809,15.20
"Department for Business, Energy and Industrial Strategy",The Coal Authority,15/02/2022,Fuel (Vehicle),PS&S - General Claims,Government Procurement Card,125082,54.17
"Department for Business, Energy and Industrial Strategy",The Coal Authority,17/02/2022,Fuel (Vehicle),PS&S - General Claims,Government Procurement Card,125082,51.33
"Department for Business, Energy and Industrial Strategy",The Coal Authority,04/03/2022,Fuel (Vehicle),PS&S - General Claims,Irrecoverable VAT on personal mileage-PM,123044,13.95
"Department for Business, Energy and Industrial Strategy",The Coal Authority,08/02/2022,Fuel (Vehicle),PS&S - Industry Claims,Government Procurement Card,125082,31.17
"Department for Business, Energy and Industrial Strategy",The Coal Authority,14/02/2022,Fuel (Vehicle),PS&S - Industry Claims,Government Procurement Card,125082,47.52
"Department for Business, Energy and Industrial Strategy",The Coal Authority,28/02/2022,Fuel (Vehicle),PS&S - Industry Claims,Government Procurement Card,125082,63.12
"Department for Business, Energy and Industrial Strategy",The Coal Authority,04/03/2022,Fuel (Vehicle),PS&S - Industry Claims,Irrecoverable VAT on personal mileage-PM,123044,8.13
"Department for Business, Energy and Industrial Strategy",The Coal Authority,01/01/2022,Fuel (Vehicle),PS&S - Industry Claims,Staff Expenses Control,123774,49.35
"Department for Business, Energy and Industrial Strategy",The Coal Authority,12/01/2022,Fuel (Vehicle),PS&S - Industry Claims,Staff Expenses Control,123774,16.67
"Department for Business, Energy and Industrial Strategy",The Coal Authority,27/01/2022,Fuel (Vehicle),PS&S - Industry Claims,Staff Expenses Control,123774,35.67
"Department for Business, Energy and Industrial Strategy",The Coal Authority,04/02/2022,Fuel (Vehicle),PS&S - Industry Claims,Staff Expenses Control,123774,62.09
"Department for Business, Energy and Industrial Strategy",The Coal Authority,09/02/2022,Fuel (Vehicle),PS&S - Industry Claims,Staff Expenses Control,123774,58.23
"Department for Business, Energy and Industrial Strategy",The Coal Authority,17/02/2022,Fuel (Vehicle),PS&S - Industry Claims,Staff Expenses Control,123774,38.60
"Department for Business, Energy and Industrial Strategy",The Coal Authority,21/02/2022,Fuel (Vehicle),PS&S - Industry Claims,Staff Expenses Control,123774,54.19
"Department for Business, Energy and Industrial Strategy",The Coal Authority,22/02/2022,Fuel (Vehicle),PS&S - Industry Claims,Staff Expenses Control,123774,28.64
"Department for Business, Energy and Industrial Strategy",The Coal Authority,25/02/2022,Fuel (Vehicle),PS&S - Industry Claims,Staff Expenses Control,123774,46.87
"Department for Business, Energy and Industrial Strategy",The Coal Authority,16/02/2022,Fuel (Vehicle),Tips Response,Allstar Business Solutions Ltd,122736,72.49
"Department for Business, Energy and Industrial Strategy",The Coal Authority,16/02/2022,Fuel (Vehicle),Tips Response,Allstar Business Solutions Ltd,122736,53.38
"Department for Business, Energy and Industrial Strategy",The Coal Authority,02/03/2022,Fuel (Vehicle),Tips Response,Allstar Business Solutions Ltd,123848,47.80
"Department for Business, Energy and Industrial Strategy",The Coal Authority,02/03/2022,Fuel (Vehicle),Tips Response,Allstar Business Solutions Ltd,123848,35.90
"Department for Business, Energy and Industrial Strategy",The Coal Authority,09/03/2022,Fuel (Vehicle),Tips Response,Allstar Business Solutions Ltd,123849,66.93
"Department for Business, Energy and Industrial Strategy",The Coal Authority,09/03/2022,Fuel (Vehicle),Tips Response,Allstar Business Solutions Ltd,123849,54.26
"Department for Business, Energy and Industrial Strategy",The Coal Authority,16/03/2022,Fuel (Vehicle),Tips Response,Allstar Business Solutions Ltd,124252,41.49
"Department for Business, Energy and Industrial Strategy",The Coal Authority,16/03/2022,Fuel (Vehicle),Tips Response,Allstar Business Solutions Ltd,124252,58.22
"Department for Business, Energy and Industrial Strategy",The Coal Authority,04/03/2022,Fuel (Vehicle),Tips Response,Irrecoverable VAT on personal mileage-PM,123044,0.72
"Department for Business, Energy and Industrial Strategy",The Coal Authority,23/02/2022,Gas / Other Fuels,"Health, Safety & Wellbeing",Ribble Enviro Ltd,124051,"7,840.00"
"Department for Business, Energy and Industrial Strategy",The Coal Authority,21/02/2022,Hardware Equipment & Support,DIG - Service & Assurance,Canon (Uk) Ltd,122792,70.50
"Department for Business, Energy and Industrial Strategy",The Coal Authority,18/01/2022,Hardware Equipment & Support,DIG - Service & Assurance,Government Procurement Card,125081,124.99
"Department for Business, Energy and Industrial Strategy",The Coal Authority,21/01/2022,Hardware Equipment & Support,DIG - Service & Assurance,Government Procurement Card,125081,710.83
"Department for Business, Energy and Industrial Strategy",The Coal Authority,04/03/2022,Hardware Equipment & Support,DIG - Technical Delivery,WCL UK Ltd (trading as Everything ICT),124098,"39,400.00"
"Department for Business, Energy and Industrial Strategy",The Coal Authority,21/02/2022,Hotel & Accommodation,DEFRA Metal Mine Programme,Government Procurement Card,125082,60.44
"Department for Business, Energy and Industrial Strategy",The Coal Authority,22/02/2022,Hotel & Accommodation,DEFRA Metal Mine Programme,Government Procurement Card,125082,4.50
"Department for Business, Energy and Industrial Strategy",The Coal Authority,03/02/2022,Hotel & Accommodation,Executive Assistants,Government Procurement Card,125082,85.57
"Department for Business, Energy and Industrial Strategy",The Coal Authority,28/02/2022,Hotel & Accommodation,Finance,Corporate Travel Management North,124021,"2,771.40"
"Department for Business, Energy and Industrial Strategy",The Coal Authority,28/02/2022,Hotel & Accommodation,Finance,Corporate Travel Management North,124021,17.01
"Department for Business, Energy and Industrial Strategy",The Coal Authority,02/03/2022,Hotel & Accommodation,Innovation By-Product & Services Delivery,Staff Expenses Control,123774,75.00
"Department for Business, Energy and Industrial Strategy",The Coal Authority,10/02/2022,Hotel & Accommodation,Other Customers,Government Procurement Card,125082,115.56
"Department for Business, Energy and Industrial Strategy",The Coal Authority,11/02/2022,Hotel & Accommodation,Other Customers,Government Procurement Card,125082,115.20
"Department for Business, Energy and Industrial Strategy",The Coal Authority,12/02/2022,Hotel & Accommodation,Other Customers,Staff Expenses Control,123115,34.57
"Department for Business, Energy and Industrial Strategy",The Coal Authority,01/03/2022,Hotel & Accommodation,PS&S - General Claims,Government Procurement Card,125082,13.33
"Department for Business, Energy and Industrial Strategy",The Coal Authority,02/03/2022,Incidentals,Community Response,Staff Expenses Control,123115,8.33
"Department for Business, Energy and Industrial Strategy",The Coal Authority,01/03/2022,Incidentals,Customer Services & Strategy,Security Plus Limited,123196,13.36
"Department for Business, Energy and Industrial Strategy",The Coal Authority,29/12/2021,Incidentals,DEFRA Metal Mine Programme,Government Procurement Card,125080,4.17
"Department for Business, Energy and Industrial Strategy",The Coal Authority,08/02/2022,Incidentals,DEFRA Metal Mine Programme,Government Procurement Card,125082,4.00
"Department for Business, Energy and Industrial Strategy",The Coal Authority,21/10/2021,Incidentals,DEV - Property Management,Government Procurement Card,125078,17.08
"Department for Business, Energy and Industrial Strategy",The Coal Authority,24/02/2022,Incidentals,Engineering,Staff Expenses Control,123115,4.28
"Department for Business, Energy and Industrial Strategy",The Coal Authority,03/03/2022,Incidentals,Engineering,Staff Expenses Control,123115,4.28
"Department for Business, Energy and Industrial Strategy",The Coal Authority,10/03/2022,Incidentals,Engineering,Staff Expenses Control,124979,4.28
"Department for Business, Energy and Industrial Strategy",The Coal Authority,17/03/2022,Incidentals,Engineering,Staff Expenses Control,124979,4.28
"Department for Business, Energy and Industrial Strategy",The Coal Authority,22/12/2021,Incidentals,ENV - Technical,Government Procurement Card,125080,5.83
"Department for Business, Energy and Industrial Strategy",The Coal Authority,03/02/2022,Incidentals,ENV - Technical,Government Procurement Card,125082,43.33
"Department for Business, Energy and Industrial Strategy",The Coal Authority,09/02/2022,Incidentals,Executive,Government Procurement Card,125082,40.00
"Department for Business, Energy and Industrial Strategy",The Coal Authority,10/02/2022,Incidentals,Executive,Government Procurement Card,125082,11.67
"Department for Business, Energy and Industrial Strategy",The Coal Authority,12/02/2022,Incidentals,Executive,Government Procurement Card,125082,3.80
"Department for Business, Energy and Industrial Strategy",The Coal Authority,02/03/2022,Incidentals,Executive,Government Procurement Card,125082,10.42
"Department for Business, Energy and Industrial Strategy",The Coal Authority,21/01/2022,Incidentals,Executive,Staff Expenses Control,123774,10.42
"Department for Business, Energy and Industrial Strategy",The Coal Authority,23/02/2022,Incidentals,Finance,Staff Expenses Control,123774,4.96
"Department for Business, Energy and Industrial Strategy",The Coal Authority,02/03/2022,Incidentals,Heat & By-Product Innovation,Government Procurement Card,125082,8.33
"Department for Business, Energy and Industrial Strategy",The Coal Authority,01/03/2022,Incidentals,Innovation By-Product & Services Delivery,Government Procurement Card,125082,3.80
"Department for Business, Energy and Industrial Strategy",The Coal Authority,14/03/2022,Incidentals,Innovation By-Product & Services Delivery,Staff Expenses Control,124979,1.90
"Department for Business, Energy and Industrial Strategy",The Coal Authority,14/03/2022,Incidentals,Innovation By-Product & Services Delivery,Staff Expenses Control,124979,1.90
"Department for Business, Energy and Industrial Strategy",The Coal Authority,10/02/2022,Incidentals,NRW Metal Mine Programme,Government Procurement Card,125082,1.50
"Department for Business, Energy and Industrial Strategy",The Coal Authority,10/02/2022,Incidentals,NRW Metal Mine Programme,Government Procurement Card,125082,4.17
"Department for Business, Energy and Industrial Strategy",The Coal Authority,10/02/2022,Incidentals,NRW Metal Mine Programme,Government Procurement Card,125082,5.83
"Department for Business, Energy and Industrial Strategy",The Coal Authority,24/02/2022,Incidentals,Other Customers,Staff Expenses Control,123115,51.26
"Department for Business, Energy and Industrial Strategy",The Coal Authority,03/02/2022,Incidentals,PS&S - General Claims,Government Procurement Card,125082,4.17
"Department for Business, Energy and Industrial Strategy",The Coal Authority,15/02/2022,Incidentals,PS&S - General Claims,Government Procurement Card,125082,3.17
"Department for Business, Energy and Industrial Strategy",The Coal Authority,17/02/2022,Incidentals,PS&S - General Claims,Government Procurement Card,125082,3.20
"Department for Business, Energy and Industrial Strategy",The Coal Authority,17/02/2022,Incidentals,PS&S - General Claims,Government Procurement Card,125082,1.59
"Department for Business, Energy and Industrial Strategy",The Coal Authority,17/02/2022,Incidentals,PS&S - General Claims,Government Procurement Card,125082,1.59
"Department for Business, Energy and Industrial Strategy",The Coal Authority,22/02/2022,Incidentals,PS&S - General Claims,Government Procurement Card,125082,4.70
"Department for Business, Energy and Industrial Strategy",The Coal Authority,25/02/2022,Incidentals,PS&S - General Claims,Government Procurement Card,125082,2.92
"Department for Business, Energy and Industrial Strategy",The Coal Authority,02/03/2022,Incidentals,PS&S - General Claims,Government Procurement Card,125082,2.92
"Department for Business, Energy and Industrial Strategy",The Coal Authority,17/11/2021,Incidentals,PS&S - General Claims,Government Procurement Card,125123,5.67
"Department for Business, Energy and Industrial Strategy",The Coal Authority,18/11/2021,Incidentals,PS&S - General Claims,Government Procurement Card,125123,2.30
"Department for Business, Energy and Industrial Strategy",The Coal Authority,24/11/2021,Incidentals,PS&S - General Claims,Government Procurement Card,125123,51.25
"Department for Business, Energy and Industrial Strategy",The Coal Authority,21/02/2022,Incidentals,PS&S - Industry Claims,Government Procurement Card,125082,2.87
"Department for Business, Energy and Industrial Strategy",The Coal Authority,15/03/2022,Incidentals,Tip Management Services,Staff Expenses Control,124979,5.83
"Department for Business, Energy and Industrial Strategy",The Coal Authority,15/02/2022,Incidentals,Tips Response,Government Procurement Card,125082,14.00
"Department for Business, Energy and Industrial Strategy",The Coal Authority,01/03/2022,Information Security software consultancy,PS&S - General Claims,Government Procurement Card,125082,12.88
"Department for Business, Energy and Industrial Strategy",The Coal Authority,28/02/2022,Innovation Costs,Heat & By-Product Innovation,Carter Jonas,123252,"1,462.00"
"Department for Business, Energy and Industrial Strategy",The Coal Authority,14/03/2022,Innovation Costs,Heat & By-Product Innovation,Nerc,124505,"46,584.00"
"Department for Business, Energy and Industrial Strategy",The Coal Authority,10/03/2022,Innovation Costs,Heat & By-Product Innovation,Severn Trent Serv Ops Uk Ltd,123606,807.25
"Department for Business, Energy and Industrial Strategy",The Coal Authority,10/03/2022,Innovation Costs,Heat & By-Product Innovation,Severn Trent Serv Ops Uk Ltd,123606,174.37
"Department for Business, Energy and Industrial Strategy",The Coal Authority,10/03/2022,Innovation Costs,Heat & By-Product Innovation,Severn Trent Serv Ops Uk Ltd,123606,"4,751.92"
"Department for Business, Energy and Industrial Strategy",The Coal Authority,10/03/2022,Innovation Costs,Heat & By-Product Innovation,Severn Trent Serv Ops Uk Ltd,123606,96.67
"Department for Business, Energy and Industrial Strategy",The Coal Authority,11/03/2022,Innovation Costs,Heat & By-Product Innovation,Severn Trent Serv Ops Uk Ltd,123607,"-21,210.50"
"Department for Business, Energy and Industrial Strategy",The Coal Authority,10/03/2022,Innovation Costs,Innovation By-Product & Services Delivery,Severn Trent Serv Ops Uk Ltd,123606,187.79
"Department for Business, Energy and Industrial Strategy",The Coal Authority,22/03/2022,Innovation Costs,Innovation By-Product & Services Delivery,X-ray Mineral Services Ltd,125266,"1,557.50"
"Department for Business, Energy and Industrial Strategy",The Coal Authority,22/03/2022,Innovation Costs,Innovation By-Product & Services Delivery,X-ray Mineral Services Ltd,125266,"1,662.50"
"Department for Business, Energy and Industrial Strategy",The Coal Authority,21/03/2022,Insurance Premiums,Facilities,Arthur J. Gallagher Insurance Brokers Limited,124335,443.18
"Department for Business, Energy and Industrial Strategy",The Coal Authority,21/03/2022,Insurance Premiums,Facilities,Arthur J. Gallagher Insurance Brokers Limited,124335,53.18
"Department for Business, Energy and Industrial Strategy",The Coal Authority,08/02/2022,Internet Service Provider & Comms,Community Response,Government Procurement Card,125082,48.00
"Department for Business, Energy and Industrial Strategy",The Coal Authority,17/02/2022,Internet Service Provider & Comms,DIG - Technical Delivery,Government Procurement Card,125082,13.10
"Department for Business, Energy and Industrial Strategy",The Coal Authority,24/02/2022,Internet Service Provider & Comms,DIG - Technical Delivery,Government Procurement Card,125082,14.80
"Department for Business, Energy and Industrial Strategy",The Coal Authority,24/02/2022,Internet Service Provider & Comms,DIG - Technical Delivery,Government Procurement Card,125082,14.80
"Department for Business, Energy and Industrial Strategy",The Coal Authority,01/02/2022,Internet Service Provider & Comms,PS&S - General Claims,Government Procurement Card,125081,12.80
"Department for Business, Energy and Industrial Strategy",The Coal Authority,08/02/2022,Legal - General,Legal & Governance,Anderson Strathern,123823,65.00
"Department for Business, Energy and Industrial Strategy",The Coal Authority,08/02/2022,Legal - General,Legal & Governance,Anderson Strathern,123830,26.00
"Department for Business, Energy and Industrial Strategy",The Coal Authority,08/02/2022,Legal - General,Legal & Governance,Anderson Strathern,123831,117.00
"Department for Business, Energy and Industrial Strategy",The Coal Authority,08/02/2022,Legal - General,Legal & Governance,Anderson Strathern,123832,325.00
"Department for Business, Energy and Industrial Strategy",The Coal Authority,08/02/2022,Legal - General,Legal & Governance,Anderson Strathern,123833,78.00
"Department for Business, Energy and Industrial Strategy",The Coal Authority,14/03/2022,Legal - General,Legal & Governance,Anderson Strathern,124010,42.00
"Department for Business, Energy and Industrial Strategy",The Coal Authority,14/03/2022,Legal - General,Legal & Governance,Anderson Strathern,124011,198.00
"Department for Business, Energy and Industrial Strategy",The Coal Authority,14/03/2022,Legal - General,Legal & Governance,Anderson Strathern,124012,350.00
"Department for Business, Energy and Industrial Strategy",The Coal Authority,23/02/2022,Legal - General,Legal & Governance,Browne Jacobson Llp Client Account,122995,"1,450.00"
"Department for Business, Energy and Industrial Strategy",The Coal Authority,21/02/2022,Legal - General,Legal & Governance,Browne Jacobson Llp Client Account,122996,672.50
"Department for Business, Energy and Industrial Strategy",The Coal Authority,23/02/2022,Legal - General,Legal & Governance,Browne Jacobson Llp Client Account,122997,332.50
"Department for Business, Energy and Industrial Strategy",The Coal Authority,23/02/2022,Legal - General,Legal & Governance,Browne Jacobson Llp Client Account,122998,618.50
"Department for Business, Energy and Industrial Strategy",The Coal Authority,21/02/2022,Legal - General,Legal & Governance,Browne Jacobson Llp Client Account,122999,945.00
"Department for Business, Energy and Industrial Strategy",The Coal Authority,11/03/2022,Legal - General,Legal & Governance,Dla Piper Uk Llp,123664,352.90
"Department for Business, Energy and Industrial Strategy",The Coal Authority,11/03/2022,Legal - General,Legal & Governance,Dla Piper Uk Llp,123664,22.46
"Department for Business, Energy and Industrial Strategy",The Coal Authority,11/03/2022,Legal - General,Legal & Governance,Dla Piper Uk Llp,123907,"3,382.50"
"Department for Business, Energy and Industrial Strategy",The Coal Authority,11/03/2022,Legal - General,Legal & Governance,Dla Piper Uk Llp,123907,247.50
"Department for Business, Energy and Industrial Strategy",The Coal Authority,11/03/2022,Legal - General,Legal & Governance,Dla Piper Uk Llp,123907,330.00
"Department for Business, Energy and Industrial Strategy",The Coal Authority,11/03/2022,Legal - General,Legal & Governance,Dla Piper Uk Llp,123907,947.50
"Department for Business, Energy and Industrial Strategy",The Coal Authority,11/03/2022,Legal - General,Legal & Governance,Dla Piper Uk Llp,123907,"1,400.00"
"Department for Business, Energy and Industrial Strategy",The Coal Authority,11/03/2022,Legal - General,Legal & Governance,Dla Piper Uk Llp,123907,"1,400.00"
"Department for Business, Energy and Industrial Strategy",The Coal Authority,11/03/2022,Legal - General,Legal & Governance,Dla Piper Uk Llp,123907,20.00
"Department for Business, Energy and Industrial Strategy",The Coal Authority,11/03/2022,Legal - General,Legal & Governance,Dla Piper Uk Llp,123907,75.00
"Department for Business, Energy and Industrial Strategy",The Coal Authority,01/03/2022,Legal - General,Legal & Governance,Walker Morris,123358,"1,480.52"
"Department for Business, Energy and Industrial Strategy",The Coal Authority,01/03/2022,Legal - General,Legal & Governance,Walker Morris,123358,"7,649.68"
"Department for Business, Energy and Industrial Strategy",The Coal Authority,07/02/2022,Legal - General,Legal & Governance,Walker Morris,123520,"4,800.00"
"Department for Business, Energy and Industrial Strategy",The Coal Authority,25/02/2022,Legal - Property Title Search,Legal & Governance,Land Registry,123506,60.00
"Department for Business, Energy and Industrial Strategy",The Coal Authority,22/02/2022,Legal - Property Title Search,Legal & Governance,Land Registry,123507,21.00
"Department for Business, Energy and Industrial Strategy",The Coal Authority,11/02/2022,Legal - Property Title Search,Legal & Governance,Land Registry,123508,51.00
"Department for Business, Energy and Industrial Strategy",The Coal Authority,07/02/2022,Legal - Property Title Search,Legal & Governance,Land Registry,123509,28.00
"Department for Business, Energy and Industrial Strategy",The Coal Authority,04/03/2022,Legal - Property Title Search,Legal & Governance,Land Registry,124013,21.00
"Department for Business, Energy and Industrial Strategy",The Coal Authority,11/03/2022,Legal - Property Title Search,Legal & Governance,Land Registry,124568,83.00
"Department for Business, Energy and Industrial Strategy",The Coal Authority,18/02/2022,Legal - Property Title Search,Legal & Governance,Mda Searchflow Ltd,122832,293.83
"Department for Business, Energy and Industrial Strategy",The Coal Authority,05/01/2022,Legal - Property Title Search,Legal & Governance,Mda Searchflow Ltd,123900,433.50
"Department for Business, Energy and Industrial Strategy",The Coal Authority,16/03/2022,Legal - Property Title Search,Legal & Governance,Mda Searchflow Ltd,123908,-125.30
"Department for Business, Energy and Industrial Strategy",The Coal Authority,07/01/2022,Legal - Property Title Search,Legal & Governance,Mda Searchflow Ltd,124657,162.95
"Department for Business, Energy and Industrial Strategy",The Coal Authority,02/03/2022,Legal - Property Title Search,Legal & Governance,Mda Searchflow Ltd,124832,514.77
"Department for Business, Energy and Industrial Strategy",The Coal Authority,21/01/2022,Membership Subscriptions,DIG - Architecture,Government Procurement Card,125081,9.00
"Department for Business, Energy and Industrial Strategy",The Coal Authority,23/02/2022,Membership Subscriptions,DIG - Architecture,Government Procurement Card,125082,50.00
"Department for Business, Energy and Industrial Strategy",The Coal Authority,14/02/2022,Membership Subscriptions,DIG - Data Licensing,Government Procurement Card,125082,118.00
"Department for Business, Energy and Industrial Strategy",The Coal Authority,14/02/2022,Membership Subscriptions,DIG - Data Licensing,Government Procurement Card,125082,-118.00
"Department for Business, Energy and Industrial Strategy",The Coal Authority,02/03/2022,Membership Subscriptions,DIG - Service & Assurance,Government Procurement Card,125082,695.00
"Department for Business, Energy and Industrial Strategy",The Coal Authority,04/03/2022,Membership Subscriptions,ENV - Projects & Delivery,Staff Expenses Control,123774,118.00
"Department for Business, Energy and Industrial Strategy",The Coal Authority,04/03/2022,Membership Subscriptions,"Health, Safety & Wellbeing",Staff Expenses Control,123115,294.00
"Department for Business, Energy and Industrial Strategy",The Coal Authority,03/02/2022,Membership Subscriptions,Innovation By-Product & Services Delivery,Government Procurement Card,125082,335.64
"Department for Business, Energy and Industrial Strategy",The Coal Authority,02/12/2021,Mileage Payments,DEV - Mine Heat Licensing,Staff Expenses Control,123115,16.20
"Department for Business, Energy and Industrial Strategy",The Coal Authority,02/12/2021,Mileage Payments,DEV - Mine Heat Licensing,Staff Expenses Control,123115,12.02
"Department for Business, Energy and Industrial Strategy",The Coal Authority,02/12/2021,Mileage Payments,DEV - Mine Heat Licensing,Staff Expenses Control,123115,17.10
"Department for Business, Energy and Industrial Strategy",The Coal Authority,24/02/2022,Mileage Payments,Engineering,Staff Expenses Control,123115,9.45
"Department for Business, Energy and Industrial Strategy",The Coal Authority,24/02/2022,Mileage Payments,Engineering,Staff Expenses Control,123115,9.45
"Department for Business, Energy and Industrial Strategy",The Coal Authority,03/03/2022,Mileage Payments,Engineering,Staff Expenses Control,123115,9.45
"Department for Business, Energy and Industrial Strategy",The Coal Authority,03/03/2022,Mileage Payments,Engineering,Staff Expenses Control,123115,9.45
"Department for Business, Energy and Industrial Strategy",The Coal Authority,07/03/2022,Mileage Payments,Engineering,Staff Expenses Control,123774,40.95
"Department for Business, Energy and Industrial Strategy",The Coal Authority,07/03/2022,Mileage Payments,Engineering,Staff Expenses Control,123774,40.05
"Department for Business, Energy and Industrial Strategy",The Coal Authority,10/03/2022,Mileage Payments,Engineering,Staff Expenses Control,124979,9.45
"Department for Business, Energy and Industrial Strategy",The Coal Authority,10/03/2022,Mileage Payments,Engineering,Staff Expenses Control,124979,9.45
"Department for Business, Energy and Industrial Strategy",The Coal Authority,17/03/2022,Mileage Payments,Engineering,Staff Expenses Control,124979,9.45
"Department for Business, Energy and Industrial Strategy",The Coal Authority,17/03/2022,Mileage Payments,Engineering,Staff Expenses Control,124979,9.45
"Department for Business, Energy and Industrial Strategy",The Coal Authority,09/03/2022,Mileage Payments,ENV - Mine Water Operations,Staff Expenses Control,123774,15.19
"Department for Business, Energy and Industrial Strategy",The Coal Authority,09/03/2022,Mileage Payments,ENV - Mine Water Operations,Staff Expenses Control,123774,15.22
"Department for Business, Energy and Industrial Strategy",The Coal Authority,20/01/2022,Mileage Payments,ENV - Mine Water Operations,Staff Expenses Control,124381,228.15
"Department for Business, Energy and Industrial Strategy",The Coal Authority,07/03/2022,Mileage Payments,ENV - Projects & Delivery,Staff Expenses Control,124979,37.80
"Department for Business, Energy and Industrial Strategy",The Coal Authority,11/01/2022,Mileage Payments,ENV - Technical,Staff Expenses Control,123774,1.79
"Department for Business, Energy and Industrial Strategy",The Coal Authority,11/01/2022,Mileage Payments,ENV - Technical,Staff Expenses Control,123774,1.34
"Department for Business, Energy and Industrial Strategy",The Coal Authority,11/01/2022,Mileage Payments,ENV - Technical,Staff Expenses Control,123774,0.98
"Department for Business, Energy and Industrial Strategy",The Coal Authority,11/01/2022,Mileage Payments,ENV - Technical,Staff Expenses Control,123774,1.01
"Department for Business, Energy and Industrial Strategy",The Coal Authority,11/01/2022,Mileage Payments,ENV - Technical,Staff Expenses Control,123774,15.22
"Department for Business, Energy and Industrial Strategy",The Coal Authority,11/01/2022,Mileage Payments,ENV - Technical,Staff Expenses Control,123774,3.78
"Department for Business, Energy and Industrial Strategy",The Coal Authority,11/01/2022,Mileage Payments,ENV - Technical,Staff Expenses Control,123774,5.40
"Department for Business, Energy and Industrial Strategy",The Coal Authority,11/01/2022,Mileage Payments,ENV - Technical,Staff Expenses Control,123774,14.93
"Department for Business, Energy and Industrial Strategy",The Coal Authority,11/01/2022,Mileage Payments,ENV - Technical,Staff Expenses Control,123774,0.37
"Department for Business, Energy and Industrial Strategy",The Coal Authority,11/01/2022,Mileage Payments,ENV - Technical,Staff Expenses Control,123774,0.59
"Department for Business, Energy and Industrial Strategy",The Coal Authority,11/01/2022,Mileage Payments,ENV - Technical,Staff Expenses Control,123774,1.66
"Department for Business, Energy and Industrial Strategy",The Coal Authority,11/01/2022,Mileage Payments,ENV - Technical,Staff Expenses Control,123774,0.68
"Department for Business, Energy and Industrial Strategy",The Coal Authority,11/01/2022,Mileage Payments,ENV - Technical,Staff Expenses Control,123774,3.86
"Department for Business, Energy and Industrial Strategy",The Coal Authority,10/02/2022,Mileage Payments,ENV - Technical,Staff Expenses Control,123774,15.22
"Department for Business, Energy and Industrial Strategy",The Coal Authority,10/02/2022,Mileage Payments,ENV - Technical,Staff Expenses Control,123774,14.93
"Department for Business, Energy and Industrial Strategy",The Coal Authority,10/02/2022,Mileage Payments,ENV - Technical,Staff Expenses Control,123774,0.36
"Department for Business, Energy and Industrial Strategy",The Coal Authority,10/02/2022,Mileage Payments,ENV - Technical,Staff Expenses Control,123774,2.26
"Department for Business, Energy and Industrial Strategy",The Coal Authority,10/02/2022,Mileage Payments,ENV - Technical,Staff Expenses Control,123774,2.74
"Department for Business, Energy and Industrial Strategy",The Coal Authority,10/02/2022,Mileage Payments,ENV - Technical,Staff Expenses Control,123774,3.00
"Department for Business, Energy and Industrial Strategy",The Coal Authority,10/02/2022,Mileage Payments,ENV - Technical,Staff Expenses Control,123774,2.64
"Department for Business, Energy and Industrial Strategy",The Coal Authority,10/02/2022,Mileage Payments,ENV - Technical,Staff Expenses Control,123774,5.41
"Department for Business, Energy and Industrial Strategy",The Coal Authority,16/02/2022,Mileage Payments,ENV - Technical,Staff Expenses Control,123774,3.04
"Department for Business, Energy and Industrial Strategy",The Coal Authority,16/02/2022,Mileage Payments,ENV - Technical,Staff Expenses Control,123774,3.30
"Department for Business, Energy and Industrial Strategy",The Coal Authority,09/03/2022,Mileage Payments,ENV - Technical,Staff Expenses Control,123774,60.68
"Department for Business, Energy and Industrial Strategy",The Coal Authority,13/03/2022,Mileage Payments,ENV - Technical,Staff Expenses Control,124979,65.25
"Department for Business, Energy and Industrial Strategy",The Coal Authority,17/03/2022,Mileage Payments,ENV - Technical,Staff Expenses Control,124979,67.05
"Department for Business, Energy and Industrial Strategy",The Coal Authority,18/03/2022,Mileage Payments,ENV - Technical,Staff Expenses Control,124979,65.25
"Department for Business, Energy and Industrial Strategy",The Coal Authority,19/03/2022,Mileage Payments,ENV - Technical,Staff Expenses Control,124979,67.05
"Department for Business, Energy and Industrial Strategy",The Coal Authority,08/02/2022,Mileage Payments,Executive,Staff Expenses Control,123115,12.45
"Department for Business, Energy and Industrial Strategy",The Coal Authority,08/02/2022,Mileage Payments,Executive,Staff Expenses Control,123115,5.01
"Department for Business, Energy and Industrial Strategy",The Coal Authority,08/02/2022,Mileage Payments,Executive,Staff Expenses Control,123115,5.17
"Department for Business, Energy and Industrial Strategy",The Coal Authority,08/02/2022,Mileage Payments,Executive,Staff Expenses Control,123115,12.47
"Department for Business, Energy and Industrial Strategy",The Coal Authority,08/02/2022,Mileage Payments,Executive,Staff Expenses Control,123115,6.90
"Department for Business, Energy and Industrial Strategy",The Coal Authority,08/02/2022,Mileage Payments,Executive,Staff Expenses Control,123115,6.49
"Department for Business, Energy and Industrial Strategy",The Coal Authority,02/02/2022,Mileage Payments,Executive,Staff Expenses Control,123774,9.90
"Department for Business, Energy and Industrial Strategy",The Coal Authority,23/02/2022,Mileage Payments,Finance,Staff Expenses Control,123774,8.55
"Department for Business, Energy and Industrial Strategy",The Coal Authority,23/02/2022,Mileage Payments,Finance,Staff Expenses Control,123774,8.55
"Department for Business, Energy and Industrial Strategy",The Coal Authority,22/02/2022,Mileage Payments,"Health, Safety & Wellbeing",Staff Expenses Control,123115,15.00
"Department for Business, Energy and Industrial Strategy",The Coal Authority,01/03/2022,Mileage Payments,"Health, Safety & Wellbeing",Staff Expenses Control,123115,13.50
"Department for Business, Energy and Industrial Strategy",The Coal Authority,15/03/2022,Mileage Payments,"Health, Safety & Wellbeing",Staff Expenses Control,124381,13.50
"Department for Business, Energy and Industrial Strategy",The Coal Authority,01/03/2022,Mileage Payments,Innovation By-Product & Services Delivery,Staff Expenses Control,123774,74.63
"Department for Business, Energy and Industrial Strategy",The Coal Authority,01/03/2022,Mileage Payments,Innovation By-Product & Services Delivery,Staff Expenses Control,123774,3.66
"Department for Business, Energy and Industrial Strategy",The Coal Authority,01/03/2022,Mileage Payments,Innovation By-Product & Services Delivery,Staff Expenses Control,123774,35.24
"Department for Business, Energy and Industrial Strategy",The Coal Authority,02/03/2022,Mileage Payments,Innovation By-Product & Services Delivery,Staff Expenses Control,123774,21.22
"Department for Business, Energy and Industrial Strategy",The Coal Authority,02/03/2022,Mileage Payments,Innovation By-Product & Services Delivery,Staff Expenses Control,123774,8.96
"Department for Business, Energy and Industrial Strategy",The Coal Authority,02/03/2022,Mileage Payments,Innovation By-Product & Services Delivery,Staff Expenses Control,123774,101.10
"Department for Business, Energy and Industrial Strategy",The Coal Authority,07/03/2022,Mileage Payments,Innovation By-Product & Services Delivery,Staff Expenses Control,123774,1.47
"Department for Business, Energy and Industrial Strategy",The Coal Authority,07/03/2022,Mileage Payments,Innovation By-Product & Services Delivery,Staff Expenses Control,123774,60.32
"Department for Business, Energy and Industrial Strategy",The Coal Authority,07/03/2022,Mileage Payments,Innovation By-Product & Services Delivery,Staff Expenses Control,123774,74.80
"Department for Business, Energy and Industrial Strategy",The Coal Authority,07/03/2022,Mileage Payments,Innovation By-Product & Services Delivery,Staff Expenses Control,123774,1.46
"Department for Business, Energy and Industrial Strategy",The Coal Authority,09/03/2022,Mileage Payments,Innovation By-Product & Services Delivery,Staff Expenses Control,123774,5.85
"Department for Business, Energy and Industrial Strategy",The Coal Authority,09/03/2022,Mileage Payments,Innovation By-Product & Services Delivery,Staff Expenses Control,123774,0.90
"Department for Business, Energy and Industrial Strategy",The Coal Authority,09/03/2022,Mileage Payments,Innovation By-Product & Services Delivery,Staff Expenses Control,123774,5.40
"Department for Business, Energy and Industrial Strategy",The Coal Authority,09/03/2022,Mileage Payments,Innovation By-Product & Services Delivery,Staff Expenses Control,123774,0.79
"Department for Business, Energy and Industrial Strategy",The Coal Authority,09/03/2022,Mileage Payments,Innovation By-Product & Services Delivery,Staff Expenses Control,123774,33.75
"Department for Business, Energy and Industrial Strategy",The Coal Authority,09/03/2022,Mileage Payments,Innovation By-Product & Services Delivery,Staff Expenses Control,123774,33.75
"Department for Business, Energy and Industrial Strategy",The Coal Authority,09/03/2022,Mileage Payments,Innovation By-Product & Services Delivery,Staff Expenses Control,123774,0.80
"Department for Business, Energy and Industrial Strategy",The Coal Authority,14/03/2022,Mileage Payments,Innovation By-Product & Services Delivery,Staff Expenses Control,124979,0.07
"Department for Business, Energy and Industrial Strategy",The Coal Authority,14/03/2022,Mileage Payments,Innovation By-Product & Services Delivery,Staff Expenses Control,124979,50.70
"Department for Business, Energy and Industrial Strategy",The Coal Authority,14/03/2022,Mileage Payments,Innovation By-Product & Services Delivery,Staff Expenses Control,124979,50.40
"Department for Business, Energy and Industrial Strategy",The Coal Authority,14/03/2022,Mileage Payments,Innovation By-Product & Services Delivery,Staff Expenses Control,124979,0.07
"Department for Business, Energy and Industrial Strategy",The Coal Authority,14/03/2022,Mileage Payments,Innovation By-Product & Services Delivery,Staff Expenses Control,124979,16.65
"Department for Business, Energy and Industrial Strategy",The Coal Authority,14/03/2022,Mileage Payments,Innovation By-Product & Services Delivery,Staff Expenses Control,124979,16.65
"Department for Business, Energy and Industrial Strategy",The Coal Authority,17/02/2022,Mileage Payments,NRW Metal Mine Programme,Staff Expenses Control,123115,2.43
"Department for Business, Energy and Industrial Strategy",The Coal Authority,17/02/2022,Mileage Payments,NRW Metal Mine Programme,Staff Expenses Control,123115,2.31
"Department for Business, Energy and Industrial Strategy",The Coal Authority,01/12/2021,Mileage Payments,PS&S - Industry Claims,Staff Expenses Control,123115,54.90
"Department for Business, Energy and Industrial Strategy",The Coal Authority,10/12/2021,Mileage Payments,PS&S - Industry Claims,Staff Expenses Control,123115,31.50
"Department for Business, Energy and Industrial Strategy",The Coal Authority,16/12/2021,Mileage Payments,PS&S - Industry Claims,Staff Expenses Control,123115,31.50
"Department for Business, Energy and Industrial Strategy",The Coal Authority,07/01/2022,Mileage Payments,PS&S - Industry Claims,Staff Expenses Control,123115,22.50
"Department for Business, Energy and Industrial Strategy",The Coal Authority,19/01/2022,Mileage Payments,PS&S - Industry Claims,Staff Expenses Control,123115,22.50
"Department for Business, Energy and Industrial Strategy",The Coal Authority,01/02/2022,Mileage Payments,PS&S - Industry Claims,Staff Expenses Control,123115,41.46
"Department for Business, Energy and Industrial Strategy",The Coal Authority,01/02/2022,Mileage Payments,PS&S - Industry Claims,Staff Expenses Control,123115,46.82
"Department for Business, Energy and Industrial Strategy",The Coal Authority,01/02/2022,Mileage Payments,PS&S - Industry Claims,Staff Expenses Control,123115,8.10
"Department for Business, Energy and Industrial Strategy",The Coal Authority,01/02/2022,Mileage Payments,PS&S - Industry Claims,Staff Expenses Control,123115,0.72
"Department for Business, Energy and Industrial Strategy",The Coal Authority,01/02/2022,Mileage Payments,PS&S - Industry Claims,Staff Expenses Control,123115,1.39
"Department for Business, Energy and Industrial Strategy",The Coal Authority,04/02/2022,Mileage Payments,PS&S - Industry Claims,Staff Expenses Control,123115,24.30
"Department for Business, Energy and Industrial Strategy",The Coal Authority,14/02/2022,Mileage Payments,PS&S - Industry Claims,Staff Expenses Control,123115,5.40
"Department for Business, Energy and Industrial Strategy",The Coal Authority,16/02/2022,Mileage Payments,PS&S - Industry Claims,Staff Expenses Control,123115,6.90
"Department for Business, Energy and Industrial Strategy",The Coal Authority,16/02/2022,Mileage Payments,PS&S - Industry Claims,Staff Expenses Control,123115,1.65
"Department for Business, Energy and Industrial Strategy",The Coal Authority,16/02/2022,Mileage Payments,PS&S - Industry Claims,Staff Expenses Control,123115,0.65
"Department for Business, Energy and Industrial Strategy",The Coal Authority,16/02/2022,Mileage Payments,PS&S - Industry Claims,Staff Expenses Control,123115,22.05
"Department for Business, Energy and Industrial Strategy",The Coal Authority,16/02/2022,Mileage Payments,PS&S - Industry Claims,Staff Expenses Control,123115,28.35
"Department for Business, Energy and Industrial Strategy",The Coal Authority,17/02/2022,Mileage Payments,PS&S - Industry Claims,Staff Expenses Control,123115,2.58
"Department for Business, Energy and Industrial Strategy",The Coal Authority,17/02/2022,Mileage Payments,PS&S - Industry Claims,Staff Expenses Control,123115,1.67
"Department for Business, Energy and Industrial Strategy",The Coal Authority,17/02/2022,Mileage Payments,PS&S - Industry Claims,Staff Expenses Control,123115,2.25
"Department for Business, Energy and Industrial Strategy",The Coal Authority,17/02/2022,Mileage Payments,PS&S - Industry Claims,Staff Expenses Control,123115,2.25
"Department for Business, Energy and Industrial Strategy",The Coal Authority,17/02/2022,Mileage Payments,PS&S - Industry Claims,Staff Expenses Control,123115,3.02
"Department for Business, Energy and Industrial Strategy",The Coal Authority,18/02/2022,Mileage Payments,PS&S - Industry Claims,Staff Expenses Control,123115,31.50
"Department for Business, Energy and Industrial Strategy",The Coal Authority,23/02/2022,Mileage Payments,PS&S - Industry Claims,Staff Expenses Control,123115,7.70
"Department for Business, Energy and Industrial Strategy",The Coal Authority,23/02/2022,Mileage Payments,PS&S - Industry Claims,Staff Expenses Control,123115,1.80
"Department for Business, Energy and Industrial Strategy",The Coal Authority,23/02/2022,Mileage Payments,PS&S - Industry Claims,Staff Expenses Control,123115,25.20
"Department for Business, Energy and Industrial Strategy",The Coal Authority,24/02/2022,Mileage Payments,PS&S - Industry Claims,Staff Expenses Control,123115,29.70
"Department for Business, Energy and Industrial Strategy",The Coal Authority,25/02/2022,Mileage Payments,PS&S - Industry Claims,Staff Expenses Control,123115,29.70
"Department for Business, Energy and Industrial Strategy",The Coal Authority,21/01/2022,Mileage Payments,PS&S - Industry Claims,Staff Expenses Control,124381,2.73
"Department for Business, Energy and Industrial Strategy",The Coal Authority,21/01/2022,Mileage Payments,PS&S - Industry Claims,Staff Expenses Control,124381,0.29
"Department for Business, Energy and Industrial Strategy",The Coal Authority,21/01/2022,Mileage Payments,PS&S - Industry Claims,Staff Expenses Control,124381,2.84
"Department for Business, Energy and Industrial Strategy",The Coal Authority,21/01/2022,Mileage Payments,PS&S - Industry Claims,Staff Expenses Control,124381,11.72
"Department for Business, Energy and Industrial Strategy",The Coal Authority,21/01/2022,Mileage Payments,PS&S - Industry Claims,Staff Expenses Control,124381,14.54
"Department for Business, Energy and Industrial Strategy",The Coal Authority,25/01/2022,Mileage Payments,PS&S - Industry Claims,Staff Expenses Control,124381,27.90
"Department for Business, Energy and Industrial Strategy",The Coal Authority,28/01/2022,Mileage Payments,PS&S - Industry Claims,Staff Expenses Control,124381,0.67
"Department for Business, Energy and Industrial Strategy",The Coal Authority,28/01/2022,Mileage Payments,PS&S - Industry Claims,Staff Expenses Control,124381,9.95
"Department for Business, Energy and Industrial Strategy",The Coal Authority,28/01/2022,Mileage Payments,PS&S - Industry Claims,Staff Expenses Control,124381,9.34
"Department for Business, Energy and Industrial Strategy",The Coal Authority,28/01/2022,Mileage Payments,PS&S - Industry Claims,Staff Expenses Control,124381,7.99
"Department for Business, Energy and Industrial Strategy",The Coal Authority,28/01/2022,Mileage Payments,PS&S - Industry Claims,Staff Expenses Control,124381,6.67
"Department for Business, Energy and Industrial Strategy",The Coal Authority,28/01/2022,Mileage Payments,PS&S - Industry Claims,Staff Expenses Control,124381,1.55
"Department for Business, Energy and Industrial Strategy",The Coal Authority,28/01/2022,Mileage Payments,PS&S - Industry Claims,Staff Expenses Control,124381,7.23
"Department for Business, Energy and Industrial Strategy",The Coal Authority,31/01/2022,Mileage Payments,PS&S - Industry Claims,Staff Expenses Control,124381,4.50
"Department for Business, Energy and Industrial Strategy",The Coal Authority,31/01/2022,Mileage Payments,PS&S - Industry Claims,Staff Expenses Control,124381,2.33
"Department for Business, Energy and Industrial Strategy",The Coal Authority,31/01/2022,Mileage Payments,PS&S - Industry Claims,Staff Expenses Control,124381,2.25
"Department for Business, Energy and Industrial Strategy",The Coal Authority,02/02/2022,Mileage Payments,PS&S - Industry Claims,Staff Expenses Control,124381,4.50
"Department for Business, Energy and Industrial Strategy",The Coal Authority,02/02/2022,Mileage Payments,PS&S - Industry Claims,Staff Expenses Control,124381,4.05
"Department for Business, Energy and Industrial Strategy",The Coal Authority,04/02/2022,Mileage Payments,PS&S - Industry Claims,Staff Expenses Control,124381,4.05
"Department for Business, Energy and Industrial Strategy",The Coal Authority,04/02/2022,Mileage Payments,PS&S - Industry Claims,Staff Expenses Control,124381,4.50
"Department for Business, Energy and Industrial Strategy",The Coal Authority,08/02/2022,Mileage Payments,PS&S - Industry Claims,Staff Expenses Control,124381,27.00
"Department for Business, Energy and Industrial Strategy",The Coal Authority,09/02/2022,Mileage Payments,PS&S - Industry Claims,Staff Expenses Control,124381,8.84
"Department for Business, Energy and Industrial Strategy",The Coal Authority,09/02/2022,Mileage Payments,PS&S - Industry Claims,Staff Expenses Control,124381,9.14
"Department for Business, Energy and Industrial Strategy",The Coal Authority,09/02/2022,Mileage Payments,PS&S - Industry Claims,Staff Expenses Control,124381,5.44
"Department for Business, Energy and Industrial Strategy",The Coal Authority,14/02/2022,Mileage Payments,PS&S - Industry Claims,Staff Expenses Control,124381,18.90
"Department for Business, Energy and Industrial Strategy",The Coal Authority,15/02/2022,Mileage Payments,PS&S - Industry Claims,Staff Expenses Control,124381,4.50
"Department for Business, Energy and Industrial Strategy",The Coal Authority,15/02/2022,Mileage Payments,PS&S - Industry Claims,Staff Expenses Control,124381,2.33
"Department for Business, Energy and Industrial Strategy",The Coal Authority,15/02/2022,Mileage Payments,PS&S - Industry Claims,Staff Expenses Control,124381,2.25
"Department for Business, Energy and Industrial Strategy",The Coal Authority,15/02/2022,Mileage Payments,PS&S - Industry Claims,Staff Expenses Control,124381,9.95
"Department for Business, Energy and Industrial Strategy",The Coal Authority,15/02/2022,Mileage Payments,PS&S - Industry Claims,Staff Expenses Control,124381,22.68
"Department for Business, Energy and Industrial Strategy",The Coal Authority,15/02/2022,Mileage Payments,PS&S - Industry Claims,Staff Expenses Control,124381,13.24
"Department for Business, Energy and Industrial Strategy",The Coal Authority,17/02/2022,Mileage Payments,PS&S - Industry Claims,Staff Expenses Control,124381,4.50
"Department for Business, Energy and Industrial Strategy",The Coal Authority,17/02/2022,Mileage Payments,PS&S - Industry Claims,Staff Expenses Control,124381,4.05
"Department for Business, Energy and Industrial Strategy",The Coal Authority,18/02/2022,Mileage Payments,PS&S - Industry Claims,Staff Expenses Control,124381,17.10
"Department for Business, Energy and Industrial Strategy",The Coal Authority,21/02/2022,Mileage Payments,PS&S - Industry Claims,Staff Expenses Control,124381,27.00
"Department for Business, Energy and Industrial Strategy",The Coal Authority,22/02/2022,Mileage Payments,PS&S - Industry Claims,Staff Expenses Control,124381,27.00
"Department for Business, Energy and Industrial Strategy",The Coal Authority,23/02/2022,Mileage Payments,PS&S - Industry Claims,Staff Expenses Control,124381,27.00
"Department for Business, Energy and Industrial Strategy",The Coal Authority,28/02/2022,Mileage Payments,PS&S - Industry Claims,Staff Expenses Control,124381,19.80
"Department for Business, Energy and Industrial Strategy",The Coal Authority,01/03/2022,Mileage Payments,PS&S - Industry Claims,Staff Expenses Control,124381,7.35
"Department for Business, Energy and Industrial Strategy",The Coal Authority,01/03/2022,Mileage Payments,PS&S - Industry Claims,Staff Expenses Control,124381,6.65
"Department for Business, Energy and Industrial Strategy",The Coal Authority,01/03/2022,Mileage Payments,PS&S - Industry Claims,Staff Expenses Control,124381,13.30
"Department for Business, Energy and Industrial Strategy",The Coal Authority,01/03/2022,Mileage Payments,PS&S - Industry Claims,Staff Expenses Control,124381,1.01
"Department for Business, Energy and Industrial Strategy",The Coal Authority,01/03/2022,Mileage Payments,PS&S - Industry Claims,Staff Expenses Control,124381,9.99
"Department for Business, Energy and Industrial Strategy",The Coal Authority,01/03/2022,Mileage Payments,PS&S - Industry Claims,Staff Expenses Control,124381,2.39
"Department for Business, Energy and Industrial Strategy",The Coal Authority,01/03/2022,Mileage Payments,PS&S - Industry Claims,Staff Expenses Control,124381,3.15
"Department for Business, Energy and Industrial Strategy",The Coal Authority,01/03/2022,Mileage Payments,PS&S - Industry Claims,Staff Expenses Control,124381,2.25
"Department for Business, Energy and Industrial Strategy",The Coal Authority,02/03/2022,Mileage Payments,PS&S - Industry Claims,Staff Expenses Control,124381,0.75
"Department for Business, Energy and Industrial Strategy",The Coal Authority,02/03/2022,Mileage Payments,PS&S - Industry Claims,Staff Expenses Control,124381,19.96
"Department for Business, Energy and Industrial Strategy",The Coal Authority,02/03/2022,Mileage Payments,PS&S - Industry Claims,Staff Expenses Control,124381,28.18
"Department for Business, Energy and Industrial Strategy",The Coal Authority,02/03/2022,Mileage Payments,PS&S - Industry Claims,Staff Expenses Control,124381,0.52
"Department for Business, Energy and Industrial Strategy",The Coal Authority,02/03/2022,Mileage Payments,PS&S - Industry Claims,Staff Expenses Control,124381,13.48
"Department for Business, Energy and Industrial Strategy",The Coal Authority,04/03/2022,Mileage Payments,PS&S - Industry Claims,Staff Expenses Control,124381,4.50
"Department for Business, Energy and Industrial Strategy",The Coal Authority,04/03/2022,Mileage Payments,PS&S - Industry Claims,Staff Expenses Control,124381,2.25
"Department for Business, Energy and Industrial Strategy",The Coal Authority,04/03/2022,Mileage Payments,PS&S - Industry Claims,Staff Expenses Control,124381,2.70
"Department for Business, Energy and Industrial Strategy",The Coal Authority,07/03/2022,Mileage Payments,PS&S - Industry Claims,Staff Expenses Control,124381,42.30
"Department for Business, Energy and Industrial Strategy",The Coal Authority,09/03/2022,Mileage Payments,PS&S - Industry Claims,Staff Expenses Control,124381,4.50
"Department for Business, Energy and Industrial Strategy",The Coal Authority,09/03/2022,Mileage Payments,PS&S - Industry Claims,Staff Expenses Control,124381,2.25
"Department for Business, Energy and Industrial Strategy",The Coal Authority,09/03/2022,Mileage Payments,PS&S - Industry Claims,Staff Expenses Control,124381,2.70
"Department for Business, Energy and Industrial Strategy",The Coal Authority,09/03/2022,Mileage Payments,PS&S - Industry Claims,Staff Expenses Control,124381,5.47
"Department for Business, Energy and Industrial Strategy",The Coal Authority,09/03/2022,Mileage Payments,PS&S - Industry Claims,Staff Expenses Control,124381,1.35
"Department for Business, Energy and Industrial Strategy",The Coal Authority,09/03/2022,Mileage Payments,PS&S - Industry Claims,Staff Expenses Control,124381,33.76
"Department for Business, Energy and Industrial Strategy",The Coal Authority,09/03/2022,Mileage Payments,PS&S - Industry Claims,Staff Expenses Control,124381,19.79
"Department for Business, Energy and Industrial Strategy",The Coal Authority,09/03/2022,Mileage Payments,PS&S - Industry Claims,Staff Expenses Control,124381,6.36
"Department for Business, Energy and Industrial Strategy",The Coal Authority,09/03/2022,Mileage Payments,PS&S - Industry Claims,Staff Expenses Control,124381,2.13
"Department for Business, Energy and Industrial Strategy",The Coal Authority,11/03/2022,Mileage Payments,PS&S - Industry Claims,Staff Expenses Control,124381,13.05
"Department for Business, Energy and Industrial Strategy",The Coal Authority,11/03/2022,Mileage Payments,PS&S - Industry Claims,Staff Expenses Control,124381,2.20
"Department for Business, Energy and Industrial Strategy",The Coal Authority,11/03/2022,Mileage Payments,PS&S - Industry Claims,Staff Expenses Control,124381,13.34
"Department for Business, Energy and Industrial Strategy",The Coal Authority,14/03/2022,Mileage Payments,PS&S - Industry Claims,Staff Expenses Control,124381,4.50
"Department for Business, Energy and Industrial Strategy",The Coal Authority,14/03/2022,Mileage Payments,PS&S - Industry Claims,Staff Expenses Control,124381,4.05
"Department for Business, Energy and Industrial Strategy",The Coal Authority,14/03/2022,Mileage Payments,PS&S - Industry Claims,Staff Expenses Control,124381,30.15
"Department for Business, Energy and Industrial Strategy",The Coal Authority,17/03/2022,Mileage Payments,PS&S - Industry Claims,Staff Expenses Control,124381,57.15
"Department for Business, Energy and Industrial Strategy",The Coal Authority,18/03/2022,Mileage Payments,PS&S - Industry Claims,Staff Expenses Control,124381,4.50
"Department for Business, Energy and Industrial Strategy",The Coal Authority,18/03/2022,Mileage Payments,PS&S - Industry Claims,Staff Expenses Control,124381,18.90
"Department for Business, Energy and Industrial Strategy",The Coal Authority,18/03/2022,Mileage Payments,PS&S - Industry Claims,Staff Expenses Control,124381,4.05
"Department for Business, Energy and Industrial Strategy",The Coal Authority,29/11/2021,Mileage Payments,PS&S - Industry Claims,Staff Expenses Control,124979,32.40
"Department for Business, Energy and Industrial Strategy",The Coal Authority,01/12/2021,Mileage Payments,PS&S - Industry Claims,Staff Expenses Control,124979,27.90
"Department for Business, Energy and Industrial Strategy",The Coal Authority,03/12/2021,Mileage Payments,PS&S - Industry Claims,Staff Expenses Control,124979,27.90
"Department for Business, Energy and Industrial Strategy",The Coal Authority,07/12/2021,Mileage Payments,PS&S - Industry Claims,Staff Expenses Control,124979,2.01
"Department for Business, Energy and Industrial Strategy",The Coal Authority,07/12/2021,Mileage Payments,PS&S - Industry Claims,Staff Expenses Control,124979,7.81
"Department for Business, Energy and Industrial Strategy",The Coal Authority,07/12/2021,Mileage Payments,PS&S - Industry Claims,Staff Expenses Control,124979,12.25
"Department for Business, Energy and Industrial Strategy",The Coal Authority,07/12/2021,Mileage Payments,PS&S - Industry Claims,Staff Expenses Control,124979,20.12
"Department for Business, Energy and Industrial Strategy",The Coal Authority,08/12/2021,Mileage Payments,PS&S - Industry Claims,Staff Expenses Control,124979,14.38
"Department for Business, Energy and Industrial Strategy",The Coal Authority,08/12/2021,Mileage Payments,PS&S - Industry Claims,Staff Expenses Control,124979,21.23
"Department for Business, Energy and Industrial Strategy",The Coal Authority,08/12/2021,Mileage Payments,PS&S - Industry Claims,Staff Expenses Control,124979,13.95
"Department for Business, Energy and Industrial Strategy",The Coal Authority,09/12/2021,Mileage Payments,PS&S - Industry Claims,Staff Expenses Control,124979,28.80
"Department for Business, Energy and Industrial Strategy",The Coal Authority,10/12/2021,Mileage Payments,PS&S - Industry Claims,Staff Expenses Control,124979,27.90
"Department for Business, Energy and Industrial Strategy",The Coal Authority,10/12/2021,Mileage Payments,PS&S - Industry Claims,Staff Expenses Control,124979,14.39
"Department for Business, Energy and Industrial Strategy",The Coal Authority,10/12/2021,Mileage Payments,PS&S - Industry Claims,Staff Expenses Control,124979,21.23
"Department for Business, Energy and Industrial Strategy",The Coal Authority,10/12/2021,Mileage Payments,PS&S - Industry Claims,Staff Expenses Control,124979,13.95
"Department for Business, Energy and Industrial Strategy",The Coal Authority,13/12/2021,Mileage Payments,PS&S - Industry Claims,Staff Expenses Control,124979,19.60
"Department for Business, Energy and Industrial Strategy",The Coal Authority,13/12/2021,Mileage Payments,PS&S - Industry Claims,Staff Expenses Control,124979,16.09
"Department for Business, Energy and Industrial Strategy",The Coal Authority,13/12/2021,Mileage Payments,PS&S - Industry Claims,Staff Expenses Control,124979,5.87
"Department for Business, Energy and Industrial Strategy",The Coal Authority,14/12/2021,Mileage Payments,PS&S - Industry Claims,Staff Expenses Control,124979,28.80
"Department for Business, Energy and Industrial Strategy",The Coal Authority,16/12/2021,Mileage Payments,PS&S - Industry Claims,Staff Expenses Control,124979,38.70
"Department for Business, Energy and Industrial Strategy",The Coal Authority,22/12/2021,Mileage Payments,PS&S - Industry Claims,Staff Expenses Control,124979,8.82
"Department for Business, Energy and Industrial Strategy",The Coal Authority,22/12/2021,Mileage Payments,PS&S - Industry Claims,Staff Expenses Control,124979,13.95
"Department for Business, Energy and Industrial Strategy",The Coal Authority,22/12/2021,Mileage Payments,PS&S - Industry Claims,Staff Expenses Control,124979,19.81
"Department for Business, Energy and Industrial Strategy",The Coal Authority,05/01/2022,Mileage Payments,PS&S - Industry Claims,Staff Expenses Control,124979,27.90
"Department for Business, Energy and Industrial Strategy",The Coal Authority,06/01/2022,Mileage Payments,PS&S - Industry Claims,Staff Expenses Control,124979,13.30
"Department for Business, Energy and Industrial Strategy",The Coal Authority,06/01/2022,Mileage Payments,PS&S - Industry Claims,Staff Expenses Control,124979,12.38
"Department for Business, Energy and Industrial Strategy",The Coal Authority,06/01/2022,Mileage Payments,PS&S - Industry Claims,Staff Expenses Control,124979,19.59
"Department for Business, Energy and Industrial Strategy",The Coal Authority,07/01/2022,Mileage Payments,PS&S - Industry Claims,Staff Expenses Control,124979,12.94
"Department for Business, Energy and Industrial Strategy",The Coal Authority,07/01/2022,Mileage Payments,PS&S - Industry Claims,Staff Expenses Control,124979,19.59
"Department for Business, Energy and Industrial Strategy",The Coal Authority,07/01/2022,Mileage Payments,PS&S - Industry Claims,Staff Expenses Control,124979,10.33
"Department for Business, Energy and Industrial Strategy",The Coal Authority,10/01/2022,Mileage Payments,PS&S - Industry Claims,Staff Expenses Control,124979,27.90
"Department for Business, Energy and Industrial Strategy",The Coal Authority,12/01/2022,Mileage Payments,PS&S - Industry Claims,Staff Expenses Control,124979,27.90
"Department for Business, Energy and Industrial Strategy",The Coal Authority,13/01/2022,Mileage Payments,PS&S - Industry Claims,Staff Expenses Control,124979,13.39
"Department for Business, Energy and Industrial Strategy",The Coal Authority,13/01/2022,Mileage Payments,PS&S - Industry Claims,Staff Expenses Control,124979,9.20
"Department for Business, Energy and Industrial Strategy",The Coal Authority,13/01/2022,Mileage Payments,PS&S - Industry Claims,Staff Expenses Control,124979,21.60
"Department for Business, Energy and Industrial Strategy",The Coal Authority,14/01/2022,Mileage Payments,PS&S - Industry Claims,Staff Expenses Control,124979,39.15
"Department for Business, Energy and Industrial Strategy",The Coal Authority,18/01/2022,Mileage Payments,PS&S - Industry Claims,Staff Expenses Control,124979,28.80
"Department for Business, Energy and Industrial Strategy",The Coal Authority,19/01/2022,Mileage Payments,PS&S - Industry Claims,Staff Expenses Control,124979,27.90
"Department for Business, Energy and Industrial Strategy",The Coal Authority,21/01/2022,Mileage Payments,PS&S - Industry Claims,Staff Expenses Control,124979,6.49
"Department for Business, Energy and Industrial Strategy",The Coal Authority,21/01/2022,Mileage Payments,PS&S - Industry Claims,Staff Expenses Control,124979,0.27
"Department for Business, Energy and Industrial Strategy",The Coal Authority,01/02/2022,Mileage Payments,Tip Management Services,Staff Expenses Control,123115,5.65
"Department for Business, Energy and Industrial Strategy",The Coal Authority,01/02/2022,Mileage Payments,Tip Management Services,Staff Expenses Control,123115,5.57
"Department for Business, Energy and Industrial Strategy",The Coal Authority,03/02/2022,Mileage Payments,Tip Management Services,Staff Expenses Control,123115,7.08
"Department for Business, Energy and Industrial Strategy",The Coal Authority,03/02/2022,Mileage Payments,Tip Management Services,Staff Expenses Control,123115,7.08
"Department for Business, Energy and Industrial Strategy",The Coal Authority,07/02/2022,Mileage Payments,Tip Management Services,Staff Expenses Control,123115,1.56
"Department for Business, Energy and Industrial Strategy",The Coal Authority,07/02/2022,Mileage Payments,Tip Management Services,Staff Expenses Control,123115,1.52
"Department for Business, Energy and Industrial Strategy",The Coal Authority,08/02/2022,Mileage Payments,Tip Management Services,Staff Expenses Control,123115,7.62
"Department for Business, Energy and Industrial Strategy",The Coal Authority,08/02/2022,Mileage Payments,Tip Management Services,Staff Expenses Control,123115,6.69
"Department for Business, Energy and Industrial Strategy",The Coal Authority,08/02/2022,Mileage Payments,Tip Management Services,Staff Expenses Control,123115,0.91
"Department for Business, Energy and Industrial Strategy",The Coal Authority,09/02/2022,Mileage Payments,Tip Management Services,Staff Expenses Control,123115,6.65
"Department for Business, Energy and Industrial Strategy",The Coal Authority,09/02/2022,Mileage Payments,Tip Management Services,Staff Expenses Control,123115,6.59
"Department for Business, Energy and Industrial Strategy",The Coal Authority,15/02/2022,Mileage Payments,Tip Management Services,Staff Expenses Control,123115,9.84
"Department for Business, Energy and Industrial Strategy",The Coal Authority,15/02/2022,Mileage Payments,Tip Management Services,Staff Expenses Control,123115,9.66
"Department for Business, Energy and Industrial Strategy",The Coal Authority,16/02/2022,Mileage Payments,Tip Management Services,Staff Expenses Control,123115,5.12
"Department for Business, Energy and Industrial Strategy",The Coal Authority,16/02/2022,Mileage Payments,Tip Management Services,Staff Expenses Control,123115,5.07
"Department for Business, Energy and Industrial Strategy",The Coal Authority,23/02/2022,Mileage Payments,Tip Management Services,Staff Expenses Control,123115,7.24
"Department for Business, Energy and Industrial Strategy",The Coal Authority,23/02/2022,Mileage Payments,Tip Management Services,Staff Expenses Control,123115,7.11
"Department for Business, Energy and Industrial Strategy",The Coal Authority,24/02/2022,Mileage Payments,Tip Management Services,Staff Expenses Control,123115,11.08
"Department for Business, Energy and Industrial Strategy",The Coal Authority,24/02/2022,Mileage Payments,Tip Management Services,Staff Expenses Control,123115,10.91
"Department for Business, Energy and Industrial Strategy",The Coal Authority,08/03/2022,Mileage Payments,Tip Management Services,Staff Expenses Control,124979,6.32
"Department for Business, Energy and Industrial Strategy",The Coal Authority,08/03/2022,Mileage Payments,Tip Management Services,Staff Expenses Control,124979,6.29
"Department for Business, Energy and Industrial Strategy",The Coal Authority,09/03/2022,Mileage Payments,Tip Management Services,Staff Expenses Control,124979,5.49
"Department for Business, Energy and Industrial Strategy",The Coal Authority,09/03/2022,Mileage Payments,Tip Management Services,Staff Expenses Control,124979,5.46
"Department for Business, Energy and Industrial Strategy",The Coal Authority,10/03/2022,Mileage Payments,Tip Management Services,Staff Expenses Control,124979,6.25
"Department for Business, Energy and Industrial Strategy",The Coal Authority,10/03/2022,Mileage Payments,Tip Management Services,Staff Expenses Control,124979,2.30
"Department for Business, Energy and Industrial Strategy",The Coal Authority,10/03/2022,Mileage Payments,Tip Management Services,Staff Expenses Control,124979,5.95
"Department for Business, Energy and Industrial Strategy",The Coal Authority,22/03/2022,Mileage Payments,Tip Management Services,Staff Expenses Control,124979,10.66
"Department for Business, Energy and Industrial Strategy",The Coal Authority,22/03/2022,Mileage Payments,Tip Management Services,Staff Expenses Control,124979,11.16
"Department for Business, Energy and Industrial Strategy",The Coal Authority,23/03/2022,Mileage Payments,Tip Management Services,Staff Expenses Control,124979,5.72
"Department for Business, Energy and Industrial Strategy",The Coal Authority,23/03/2022,Mileage Payments,Tip Management Services,Staff Expenses Control,124979,5.82
"Department for Business, Energy and Industrial Strategy",The Coal Authority,16/02/2022,Mileage Payments,Tips Response,Staff Expenses Control,123115,6.76
"Department for Business, Energy and Industrial Strategy",The Coal Authority,16/02/2022,Mileage Payments,Tips Response,Staff Expenses Control,123115,6.81
"Department for Business, Energy and Industrial Strategy",The Coal Authority,28/02/2022,Mileage Payments,Tips Response,Staff Expenses Control,123115,0.64
"Department for Business, Energy and Industrial Strategy",The Coal Authority,28/02/2022,Mileage Payments,Tips Response,Staff Expenses Control,123115,17.01
"Department for Business, Energy and Industrial Strategy",The Coal Authority,28/02/2022,Mileage Payments,Tips Response,Staff Expenses Control,123115,17.28
"Department for Business, Energy and Industrial Strategy",The Coal Authority,02/03/2022,Mileage Payments,Tips Response,Staff Expenses Control,123115,16.62
"Department for Business, Energy and Industrial Strategy",The Coal Authority,02/03/2022,Mileage Payments,Tips Response,Staff Expenses Control,123115,17.01
"Department for Business, Energy and Industrial Strategy",The Coal Authority,23/02/2022,Mileage Payments,Tips Response,Staff Expenses Control,124979,14.85
"Department for Business, Energy and Industrial Strategy",The Coal Authority,23/02/2022,Mileage Payments,Tips Response,Staff Expenses Control,124979,16.65
"Department for Business, Energy and Industrial Strategy",The Coal Authority,24/02/2022,Mileage Payments,Tips Response,Staff Expenses Control,124979,28.80
"Department for Business, Energy and Industrial Strategy",The Coal Authority,28/02/2022,Mileage Payments,Tips Response,Staff Expenses Control,124979,28.80
"Department for Business, Energy and Industrial Strategy",The Coal Authority,01/03/2022,Mileage Payments,Tips Response,Staff Expenses Control,124979,23.40
"Department for Business, Energy and Industrial Strategy",The Coal Authority,08/03/2022,Mileage Payments,Tips Response,Staff Expenses Control,124979,10.80
"Department for Business, Energy and Industrial Strategy",The Coal Authority,08/03/2022,Mileage Payments,Tips Response,Staff Expenses Control,124979,0.90
"Department for Business, Energy and Industrial Strategy",The Coal Authority,08/03/2022,Mileage Payments,Tips Response,Staff Expenses Control,124979,11.25
"Department for Business, Energy and Industrial Strategy",The Coal Authority,08/03/2022,Mileage Payments,Tips Response,Staff Expenses Control,124979,7.78
"Department for Business, Energy and Industrial Strategy",The Coal Authority,08/03/2022,Mileage Payments,Tips Response,Staff Expenses Control,124979,0.81
"Department for Business, Energy and Industrial Strategy",The Coal Authority,08/03/2022,Mileage Payments,Tips Response,Staff Expenses Control,124979,8.51
"Department for Business, Energy and Industrial Strategy",The Coal Authority,10/03/2022,Mileage Payments,Tips Response,Staff Expenses Control,124979,6.95
"Department for Business, Energy and Industrial Strategy",The Coal Authority,10/03/2022,Mileage Payments,Tips Response,Staff Expenses Control,124979,12.02
"Department for Business, Energy and Industrial Strategy",The Coal Authority,10/03/2022,Mileage Payments,Tips Response,Staff Expenses Control,124979,2.33
"Department for Business, Energy and Industrial Strategy",The Coal Authority,15/03/2022,Mileage Payments,Tips Response,Staff Expenses Control,124979,0.89
"Department for Business, Energy and Industrial Strategy",The Coal Authority,15/03/2022,Mileage Payments,Tips Response,Staff Expenses Control,124979,0.83
"Department for Business, Energy and Industrial Strategy",The Coal Authority,21/03/2022,Mileage Payments,Tips Response,Staff Expenses Control,124979,3.16
"Department for Business, Energy and Industrial Strategy",The Coal Authority,21/03/2022,Mileage Payments,Tips Response,Staff Expenses Control,124979,3.15
"Department for Business, Energy and Industrial Strategy",The Coal Authority,23/03/2022,Mileage Payments,Tips Response,Staff Expenses Control,124979,1.44
"Department for Business, Energy and Industrial Strategy",The Coal Authority,23/03/2022,Mileage Payments,Tips Response,Staff Expenses Control,124979,1.38
"Department for Business, Energy and Industrial Strategy",The Coal Authority,02/03/2022,Mine Entry Inspection - Outsourced Management,PS&S - General Claims,Interlocks Surveys,123223,"9,612.00"
"Department for Business, Energy and Industrial Strategy",The Coal Authority,10/03/2022,Minewater Chemicals - Operational Sites,DEFRA Metal Mine Programme,John F Hunt Regeneration Ltd,123879,"30,232.36"
"Department for Business, Energy and Industrial Strategy",The Coal Authority,10/03/2022,Minewater Contractor Add. Task Order - Ops Site,DEFRA Metal Mine Programme,John F Hunt Regeneration Ltd,123879,"23,888.41"
"Department for Business, Energy and Industrial Strategy",The Coal Authority,10/03/2022,Minewater Contractor Add. Task Order - Ops Site,DEFRA Metal Mine Programme,Severn Trent Serv Ops Uk Ltd,123536,441.74
"Department for Business, Energy and Industrial Strategy",The Coal Authority,10/03/2022,Minewater Contractor Add. Task Order - Ops Site,DEFRA Metal Mine Programme,Severn Trent Serv Ops Uk Ltd,123536,2.00
"Department for Business, Energy and Industrial Strategy",The Coal Authority,17/03/2022,Minewater Contractor Add. Task Order - Ops Site,ENV - Mine Water Operations,Alliance Contracting Solutions Ltd,124116,"21,841.28"
"Department for Business, Energy and Industrial Strategy",The Coal Authority,25/02/2022,Minewater Contractor Add. Task Order - Ops Site,ENV - Mine Water Operations,National Coal Mining Museum,125176,"6,790.00"
"Department for Business, Energy and Industrial Strategy",The Coal Authority,10/03/2022,Minewater Contractor Add. Task Order - Ops Site,ENV - Mine Water Operations,Severn Trent Serv Ops Uk Ltd,123606,57.95
"Department for Business, Energy and Industrial Strategy",The Coal Authority,10/03/2022,Minewater Contractor Add. Task Order - Ops Site,ENV - Mine Water Operations,Severn Trent Serv Ops Uk Ltd,123606,"1,411.37"
"Department for Business, Energy and Industrial Strategy",The Coal Authority,10/03/2022,Minewater Contractor Add. Task Order - Ops Site,ENV - Mine Water Operations,Severn Trent Serv Ops Uk Ltd,123606,92.50
"Department for Business, Energy and Industrial Strategy",The Coal Authority,16/01/2022,Minewater Contractor Add. Task Order - Ops Site,ENV - Mine Water Operations,Water Plus Limited,122611,88.00
"Department for Business, Energy and Industrial Strategy",The Coal Authority,14/03/2022,Minewater Contractor Maint. Visits - Ops Site,DEFRA Metal Mine Programme,Tyne Rivers Trust,125152,"1,995.60"
"Department for Business, Energy and Industrial Strategy",The Coal Authority,27/02/2022,Minewater Contractor Maint. Visits - Ops Site,ENV - Mine Water Operations,National Coal Mining Museum,125177,156.24
"Department for Business, Energy and Industrial Strategy",The Coal Authority,28/02/2022,Minewater Contractor Maint. Visits - Ops Site,ENV - Mine Water Operations,National Coal Mining Museum,125186,"2,384.00"
"Department for Business, Energy and Industrial Strategy",The Coal Authority,10/03/2022,Minewater Contractor Maint. Visits - Ops Site,ENV - Mine Water Operations,Severn Trent Serv Ops Uk Ltd,123529,"4,603.75"
"Department for Business, Energy and Industrial Strategy",The Coal Authority,10/03/2022,Minewater Contractor Maint. Visits - Ops Site,ENV - Mine Water Operations,Severn Trent Serv Ops Uk Ltd,123537,"281,975.12"
"Department for Business, Energy and Industrial Strategy",The Coal Authority,10/03/2022,Minewater Contractor Maint. Visits - Ops Site,ENV - Mine Water Operations,Severn Trent Serv Ops Uk Ltd,123606,"12,076.08"
"Department for Business, Energy and Industrial Strategy",The Coal Authority,10/03/2022,Minewater Contractor Maint. Visits - Ops Site,ENV - Mine Water Operations,Severn Trent Serv Ops Uk Ltd,123606,666.13
"Department for Business, Energy and Industrial Strategy",The Coal Authority,10/03/2022,Minewater Contractor Maint. Visits - Ops Site,ENV - Mine Water Operations,Severn Trent Serv Ops Uk Ltd,123606,507.39
"Department for Business, Energy and Industrial Strategy",The Coal Authority,02/03/2022,Minewater Feasibility / Scoping,DEFRA LEP Funding,JBA Bentley Ltd,124931,"3,818.85"
"Department for Business, Energy and Industrial Strategy",The Coal Authority,28/03/2022,Minewater Feasibility / Scoping,DEFRA Metal Mine Programme, Northern Powergrid Northeast Limited,125019,-840.00
"Department for Business, Energy and Industrial Strategy",The Coal Authority,22/11/2021,Minewater Feasibility / Scoping,DEFRA Metal Mine Programme,"1. Sharnberry Electrical connection to B6278, FROS",125020,840.00
"Department for Business, Energy and Industrial Strategy",The Coal Authority,15/03/2022,Minewater Feasibility / Scoping,DEFRA Metal Mine Programme,Durham County Council,124746,169.99
"Department for Business, Energy and Industrial Strategy",The Coal Authority,09/02/2022,Minewater Feasibility / Scoping,ENV - Projects & Delivery,WSP UK Ltd,123254,"24,463.52"
"Department for Business, Energy and Industrial Strategy",The Coal Authority,27/03/2022,Minewater Feasibility / Scoping,ENV - Projects & Delivery,WSP UK Ltd,125199,"3,804.12"
"Department for Business, Energy and Industrial Strategy",The Coal Authority,22/03/2022,Minewater Feasibility / Scoping,ENV - Projects & Delivery,WSP UK Ltd,125201,"4,140.78"
"Department for Business, Energy and Industrial Strategy",The Coal Authority,22/03/2022,Minewater Feasibility / Scoping,ENV - Projects & Delivery,WSP UK Ltd,125203,"1,301.15"
"Department for Business, Energy and Industrial Strategy",The Coal Authority,22/02/2022,Minewater Feasibility / Scoping,NRW Metal Mine Programme,AECOM Ltd,123339,"3,500.00"
"Department for Business, Energy and Industrial Strategy",The Coal Authority,16/03/2022,Minewater Feasibility / Scoping,NRW Metal Mine Programme,AECOM Ltd,124566,"10,000.00"
"Department for Business, Energy and Industrial Strategy",The Coal Authority,23/03/2022,Minewater Feasibility / Scoping,NRW Metal Mine Programme,Byfield Environment and Ecology Ltd.,125277,75.00
"Department for Business, Energy and Industrial Strategy",The Coal Authority,14/03/2022,Minewater Feasibility / Scoping,NRW Metal Mine Programme,Ceredigion County Council,124483,91.83
"Department for Business, Energy and Industrial Strategy",The Coal Authority,14/03/2022,Minewater Feasibility / Scoping,NRW Metal Mine Programme,Ceredigion County Council,124483,515.36
"Department for Business, Energy and Industrial Strategy",The Coal Authority,18/02/2022,Minewater Investigation Studies,ENV - Technical,Cornerstone  Projects Ltd,122673,243.13
"Department for Business, Energy and Industrial Strategy",The Coal Authority,28/02/2022,Minewater Land Agents (Acquisitions),DEFRA LEP Funding,Staff Expenses Control,123115,139.33
"Department for Business, Energy and Industrial Strategy",The Coal Authority,10/03/2022,Minewater Landscaping,ENV - Mine Water Operations,Severn Trent Serv Ops Uk Ltd,123606,150.23
"Department for Business, Energy and Industrial Strategy",The Coal Authority,10/03/2022,Minewater Liability & Monitoring Sites - Ad-hoc,ENV - Mine Water Operations,Severn Trent Serv Ops Uk Ltd,123606,62.40
"Department for Business, Energy and Industrial Strategy",The Coal Authority,10/03/2022,Minewater Management Fees,DEFRA Metal Mine Programme,John F Hunt Regeneration Ltd,123879,"38,000.32"
"Department for Business, Energy and Industrial Strategy",The Coal Authority,10/03/2022,Minewater Management Fees,ENV - Mine Water Operations,Severn Trent Serv Ops Uk Ltd,123606,594.19
"Department for Business, Energy and Industrial Strategy",The Coal Authority,28/03/2022,Minewater Monitoring & Flow Measurement,DEFRA LEP Funding,Ramboll Uk Ltd,125289,"6,000.00"
"Department for Business, Energy and Industrial Strategy",The Coal Authority,28/03/2022,Minewater Monitoring & Flow Measurement,DEFRA LEP Funding,Ramboll Uk Ltd,125289,600.00
"Department for Business, Energy and Industrial Strategy",The Coal Authority,11/03/2022,Minewater Monitoring & Flow Measurement,DEFRA Metal Mine Programme,Socotec,123722,180.00
"Department for Business, Energy and Industrial Strategy",The Coal Authority,09/03/2022,Minewater Monitoring & Flow Measurement,DEFRA Metal Mine Programme,Socotec,123723,111.00
"Department for Business, Energy and Industrial Strategy",The Coal Authority,11/03/2022,Minewater Monitoring & Flow Measurement,DEFRA Metal Mine Programme,Socotec,123724,165.20
"Department for Business, Energy and Industrial Strategy",The Coal Authority,28/02/2022,Minewater Monitoring & Flow Measurement,DEFRA Metal Mine Programme,Socotec,123727,900.00
"Department for Business, Energy and Industrial Strategy",The Coal Authority,18/03/2022,Minewater Monitoring & Flow Measurement,DEFRA Metal Mine Programme,Socotec,124915,466.90
"Department for Business, Energy and Industrial Strategy",The Coal Authority,28/02/2022,Minewater Monitoring & Flow Measurement,ENV - Projects & Delivery,Socotec,123543,328.40
"Department for Business, Energy and Industrial Strategy",The Coal Authority,28/02/2022,Minewater Monitoring & Flow Measurement,ENV - Technical,Socotec,123255,143.60
"Department for Business, Energy and Industrial Strategy",The Coal Authority,28/02/2022,Minewater Monitoring & Flow Measurement,ENV - Technical,Socotec,123256,410.80
"Department for Business, Energy and Industrial Strategy",The Coal Authority,31/01/2022,Minewater Monitoring & Flow Measurement,ENV - Technical,Socotec,124876,618.00
"Department for Business, Energy and Industrial Strategy",The Coal Authority,09/12/2021,Minewater Power Costs,DEFRA Metal Mine Programme,Edf Energy,122637,"43,590.20"
"Department for Business, Energy and Industrial Strategy",The Coal Authority,09/12/2021,Minewater Power Costs,DEFRA Metal Mine Programme,Edf Energy,122637,"2,532.75"
"Department for Business, Energy and Industrial Strategy",The Coal Authority,04/02/2022,Minewater Power Costs,DEFRA Metal Mine Programme,Edf Energy,122679,"99,800.30"
"Department for Business, Energy and Industrial Strategy",The Coal Authority,04/02/2022,Minewater Power Costs,DEFRA Metal Mine Programme,Edf Energy,122679,"5,926.80"
"Department for Business, Energy and Industrial Strategy",The Coal Authority,04/03/2022,Minewater Power Costs,DEFRA Metal Mine Programme,Edf Energy,123558,"2,470.52"
"Department for Business, Energy and Industrial Strategy",The Coal Authority,04/03/2022,Minewater Power Costs,DEFRA Metal Mine Programme,Edf Energy,123558,"43,950.72"
"Department for Business, Energy and Industrial Strategy",The Coal Authority,09/12/2021,Minewater Power Costs,ENV - Mine Water Operations,Edf Energy,122637,743.37
"Department for Business, Energy and Industrial Strategy",The Coal Authority,09/12/2021,Minewater Power Costs,ENV - Mine Water Operations,Edf Energy,122637,"3,972.65"
"Department for Business, Energy and Industrial Strategy",The Coal Authority,09/12/2021,Minewater Power Costs,ENV - Mine Water Operations,Edf Energy,122637,"3,343.95"
"Department for Business, Energy and Industrial Strategy",The Coal Authority,09/12/2021,Minewater Power Costs,ENV - Mine Water Operations,Edf Energy,122637,347.11
"Department for Business, Energy and Industrial Strategy",The Coal Authority,09/12/2021,Minewater Power Costs,ENV - Mine Water Operations,Edf Energy,122637,"1,384.97"
"Department for Business, Energy and Industrial Strategy",The Coal Authority,09/12/2021,Minewater Power Costs,ENV - Mine Water Operations,Edf Energy,122637,865.71
"Department for Business, Energy and Industrial Strategy",The Coal Authority,09/12/2021,Minewater Power Costs,ENV - Mine Water Operations,Edf Energy,122637,"1,149.12"
"Department for Business, Energy and Industrial Strategy",The Coal Authority,09/12/2021,Minewater Power Costs,ENV - Mine Water Operations,Edf Energy,122637,"1,765.64"
"Department for Business, Energy and Industrial Strategy",The Coal Authority,09/12/2021,Minewater Power Costs,ENV - Mine Water Operations,Edf Energy,122637,806.29
"Department for Business, Energy and Industrial Strategy",The Coal Authority,09/12/2021,Minewater Power Costs,ENV - Mine Water Operations,Edf Energy,122637,"3,153.35"
"Department for Business, Energy and Industrial Strategy",The Coal Authority,09/12/2021,Minewater Power Costs,ENV - Mine Water Operations,Edf Energy,122637,"4,211.06"
"Department for Business, Energy and Industrial Strategy",The Coal Authority,09/12/2021,Minewater Power Costs,ENV - Mine Water Operations,Edf Energy,122637,431.38
"Department for Business, Energy and Industrial Strategy",The Coal Authority,09/12/2021,Minewater Power Costs,ENV - Mine Water Operations,Edf Energy,122637,"9,999.62"
"Department for Business, Energy and Industrial Strategy",The Coal Authority,09/12/2021,Minewater Power Costs,ENV - Mine Water Operations,Edf Energy,122637,"11,493.65"
"Department for Business, Energy and Industrial Strategy",The Coal Authority,09/12/2021,Minewater Power Costs,ENV - Mine Water Operations,Edf Energy,122637,"1,063.00"
"Department for Business, Energy and Industrial Strategy",The Coal Authority,09/12/2021,Minewater Power Costs,ENV - Mine Water Operations,Edf Energy,122637,435.12
"Department for Business, Energy and Industrial Strategy",The Coal Authority,09/12/2021,Minewater Power Costs,ENV - Mine Water Operations,Edf Energy,122637,"4,278.79"
"Department for Business, Energy and Industrial Strategy",The Coal Authority,09/12/2021,Minewater Power Costs,ENV - Mine Water Operations,Edf Energy,122637,"9,754.78"
"Department for Business, Energy and Industrial Strategy",The Coal Authority,09/12/2021,Minewater Power Costs,ENV - Mine Water Operations,Edf Energy,122637,59.95
"Department for Business, Energy and Industrial Strategy",The Coal Authority,09/12/2021,Minewater Power Costs,ENV - Mine Water Operations,Edf Energy,122637,"1,666.74"
"Department for Business, Energy and Industrial Strategy",The Coal Authority,09/12/2021,Minewater Power Costs,ENV - Mine Water Operations,Edf Energy,122637,"5,289.77"
"Department for Business, Energy and Industrial Strategy",The Coal Authority,09/12/2021,Minewater Power Costs,ENV - Mine Water Operations,Edf Energy,122637,"1,073.58"
"Department for Business, Energy and Industrial Strategy",The Coal Authority,09/12/2021,Minewater Power Costs,ENV - Mine Water Operations,Edf Energy,122637,62.85
"Department for Business, Energy and Industrial Strategy",The Coal Authority,09/12/2021,Minewater Power Costs,ENV - Mine Water Operations,Edf Energy,122637,791.59
"Department for Business, Energy and Industrial Strategy",The Coal Authority,09/12/2021,Minewater Power Costs,ENV - Mine Water Operations,Edf Energy,122637,"2,188.42"
"Department for Business, Energy and Industrial Strategy",The Coal Authority,09/12/2021,Minewater Power Costs,ENV - Mine Water Operations,Edf Energy,122637,460.32
"Department for Business, Energy and Industrial Strategy",The Coal Authority,09/12/2021,Minewater Power Costs,ENV - Mine Water Operations,Edf Energy,122637,56.46
"Department for Business, Energy and Industrial Strategy",The Coal Authority,09/12/2021,Minewater Power Costs,ENV - Mine Water Operations,Edf Energy,122637,"1,991.85"
"Department for Business, Energy and Industrial Strategy",The Coal Authority,09/12/2021,Minewater Power Costs,ENV - Mine Water Operations,Edf Energy,122637,"22,058.39"
"Department for Business, Energy and Industrial Strategy",The Coal Authority,09/12/2021,Minewater Power Costs,ENV - Mine Water Operations,Edf Energy,122637,"1,194.09"
"Department for Business, Energy and Industrial Strategy",The Coal Authority,09/12/2021,Minewater Power Costs,ENV - Mine Water Operations,Edf Energy,122637,232.06
"Department for Business, Energy and Industrial Strategy",The Coal Authority,09/12/2021,Minewater Power Costs,ENV - Mine Water Operations,Edf Energy,122637,306.18
"Department for Business, Energy and Industrial Strategy",The Coal Authority,09/12/2021,Minewater Power Costs,ENV - Mine Water Operations,Edf Energy,122637,"13,044.01"
"Department for Business, Energy and Industrial Strategy",The Coal Authority,09/12/2021,Minewater Power Costs,ENV - Mine Water Operations,Edf Energy,122637,"16,301.45"
"Department for Business, Energy and Industrial Strategy",The Coal Authority,09/12/2021,Minewater Power Costs,ENV - Mine Water Operations,Edf Energy,122637,"1,362.10"
"Department for Business, Energy and Industrial Strategy",The Coal Authority,09/12/2021,Minewater Power Costs,ENV - Mine Water Operations,Edf Energy,122637,"29,078.64"
"Department for Business, Energy and Industrial Strategy",The Coal Authority,09/12/2021,Minewater Power Costs,ENV - Mine Water Operations,Edf Energy,122637,"1,820.63"
"Department for Business, Energy and Industrial Strategy",The Coal Authority,09/12/2021,Minewater Power Costs,ENV - Mine Water Operations,Edf Energy,122637,"2,216.32"
"Department for Business, Energy and Industrial Strategy",The Coal Authority,09/12/2021,Minewater Power Costs,ENV - Mine Water Operations,Edf Energy,122637,"5,734.75"
"Department for Business, Energy and Industrial Strategy",The Coal Authority,09/12/2021,Minewater Power Costs,ENV - Mine Water Operations,Edf Energy,122637,"5,423.98"
"Department for Business, Energy and Industrial Strategy",The Coal Authority,09/12/2021,Minewater Power Costs,ENV - Mine Water Operations,Edf Energy,122637,"8,668.35"
"Department for Business, Energy and Industrial Strategy",The Coal Authority,09/12/2021,Minewater Power Costs,ENV - Mine Water Operations,Edf Energy,122637,"1,043.91"
"Department for Business, Energy and Industrial Strategy",The Coal Authority,09/12/2021,Minewater Power Costs,ENV - Mine Water Operations,Edf Energy,122637,"11,050.96"
"Department for Business, Energy and Industrial Strategy",The Coal Authority,09/12/2021,Minewater Power Costs,ENV - Mine Water Operations,Edf Energy,122637,"14,748.42"
"Department for Business, Energy and Industrial Strategy",The Coal Authority,09/12/2021,Minewater Power Costs,ENV - Mine Water Operations,Edf Energy,122637,"16,711.60"
"Department for Business, Energy and Industrial Strategy",The Coal Authority,09/12/2021,Minewater Power Costs,ENV - Mine Water Operations,Edf Energy,122637,139.32
"Department for Business, Energy and Industrial Strategy",The Coal Authority,09/12/2021,Minewater Power Costs,ENV - Mine Water Operations,Edf Energy,122637,"1,670.85"
"Department for Business, Energy and Industrial Strategy",The Coal Authority,09/12/2021,Minewater Power Costs,ENV - Mine Water Operations,Edf Energy,122637,"3,165.87"
"Department for Business, Energy and Industrial Strategy",The Coal Authority,01/03/2022,Minewater Power Costs,ENV - Mine Water Operations,Edf Energy,122641,-904.02
"Department for Business, Energy and Industrial Strategy",The Coal Authority,02/03/2022,Minewater Power Costs,ENV - Mine Water Operations,Edf Energy,122678,-144.20
"Department for Business, Energy and Industrial Strategy",The Coal Authority,04/02/2022,Minewater Power Costs,ENV - Mine Water Operations,Edf Energy,122679,"1,930.44"
"Department for Business, Energy and Industrial Strategy",The Coal Authority,04/02/2022,Minewater Power Costs,ENV - Mine Water Operations,Edf Energy,122679,"1,927.67"
"Department for Business, Energy and Industrial Strategy",The Coal Authority,04/02/2022,Minewater Power Costs,ENV - Mine Water Operations,Edf Energy,122679,"10,135.23"
"Department for Business, Energy and Industrial Strategy",The Coal Authority,04/02/2022,Minewater Power Costs,ENV - Mine Water Operations,Edf Energy,122679,"9,256.25"
"Department for Business, Energy and Industrial Strategy",The Coal Authority,04/02/2022,Minewater Power Costs,ENV - Mine Water Operations,Edf Energy,122679,"1,229.14"
"Department for Business, Energy and Industrial Strategy",The Coal Authority,04/02/2022,Minewater Power Costs,ENV - Mine Water Operations,Edf Energy,122679,"1,440.63"
"Department for Business, Energy and Industrial Strategy",The Coal Authority,04/02/2022,Minewater Power Costs,ENV - Mine Water Operations,Edf Energy,122679,"1,679.36"
"Department for Business, Energy and Industrial Strategy",The Coal Authority,04/02/2022,Minewater Power Costs,ENV - Mine Water Operations,Edf Energy,122679,"3,502.02"
"Department for Business, Energy and Industrial Strategy",The Coal Authority,04/02/2022,Minewater Power Costs,ENV - Mine Water Operations,Edf Energy,122679,"3,789.86"
"Department for Business, Energy and Industrial Strategy",The Coal Authority,04/02/2022,Minewater Power Costs,ENV - Mine Water Operations,Edf Energy,122679,"7,056.46"
"Department for Business, Energy and Industrial Strategy",The Coal Authority,04/02/2022,Minewater Power Costs,ENV - Mine Water Operations,Edf Energy,122679,"1,772.22"
"Department for Business, Energy and Industrial Strategy",The Coal Authority,04/02/2022,Minewater Power Costs,ENV - Mine Water Operations,Edf Energy,122679,"7,139.51"
"Department for Business, Energy and Industrial Strategy",The Coal Authority,04/02/2022,Minewater Power Costs,ENV - Mine Water Operations,Edf Energy,122679,"1,256.31"
"Department for Business, Energy and Industrial Strategy",The Coal Authority,04/02/2022,Minewater Power Costs,ENV - Mine Water Operations,Edf Energy,122679,"9,277.06"
"Department for Business, Energy and Industrial Strategy",The Coal Authority,04/02/2022,Minewater Power Costs,ENV - Mine Water Operations,Edf Energy,122679,"14,482.02"
"Department for Business, Energy and Industrial Strategy",The Coal Authority,04/02/2022,Minewater Power Costs,ENV - Mine Water Operations,Edf Energy,122679,"27,290.98"
"Department for Business, Energy and Industrial Strategy",The Coal Authority,04/02/2022,Minewater Power Costs,ENV - Mine Water Operations,Edf Energy,122679,"2,521.08"
"Department for Business, Energy and Industrial Strategy",The Coal Authority,04/02/2022,Minewater Power Costs,ENV - Mine Water Operations,Edf Energy,122679,894.63
"Department for Business, Energy and Industrial Strategy",The Coal Authority,04/02/2022,Minewater Power Costs,ENV - Mine Water Operations,Edf Energy,122679,"9,095.07"
"Department for Business, Energy and Industrial Strategy",The Coal Authority,04/02/2022,Minewater Power Costs,ENV - Mine Water Operations,Edf Energy,122679,"20,739.45"
"Department for Business, Energy and Industrial Strategy",The Coal Authority,04/02/2022,Minewater Power Costs,ENV - Mine Water Operations,Edf Energy,122679,"27,887.07"
"Department for Business, Energy and Industrial Strategy",The Coal Authority,04/02/2022,Minewater Power Costs,ENV - Mine Water Operations,Edf Energy,122679,"3,498.08"
"Department for Business, Energy and Industrial Strategy",The Coal Authority,04/02/2022,Minewater Power Costs,ENV - Mine Water Operations,Edf Energy,122679,53.99
"Department for Business, Energy and Industrial Strategy",The Coal Authority,04/02/2022,Minewater Power Costs,ENV - Mine Water Operations,Edf Energy,122679,"5,680.18"
"Department for Business, Energy and Industrial Strategy",The Coal Authority,04/02/2022,Minewater Power Costs,ENV - Mine Water Operations,Edf Energy,122679,"3,156.38"
"Department for Business, Energy and Industrial Strategy",The Coal Authority,04/02/2022,Minewater Power Costs,ENV - Mine Water Operations,Edf Energy,122679,143.93
"Department for Business, Energy and Industrial Strategy",The Coal Authority,04/02/2022,Minewater Power Costs,ENV - Mine Water Operations,Edf Energy,122679,"1,558.37"
"Department for Business, Energy and Industrial Strategy",The Coal Authority,04/02/2022,Minewater Power Costs,ENV - Mine Water Operations,Edf Energy,122679,"4,655.26"
"Department for Business, Energy and Industrial Strategy",The Coal Authority,04/02/2022,Minewater Power Costs,ENV - Mine Water Operations,Edf Energy,122679,"2,135.61"
"Department for Business, Energy and Industrial Strategy",The Coal Authority,04/02/2022,Minewater Power Costs,ENV - Mine Water Operations,Edf Energy,122679,"6,380.17"
"Department for Business, Energy and Industrial Strategy",The Coal Authority,04/02/2022,Minewater Power Costs,ENV - Mine Water Operations,Edf Energy,122679,"67,992.86"
"Department for Business, Energy and Industrial Strategy",The Coal Authority,04/02/2022,Minewater Power Costs,ENV - Mine Water Operations,Edf Energy,122679,"2,646.65"
"Department for Business, Energy and Industrial Strategy",The Coal Authority,04/02/2022,Minewater Power Costs,ENV - Mine Water Operations,Edf Energy,122679,730.52
"Department for Business, Energy and Industrial Strategy",The Coal Authority,04/02/2022,Minewater Power Costs,ENV - Mine Water Operations,Edf Energy,122679,"35,298.48"
"Department for Business, Energy and Industrial Strategy",The Coal Authority,04/02/2022,Minewater Power Costs,ENV - Mine Water Operations,Edf Energy,122679,"28,035.13"
"Department for Business, Energy and Industrial Strategy",The Coal Authority,04/02/2022,Minewater Power Costs,ENV - Mine Water Operations,Edf Energy,122679,580.55
"Department for Business, Energy and Industrial Strategy",The Coal Authority,04/02/2022,Minewater Power Costs,ENV - Mine Water Operations,Edf Energy,122679,"33,801.66"
"Department for Business, Energy and Industrial Strategy",The Coal Authority,04/02/2022,Minewater Power Costs,ENV - Mine Water Operations,Edf Energy,122679,"65,186.98"
"Department for Business, Energy and Industrial Strategy",The Coal Authority,04/02/2022,Minewater Power Costs,ENV - Mine Water Operations,Edf Energy,122679,"1,971.77"
"Department for Business, Energy and Industrial Strategy",The Coal Authority,04/02/2022,Minewater Power Costs,ENV - Mine Water Operations,Edf Energy,122679,"5,180.90"
"Department for Business, Energy and Industrial Strategy",The Coal Authority,04/02/2022,Minewater Power Costs,ENV - Mine Water Operations,Edf Energy,122679,"12,620.46"
"Department for Business, Energy and Industrial Strategy",The Coal Authority,04/02/2022,Minewater Power Costs,ENV - Mine Water Operations,Edf Energy,122679,"10,408.52"
"Department for Business, Energy and Industrial Strategy",The Coal Authority,04/02/2022,Minewater Power Costs,ENV - Mine Water Operations,Edf Energy,122679,"28,646.68"
"Department for Business, Energy and Industrial Strategy",The Coal Authority,04/02/2022,Minewater Power Costs,ENV - Mine Water Operations,Edf Energy,122679,"2,483.03"
"Department for Business, Energy and Industrial Strategy",The Coal Authority,04/02/2022,Minewater Power Costs,ENV - Mine Water Operations,Edf Energy,122679,"30,988.21"
"Department for Business, Energy and Industrial Strategy",The Coal Authority,04/02/2022,Minewater Power Costs,ENV - Mine Water Operations,Edf Energy,122679,"38,715.05"
"Department for Business, Energy and Industrial Strategy",The Coal Authority,04/02/2022,Minewater Power Costs,ENV - Mine Water Operations,Edf Energy,122679,559.38
"Department for Business, Energy and Industrial Strategy",The Coal Authority,04/02/2022,Minewater Power Costs,ENV - Mine Water Operations,Edf Energy,122679,"3,925.65"
"Department for Business, Energy and Industrial Strategy",The Coal Authority,04/02/2022,Minewater Power Costs,ENV - Mine Water Operations,Edf Energy,122679,"8,835.85"
"Department for Business, Energy and Industrial Strategy",The Coal Authority,04/02/2022,Minewater Power Costs,ENV - Mine Water Operations,Edf Energy,122686,11.19
"Department for Business, Energy and Industrial Strategy",The Coal Authority,02/03/2022,Minewater Power Costs,ENV - Mine Water Operations,Edf Energy,122687,-11.19
"Department for Business, Energy and Industrial Strategy",The Coal Authority,04/02/2022,Minewater Power Costs,ENV - Mine Water Operations,Edf Energy,122688,11.19
"Department for Business, Energy and Industrial Strategy",The Coal Authority,11/03/2022,Minewater Power Costs,ENV - Mine Water Operations,Edf Energy,123555,-3.00
"Department for Business, Energy and Industrial Strategy",The Coal Authority,04/03/2022,Minewater Power Costs,ENV - Mine Water Operations,Edf Energy,123558,"4,192.72"
"Department for Business, Energy and Industrial Strategy",The Coal Authority,04/03/2022,Minewater Power Costs,ENV - Mine Water Operations,Edf Energy,123558,"4,564.01"
"Department for Business, Energy and Industrial Strategy",The Coal Authority,04/03/2022,Minewater Power Costs,ENV - Mine Water Operations,Edf Energy,123558,596.75
"Department for Business, Energy and Industrial Strategy",The Coal Authority,04/03/2022,Minewater Power Costs,ENV - Mine Water Operations,Edf Energy,123558,"1,107.82"
"Department for Business, Energy and Industrial Strategy",The Coal Authority,04/03/2022,Minewater Power Costs,ENV - Mine Water Operations,Edf Energy,123558,805.73
"Department for Business, Energy and Industrial Strategy",The Coal Authority,04/03/2022,Minewater Power Costs,ENV - Mine Water Operations,Edf Energy,123558,"2,536.51"
"Department for Business, Energy and Industrial Strategy",The Coal Authority,04/03/2022,Minewater Power Costs,ENV - Mine Water Operations,Edf Energy,123558,"1,417.15"
"Department for Business, Energy and Industrial Strategy",The Coal Authority,04/03/2022,Minewater Power Costs,ENV - Mine Water Operations,Edf Energy,123558,"1,902.18"
"Department for Business, Energy and Industrial Strategy",The Coal Authority,04/03/2022,Minewater Power Costs,ENV - Mine Water Operations,Edf Energy,123558,767.63
"Department for Business, Energy and Industrial Strategy",The Coal Authority,04/03/2022,Minewater Power Costs,ENV - Mine Water Operations,Edf Energy,123558,"4,228.38"
"Department for Business, Energy and Industrial Strategy",The Coal Authority,04/03/2022,Minewater Power Costs,ENV - Mine Water Operations,Edf Energy,123558,"5,720.59"
"Department for Business, Energy and Industrial Strategy",The Coal Authority,04/03/2022,Minewater Power Costs,ENV - Mine Water Operations,Edf Energy,123558,328.95
"Department for Business, Energy and Industrial Strategy",The Coal Authority,04/03/2022,Minewater Power Costs,ENV - Mine Water Operations,Edf Energy,123558,"9,760.21"
"Department for Business, Energy and Industrial Strategy",The Coal Authority,04/03/2022,Minewater Power Costs,ENV - Mine Water Operations,Edf Energy,123558,971.90
"Department for Business, Energy and Industrial Strategy",The Coal Authority,04/03/2022,Minewater Power Costs,ENV - Mine Water Operations,Edf Energy,123558,"13,410.60"
"Department for Business, Energy and Industrial Strategy",The Coal Authority,04/03/2022,Minewater Power Costs,ENV - Mine Water Operations,Edf Energy,123558,530.30
"Department for Business, Energy and Industrial Strategy",The Coal Authority,04/03/2022,Minewater Power Costs,ENV - Mine Water Operations,Edf Energy,123558,"9,248.92"
"Department for Business, Energy and Industrial Strategy",The Coal Authority,04/03/2022,Minewater Power Costs,ENV - Mine Water Operations,Edf Energy,123558,"4,391.55"
"Department for Business, Energy and Industrial Strategy",The Coal Authority,04/03/2022,Minewater Power Costs,ENV - Mine Water Operations,Edf Energy,123558,"10,409.47"
"Department for Business, Energy and Industrial Strategy",The Coal Authority,04/03/2022,Minewater Power Costs,ENV - Mine Water Operations,Edf Energy,123558,"1,664.20"
"Department for Business, Energy and Industrial Strategy",The Coal Authority,04/03/2022,Minewater Power Costs,ENV - Mine Water Operations,Edf Energy,123558,16.80
"Department for Business, Energy and Industrial Strategy",The Coal Authority,04/03/2022,Minewater Power Costs,ENV - Mine Water Operations,Edf Energy,123558,"10,952.83"
"Department for Business, Energy and Industrial Strategy",The Coal Authority,04/03/2022,Minewater Power Costs,ENV - Mine Water Operations,Edf Energy,123558,"1,194.64"
"Department for Business, Energy and Industrial Strategy",The Coal Authority,04/03/2022,Minewater Power Costs,ENV - Mine Water Operations,Edf Energy,123558,72.27
"Department for Business, Energy and Industrial Strategy",The Coal Authority,04/03/2022,Minewater Power Costs,ENV - Mine Water Operations,Edf Energy,123558,705.02
"Department for Business, Energy and Industrial Strategy",The Coal Authority,04/03/2022,Minewater Power Costs,ENV - Mine Water Operations,Edf Energy,123558,"2,052.63"
"Department for Business, Energy and Industrial Strategy",The Coal Authority,04/03/2022,Minewater Power Costs,ENV - Mine Water Operations,Edf Energy,123558,308.69
"Department for Business, Energy and Industrial Strategy",The Coal Authority,04/03/2022,Minewater Power Costs,ENV - Mine Water Operations,Edf Energy,123558,"1,210.67"
"Department for Business, Energy and Industrial Strategy",The Coal Authority,04/03/2022,Minewater Power Costs,ENV - Mine Water Operations,Edf Energy,123558,"4,346.44"
"Department for Business, Energy and Industrial Strategy",The Coal Authority,04/03/2022,Minewater Power Costs,ENV - Mine Water Operations,Edf Energy,123558,"14,696.81"
"Department for Business, Energy and Industrial Strategy",The Coal Authority,04/03/2022,Minewater Power Costs,ENV - Mine Water Operations,Edf Energy,123558,"1,194.93"
"Department for Business, Energy and Industrial Strategy",The Coal Authority,04/03/2022,Minewater Power Costs,ENV - Mine Water Operations,Edf Energy,123558,405.22
"Department for Business, Energy and Industrial Strategy",The Coal Authority,04/03/2022,Minewater Power Costs,ENV - Mine Water Operations,Edf Energy,123558,"17,023.07"
"Department for Business, Energy and Industrial Strategy",The Coal Authority,04/03/2022,Minewater Power Costs,ENV - Mine Water Operations,Edf Energy,123558,375.52
"Department for Business, Energy and Industrial Strategy",The Coal Authority,04/03/2022,Minewater Power Costs,ENV - Mine Water Operations,Edf Energy,123558,"11,500.33"
"Department for Business, Energy and Industrial Strategy",The Coal Authority,04/03/2022,Minewater Power Costs,ENV - Mine Water Operations,Edf Energy,123558,"13,042.09"
"Department for Business, Energy and Industrial Strategy",The Coal Authority,04/03/2022,Minewater Power Costs,ENV - Mine Water Operations,Edf Energy,123558,"1,168.75"
"Department for Business, Energy and Industrial Strategy",The Coal Authority,04/03/2022,Minewater Power Costs,ENV - Mine Water Operations,Edf Energy,123558,"1,360.49"
"Department for Business, Energy and Industrial Strategy",The Coal Authority,04/03/2022,Minewater Power Costs,ENV - Mine Water Operations,Edf Energy,123558,496.29
"Department for Business, Energy and Industrial Strategy",The Coal Authority,04/03/2022,Minewater Power Costs,ENV - Mine Water Operations,Edf Energy,123558,"22,477.10"
"Department for Business, Energy and Industrial Strategy",The Coal Authority,04/03/2022,Minewater Power Costs,ENV - Mine Water Operations,Edf Energy,123558,"1,177.35"
"Department for Business, Energy and Industrial Strategy",The Coal Authority,04/03/2022,Minewater Power Costs,ENV - Mine Water Operations,Edf Energy,123558,"2,065.16"
"Department for Business, Energy and Industrial Strategy",The Coal Authority,04/03/2022,Minewater Power Costs,ENV - Mine Water Operations,Edf Energy,123558,"10,359.00"
"Department for Business, Energy and Industrial Strategy",The Coal Authority,04/03/2022,Minewater Power Costs,ENV - Mine Water Operations,Edf Energy,123558,"10,558.35"
"Department for Business, Energy and Industrial Strategy",The Coal Authority,04/03/2022,Minewater Power Costs,ENV - Mine Water Operations,Edf Energy,123558,"16,872.21"
"Department for Business, Energy and Industrial Strategy",The Coal Authority,04/03/2022,Minewater Power Costs,ENV - Mine Water Operations,Edf Energy,123558,"14,798.44"
"Department for Business, Energy and Industrial Strategy",The Coal Authority,04/03/2022,Minewater Power Costs,ENV - Mine Water Operations,Edf Energy,123558,"4,023.20"
"Department for Business, Energy and Industrial Strategy",The Coal Authority,04/03/2022,Minewater Power Costs,ENV - Mine Water Operations,Edf Energy,123558,"1,128.64"
"Department for Business, Energy and Industrial Strategy",The Coal Authority,04/03/2022,Minewater Power Costs,ENV - Mine Water Operations,Edf Energy,124601,"1,059.28"
"Department for Business, Energy and Industrial Strategy",The Coal Authority,04/03/2022,Minewater Power Costs,ENV - Mine Water Operations,Edf Energy,124602,553.01
"Department for Business, Energy and Industrial Strategy",The Coal Authority,04/03/2022,Minewater Power Costs,ENV - Mine Water Operations,Edf Energy,124603,702.61
"Department for Business, Energy and Industrial Strategy",The Coal Authority,04/03/2022,Minewater Power Costs,ENV - Mine Water Operations,Edf Energy,124604,503.25
"Department for Business, Energy and Industrial Strategy",The Coal Authority,04/03/2022,Minewater Power Costs,ENV - Mine Water Operations,Edf Energy,124605,496.35
"Department for Business, Energy and Industrial Strategy",The Coal Authority,04/03/2022,Minewater Power Costs,ENV - Mine Water Operations,Edf Energy,124606,"2,065.52"
"Department for Business, Energy and Industrial Strategy",The Coal Authority,04/03/2022,Minewater Power Costs,ENV - Mine Water Operations,Edf Energy,124607,759.91
"Department for Business, Energy and Industrial Strategy",The Coal Authority,04/03/2022,Minewater Power Costs,ENV - Mine Water Operations,Edf Energy,124608,"1,742.99"
"Department for Business, Energy and Industrial Strategy",The Coal Authority,04/03/2022,Minewater Power Costs,ENV - Mine Water Operations,Edf Energy,124613,"1,822.93"
"Department for Business, Energy and Industrial Strategy",The Coal Authority,23/03/2022,Minewater Power Costs,ENV - Mine Water Operations,Edf Energy,124614,"-1,411.12"
"Department for Business, Energy and Industrial Strategy",The Coal Authority,04/03/2022,Minewater Power Costs,ENV - Mine Water Operations,Edf Energy,125064,"1,351.42"
"Department for Business, Energy and Industrial Strategy",The Coal Authority,04/03/2022,Minewater Power Costs,ENV - Mine Water Operations,National Coal Mining Museum,125185,"8,954.30"
"Department for Business, Energy and Industrial Strategy",The Coal Authority,10/03/2022,Minewater Pump Overhauls,ENV - Mine Water Operations,Severn Trent Serv Ops Uk Ltd,123606,187.29
"Department for Business, Energy and Industrial Strategy",The Coal Authority,10/03/2022,Minewater Pump Overhauls,ENV - Mine Water Operations,Severn Trent Serv Ops Uk Ltd,123606,75.11
"Department for Business, Energy and Industrial Strategy",The Coal Authority,10/03/2022,Minewater Pumping Tests,ENV - Mine Water Operations,Severn Trent Serv Ops Uk Ltd,123606,"2,838.77"
"Department for Business, Energy and Industrial Strategy",The Coal Authority,09/12/2021,Minewater Pumping Tests,ENV - Projects & Delivery,Edf Energy,122637,102.94
"Department for Business, Energy and Industrial Strategy",The Coal Authority,04/02/2022,Minewater Pumping Tests,ENV - Projects & Delivery,Edf Energy,122679,540.49
"Department for Business, Energy and Industrial Strategy",The Coal Authority,04/03/2022,Minewater Pumping Tests,ENV - Projects & Delivery,Edf Energy,123558,628.77
"Department for Business, Energy and Industrial Strategy",The Coal Authority,30/11/2021,Minewater Pumping Tests,ENV - Projects & Delivery,Enitial Limited,122861,"4,561.56"
"Department for Business, Energy and Industrial Strategy",The Coal Authority,10/03/2022,Minewater Pumping Tests,ENV - Projects & Delivery,Severn Trent Serv Ops Uk Ltd,123606,60.52
"Department for Business, Energy and Industrial Strategy",The Coal Authority,10/03/2022,Minewater Pumping Tests,ENV - Projects & Delivery,Severn Trent Serv Ops Uk Ltd,123606,253.16
"Department for Business, Energy and Industrial Strategy",The Coal Authority,10/03/2022,Minewater Pumping Tests,ENV - Projects & Delivery,Severn Trent Serv Ops Uk Ltd,123606,811.71
"Department for Business, Energy and Industrial Strategy",The Coal Authority,10/03/2022,Minewater Pumping Tests,ENV - Projects & Delivery,Severn Trent Serv Ops Uk Ltd,123606,"2,421.76"
"Department for Business, Energy and Industrial Strategy",The Coal Authority,10/03/2022,Minewater Pumping Tests,ENV - Projects & Delivery,Severn Trent Serv Ops Uk Ltd,123606,451.37
"Department for Business, Energy and Industrial Strategy",The Coal Authority,10/03/2022,Minewater Pumping Tests,ENV - Projects & Delivery,Severn Trent Serv Ops Uk Ltd,123606,"133,990.72"
"Department for Business, Energy and Industrial Strategy",The Coal Authority,10/03/2022,Minewater Pumping Tests,ENV - Projects & Delivery,Severn Trent Serv Ops Uk Ltd,123606,61.67
"Department for Business, Energy and Industrial Strategy",The Coal Authority,10/03/2022,Minewater Pumping Tests,ENV - Projects & Delivery,Severn Trent Serv Ops Uk Ltd,123606,61.67
"Department for Business, Energy and Industrial Strategy",The Coal Authority,10/03/2022,Minewater Pumping Tests,ENV - Projects & Delivery,Severn Trent Serv Ops Uk Ltd,123606,61.67
"Department for Business, Energy and Industrial Strategy",The Coal Authority,10/03/2022,Minewater Pumping Tests,ENV - Technical,Severn Trent Serv Ops Uk Ltd,123606,"2,998.27"
"Department for Business, Energy and Industrial Strategy",The Coal Authority,11/03/2022,Minewater Rates,DEFRA Metal Mine Programme,Allerdale Borough Council,124898,"2,744.50"
"Department for Business, Energy and Industrial Strategy",The Coal Authority,28/02/2022,Minewater Rates,DEFRA Metal Mine Programme,Redcar&Cleveland Borough Council,123204,"8,982.00"
"Department for Business, Energy and Industrial Strategy",The Coal Authority,11/03/2022,Minewater Rates,ENV - Mine Water Operations,Allerdale Borough Council,124877,"2,994.00"
"Department for Business, Energy and Industrial Strategy",The Coal Authority,11/03/2022,Minewater Rates,ENV - Mine Water Operations,Allerdale Borough Council,124878,"3,243.50"
"Department for Business, Energy and Industrial Strategy",The Coal Authority,11/03/2022,Minewater Rates,ENV - Mine Water Operations,Amber Valley Borough Council,124625,"29,440.00"
"Department for Business, Energy and Industrial Strategy",The Coal Authority,08/03/2022,Minewater Rates,ENV - Mine Water Operations,Barnsley Metropolitan Bor. Cou,124902,"30,208.00"
"Department for Business, Energy and Industrial Strategy",The Coal Authority,08/03/2022,Minewater Rates,ENV - Mine Water Operations,Barnsley Metropolitan Bor. Cou,124903,"8,732.50"
"Department for Business, Energy and Industrial Strategy",The Coal Authority,14/03/2022,Minewater Rates,ENV - Mine Water Operations,Bolsover District Council,124512,"13,722.50"
"Department for Business, Energy and Industrial Strategy",The Coal Authority,28/02/2022,Minewater Rates,ENV - Mine Water Operations,Burnley Borough Council,124510,"5,988.00"
"Department for Business, Energy and Industrial Strategy",The Coal Authority,28/02/2022,Minewater Rates,ENV - Mine Water Operations,Burnley Borough Council,124511,"4,341.30"
"Department for Business, Energy and Industrial Strategy",The Coal Authority,14/03/2022,Minewater Rates,ENV - Mine Water Operations,Cannock Chase District Council,124904,"4,990.00"
"Department for Business, Energy and Industrial Strategy",The Coal Authority,14/03/2022,Minewater Rates,ENV - Mine Water Operations,Cannock Chase District Council,124905,"5,988.00"
"Department for Business, Energy and Industrial Strategy",The Coal Authority,02/03/2022,Minewater Rates,ENV - Mine Water Operations,Chesterfield Borough Council,124276,"7,485.00"
"Department for Business, Energy and Industrial Strategy",The Coal Authority,09/03/2022,Minewater Rates,ENV - Mine Water Operations,Cornwall Council,125049,"44,800.00"
"Department for Business, Energy and Industrial Strategy",The Coal Authority,07/03/2022,Minewater Rates,ENV - Mine Water Operations,Durham County Council,124681,"12,475.00"
"Department for Business, Energy and Industrial Strategy",The Coal Authority,07/03/2022,Minewater Rates,ENV - Mine Water Operations,Durham County Council,124682,"2,744.50"
"Department for Business, Energy and Industrial Strategy",The Coal Authority,07/03/2022,Minewater Rates,ENV - Mine Water Operations,Durham County Council,124684,"3,093.80"
"Department for Business, Energy and Industrial Strategy",The Coal Authority,07/03/2022,Minewater Rates,ENV - Mine Water Operations,Durham County Council,124685,"4,491.00"
"Department for Business, Energy and Industrial Strategy",The Coal Authority,07/03/2022,Minewater Rates,ENV - Mine Water Operations,Durham County Council,124686,"1,247.50"
"Department for Business, Energy and Industrial Strategy",The Coal Authority,07/03/2022,Minewater Rates,ENV - Mine Water Operations,Durham County Council,124687,"9,980.00"
"Department for Business, Energy and Industrial Strategy",The Coal Authority,07/03/2022,Minewater Rates,ENV - Mine Water Operations,Durham County Council,124688,"3,243.50"
"Department for Business, Energy and Industrial Strategy",The Coal Authority,05/03/2022,Minewater Rates,ENV - Mine Water Operations,East Lothian Council,124683,"40,164.60"
"Department for Business, Energy and Industrial Strategy",The Coal Authority,07/03/2022,Minewater Rates,ENV - Mine Water Operations,Gateshead Council,125050,"4,990.00"
"Department for Business, Energy and Industrial Strategy",The Coal Authority,23/03/2022,Minewater Rates,ENV - Mine Water Operations,Merthyr Tydfil Cbc,124879,"6,687.50"
"Department for Business, Energy and Industrial Strategy",The Coal Authority,01/03/2022,Minewater Rates,ENV - Mine Water Operations,Neath Port Talbot County B C,124621,"2,965.29"
"Department for Business, Energy and Industrial Strategy",The Coal Authority,01/03/2022,Minewater Rates,ENV - Mine Water Operations,Neath Port Talbot County B C,124622,"6,687.50"
"Department for Business, Energy and Industrial Strategy",The Coal Authority,01/03/2022,Minewater Rates,ENV - Mine Water Operations,Neath Port Talbot County B C,124623,"1,872.50"
"Department for Business, Energy and Industrial Strategy",The Coal Authority,01/03/2022,Minewater Rates,ENV - Mine Water Operations,Neath Port Talbot County B C,124624,"8,025.00"
"Department for Business, Energy and Industrial Strategy",The Coal Authority,01/03/2022,Minewater Rates,ENV - Mine Water Operations,Neath Port Talbot County B C,124626,"9,362.50"
"Department for Business, Energy and Industrial Strategy",The Coal Authority,11/03/2022,Minewater Rates,ENV - Mine Water Operations,Newcastle Under Lyme Bor Counc,124907,"7,235.50"
"Department for Business, Energy and Industrial Strategy",The Coal Authority,17/03/2022,Minewater Rates,ENV - Mine Water Operations,North East Derbyshire District Council,124901,"1,247.50"
"Department for Business, Energy and Industrial Strategy",The Coal Authority,07/03/2022,Minewater Rates,ENV - Mine Water Operations,Northumberland County Council,125051,"6,986.00"
"Department for Business, Energy and Industrial Strategy",The Coal Authority,07/03/2022,Minewater Rates,ENV - Mine Water Operations,Northumberland County Council,125052,"2,994.00"
"Department for Business, Energy and Industrial Strategy",The Coal Authority,07/03/2022,Minewater Rates,ENV - Mine Water Operations,Northumberland County Council,125053,"47,360.00"
"Department for Business, Energy and Industrial Strategy",The Coal Authority,07/03/2022,Minewater Rates,ENV - Mine Water Operations,Northumberland County Council,125054,"3,992.00"
"Department for Business, Energy and Industrial Strategy",The Coal Authority,07/03/2022,Minewater Rates,ENV - Mine Water Operations,Northumberland County Council,125061,"7,485.00"
"Department for Business, Energy and Industrial Strategy",The Coal Authority,07/03/2022,Minewater Rates,ENV - Mine Water Operations,Northumberland County Council,125062,"14,970.00"
"Department for Business, Energy and Industrial Strategy",The Coal Authority,07/03/2022,Minewater Rates,ENV - Mine Water Operations,Northumberland County Council,125063,"49,920.00"
"Department for Business, Energy and Industrial Strategy",The Coal Authority,14/03/2022,Minewater Rates,ENV - Mine Water Operations,Rossendale Borough Council,124900,"6,861.25"
"Department for Business, Energy and Industrial Strategy",The Coal Authority,14/03/2022,Minewater Rates,ENV - Mine Water Operations,Salford City Council,124680,"8,732.50"
"Department for Business, Energy and Industrial Strategy",The Coal Authority,03/03/2022,Minewater Rates,ENV - Mine Water Operations,Sheffield City council,124275,"2,495.00"
"Department for Business, Energy and Industrial Strategy",The Coal Authority,09/03/2022,Minewater Rates,ENV - Mine Water Operations,South Tyneside Council,125048,"1,372.25"
"Department for Business, Energy and Industrial Strategy",The Coal Authority,01/03/2022,Minewater Rates,ENV - Mine Water Operations,Stoke On Trent City Council,124899,"4,241.50"
"Department for Business, Energy and Industrial Strategy",The Coal Authority,07/03/2022,Minewater Rates,ENV - Mine Water Operations,Tameside MBC,124277,"4,241.50"
"Department for Business, Energy and Industrial Strategy",The Coal Authority,11/03/2022,Minewater Rates,ENV - Mine Water Operations,Torfaen County Borough Council,124906,"4,815.00"
"Department for Business, Energy and Industrial Strategy",The Coal Authority,14/03/2022,Minewater Rates,ENV - Mine Water Operations,Wigan Council,124908,"7,485.00"
"Department for Business, Energy and Industrial Strategy",The Coal Authority,14/03/2022,Minewater Rates,ENV - Mine Water Operations,Wigan Council,124909,"6,736.50"
"Department for Business, Energy and Industrial Strategy",The Coal Authority,14/03/2022,Minewater Rates,ENV - Mine Water Operations,Wigan Council,124910,"4,990.00"
"Department for Business, Energy and Industrial Strategy",The Coal Authority,14/03/2022,Minewater Rates,ENV - Mine Water Operations,Wigan Council,124911,"4,990.00"
"Department for Business, Energy and Industrial Strategy",The Coal Authority,14/03/2022,Minewater Rates,ENV - Mine Water Operations,Wigan Council,124912,"3,493.00"
"Department for Business, Energy and Industrial Strategy",The Coal Authority,10/03/2022,Minewater Remediation,ENV - Mine Water Operations,Severn Trent Serv Ops Uk Ltd,123606,"2,470.09"
"Department for Business, Energy and Industrial Strategy",The Coal Authority,10/03/2022,Minewater Remediation,ENV - Mine Water Operations,Severn Trent Serv Ops Uk Ltd,123606,142.47
"Department for Business, Energy and Industrial Strategy",The Coal Authority,10/03/2022,Minewater Remediation,ENV - Mine Water Operations,Severn Trent Serv Ops Uk Ltd,123606,283.88
"Department for Business, Energy and Industrial Strategy",The Coal Authority,10/03/2022,Minewater Remediation,ENV - Mine Water Operations,Severn Trent Serv Ops Uk Ltd,123606,"4,755.69"
"Department for Business, Energy and Industrial Strategy",The Coal Authority,10/03/2022,Minewater Remediation,ENV - Mine Water Operations,Severn Trent Serv Ops Uk Ltd,123606,738.66
"Department for Business, Energy and Industrial Strategy",The Coal Authority,10/03/2022,Minewater Remediation,ENV - Mine Water Operations,Severn Trent Serv Ops Uk Ltd,123606,"8,747.57"
"Department for Business, Energy and Industrial Strategy",The Coal Authority,08/03/2022,Minewater Rent,DEV - Property Management,Rental Payment,123686,400.00
"Department for Business, Energy and Industrial Strategy",The Coal Authority,07/03/2022,Minewater Rent,ENV - Mine Water Operations,Adcliffe Drawdeal Ltd,123123,-200.00
"Department for Business, Energy and Industrial Strategy",The Coal Authority,08/03/2022,Minewater Rent,ENV - Mine Water Operations,Ashfield Commercial Properties Ltd,125039,463.00
"Department for Business, Energy and Industrial Strategy",The Coal Authority,08/03/2022,Minewater Rent,ENV - Mine Water Operations,Drummohr Woods LLP,123687,"1,340.72"
"Department for Business, Energy and Industrial Strategy",The Coal Authority,05/01/2022,Minewater Rent,ENV - Mine Water Operations,Rental Payment ,123865,"11,444.26"
"Department for Business, Energy and Industrial Strategy",The Coal Authority,08/03/2022,Minewater Rent,ENV - Mine Water Operations,Rental Payment ,123684,100.00
"Department for Business, Energy and Industrial Strategy",The Coal Authority,10/03/2022,Minewater Rent,ENV - Mine Water Operations,Rental Payment ,123807,"1,820.00"
"Department for Business, Energy and Industrial Strategy",The Coal Authority,08/03/2022,Minewater Rent,ENV - Mine Water Operations,Rental Payment ,123685,100.00
"Department for Business, Energy and Industrial Strategy",The Coal Authority,08/03/2022,Minewater Rent,ENV - Mine Water Operations,Rental Payment ,123689,"1,500.00"
"Department for Business, Energy and Industrial Strategy",The Coal Authority,08/03/2022,Minewater Rent,ENV - Mine Water Operations,Rental Payment,123688,"1,000.00"
"Department for Business, Energy and Industrial Strategy",The Coal Authority,06/12/2021,Minewater Rent,ENV - Mine Water Operations,Network Rail,123869,415.00
"Department for Business, Energy and Industrial Strategy",The Coal Authority,08/03/2022,Minewater Rent,ENV - Projects & Delivery,Rental Payment ,123690,"1,000.00"
"Department for Business, Energy and Industrial Strategy",The Coal Authority,28/02/2022,Minewater Sampling - 'Non-operational' Sites,DEFRA Metal Mine Programme,Socotec,123212,27.57
"Department for Business, Energy and Industrial Strategy",The Coal Authority,28/02/2022,Minewater Sampling - 'Non-operational' Sites,DEFRA Metal Mine Programme,Socotec,123212,27.57
"Department for Business, Energy and Industrial Strategy",The Coal Authority,28/02/2022,Minewater Sampling - 'Non-operational' Sites,DEFRA Metal Mine Programme,Socotec,123212,42.81
"Department for Business, Energy and Industrial Strategy",The Coal Authority,28/02/2022,Minewater Sampling - 'Non-operational' Sites,DEFRA Metal Mine Programme,Socotec,123212,42.81
"Department for Business, Energy and Industrial Strategy",The Coal Authority,10/03/2022,Minewater Sampling - 'Non-operational' Sites,ENV - Projects & Delivery,Severn Trent Serv Ops Uk Ltd,123606,17.97
"Department for Business, Energy and Industrial Strategy",The Coal Authority,28/02/2022,Minewater Sampling - 'Non-operational' Sites,NRW Metal Mine Programme,Socotec,123177,63.97
"Department for Business, Energy and Industrial Strategy",The Coal Authority,28/02/2022,Minewater Sampling - 'Non-operational' Sites,NRW Metal Mine Programme,Socotec,123177,902.03
"Department for Business, Energy and Industrial Strategy",The Coal Authority,28/02/2022,Minewater Sampling - 'Non-operational' Sites,NRW Metal Mine Programme,Socotec,123177,20.00
"Department for Business, Energy and Industrial Strategy",The Coal Authority,10/03/2022,Minewater Sampling - Operational Sites,DEFRA Metal Mine Programme,John F Hunt Regeneration Ltd,123879,"1,009.40"
"Department for Business, Energy and Industrial Strategy",The Coal Authority,10/03/2022,Minewater Sampling - Operational Sites,ENV - Mine Water Operations,Severn Trent Serv Ops Uk Ltd,123606,"5,021.93"
"Department for Business, Energy and Industrial Strategy",The Coal Authority,21/02/2022,Minewater Sampling - Operational Sites,ENV - Mine Water Operations,Socotec,122866,421.32
"Department for Business, Energy and Industrial Strategy",The Coal Authority,10/03/2022,Minewater Sampling - Operational Sites,ENV - Projects & Delivery,Severn Trent Serv Ops Uk Ltd,123606,940.49
"Department for Business, Energy and Industrial Strategy",The Coal Authority,14/03/2022,Minewater Site Surveys,DEFRA LEP Funding,Tyne Rivers Trust,125164,"3,375.00"
"Department for Business, Energy and Industrial Strategy",The Coal Authority,11/03/2022,Minewater Site Surveys,DEFRA Metal Mine Programme,AECOM Ltd,123796,"2,116.63"
"Department for Business, Energy and Industrial Strategy",The Coal Authority,11/03/2022,Minewater Site Surveys,DEFRA Metal Mine Programme,AECOM Ltd,123796,"1,573.77"
"Department for Business, Energy and Industrial Strategy",The Coal Authority,11/03/2022,Minewater Site Surveys,DEFRA Metal Mine Programme,AECOM Ltd,123796,105.00
"Department for Business, Energy and Industrial Strategy",The Coal Authority,24/01/2022,Minewater Site Surveys,ENV - Projects & Delivery,Mason Land Surveys Ltd,122937,"4,750.00"
"Department for Business, Energy and Industrial Strategy",The Coal Authority,21/03/2022,Minewater Site Surveys,ENV - Technical,RPS Consulting Services Limited,124648,"4,823.37"
